﻿Purchasing Organisation,Payment Date,Voucher Number (Internal Classification),Payment Number,Supplier Name,Service Area,Amount (£),Purpose,Supplier Type (Internal Classification),Invoice Type (Internal Classification),Cost Centre No,Directorate
RBC Legal Entity,22/12/2021,4334480,55,ALAN BEARMAN MUSIC,Liabilities _ General,-750,System Debtors,Third Party Supplier,CREDIT,9886,ZZZB-Balance Sheet
RBC Legal Entity,22/12/2021,4264155,57,HILL AND SMITH LTD T/A ASSET INTERNATIONAL VRS,Civil Engineering,2819.6,H.M.Planned,SUPPLIER,STANDARD,4550,KAAA-Directorate of Economic Growth and Neighbourhood Services
RBC Legal Entity,22/12/2021,4264157,57,HILL AND SMITH LTD T/A ASSET INTERNATIONAL VRS,Civil Engineering,-9647,H.M.Planned,SUPPLIER,CREDIT,4550,KAAA-Directorate of Economic Growth and Neighbourhood Services
RBC Legal Entity,22/12/2021,4594444,59,BRENDONCARE ALTON,PS Acquired Nursing,-1335.71,Purchased Care,Third Party Supplier,CREDIT,5773,JAAA-Directorate of Social Care and Health Services
RBC Legal Entity,01/12/2021,4619430,264133,ANDREW & JACQUELINE FREEBORN,Guaranteed Rent Scheme,682.98,Rents,SUPPLIER,STANDARD,5872,KAAA-Directorate of Economic Growth and Neighbourhood Services
RBC Legal Entity,01/12/2021,4619523,264133,ANDREW & JACQUELINE FREEBORN,Guaranteed Rent Scheme,682.98,Rents,SUPPLIER,STANDARD,5872,KAAA-Directorate of Economic Growth and Neighbourhood Services
RBC Legal Entity,01/12/2021,4619789,264134,LUCY CAMERON,Guaranteed Rent Scheme,880.53,Rents,Landlord,STANDARD,5872,KAAA-Directorate of Economic Growth and Neighbourhood Services
RBC Legal Entity,01/12/2021,4619631,264135,STEPHEN SAUNDERS,Guaranteed Rent Scheme,880.53,Rents,SUPPLIER,STANDARD,5872,KAAA-Directorate of Economic Growth and Neighbourhood Services
RBC Legal Entity,01/12/2021,4613470,264136,M&D SERVICES,Parks + Open Spaces,1230,Contractors,SUB-CONTRACTOR,STANDARD,8003,ZZZC-Capital
RBC Legal Entity,01/12/2021,4613470,264136,M&D SERVICES,Parks + Open Spaces,2210.4,Contractors,SUB-CONTRACTOR,STANDARD,8003,ZZZC-Capital
RBC Legal Entity,01/12/2021,4618036,264137,DNA LEGAL LTD,JLT Disbursements,500,Misc. Legal Expenses,SUPPLIER,STANDARD,2407,LAAA-Directorate of Resources
RBC Legal Entity,01/12/2021,4619259,264138,DR MICHAEL YEBOAH,Guaranteed Rent Scheme,1006.72,Rents,SUPPLIER,STANDARD,5872,KAAA-Directorate of Economic Growth and Neighbourhood Services
RBC Legal Entity,01/12/2021,4619238,264139,DANIEL SIMMONS,Guaranteed Rent Scheme,880.53,Rents,SUPPLIER,STANDARD,5872,KAAA-Directorate of Economic Growth and Neighbourhood Services
RBC Legal Entity,01/12/2021,4619260,264140,LYNX LETTINGS LTD,Guaranteed Rent Scheme,1388.74,Rents,SUPPLIER,STANDARD,5872,KAAA-Directorate of Economic Growth and Neighbourhood Services
RBC Legal Entity,01/12/2021,4619269,264140,LYNX LETTINGS LTD,Guaranteed Rent Scheme,1388.74,Rents,SUPPLIER,STANDARD,5872,KAAA-Directorate of Economic Growth and Neighbourhood Services
RBC Legal Entity,01/12/2021,4619805,264140,LYNX LETTINGS LTD,Guaranteed Rent Scheme,1006.72,Rents,SUPPLIER,STANDARD,5872,KAAA-Directorate of Economic Growth and Neighbourhood Services
RBC Legal Entity,01/12/2021,4619758,264141,MERCEDES SPENCE,Guaranteed Rent Scheme,1006.72,Rents,Landlord,STANDARD,5872,KAAA-Directorate of Economic Growth and Neighbourhood Services
RBC Legal Entity,01/12/2021,4619180,264142,SEAN HEATH,Guaranteed Rent Scheme,694.59,Rents,Landlord,STANDARD,5872,KAAA-Directorate of Economic Growth and Neighbourhood Services
RBC Legal Entity,01/12/2021,4619246,264142,SEAN HEATH,Guaranteed Rent Scheme,694.59,Rents,Landlord,STANDARD,5872,KAAA-Directorate of Economic Growth and Neighbourhood Services
RBC Legal Entity,01/12/2021,4619376,264142,SEAN HEATH,Guaranteed Rent Scheme,880.53,Rents,Landlord,STANDARD,5872,KAAA-Directorate of Economic Growth and Neighbourhood Services
RBC Legal Entity,01/12/2021,4619447,264142,SEAN HEATH,Guaranteed Rent Scheme,694.59,Rents,Landlord,STANDARD,5872,KAAA-Directorate of Economic Growth and Neighbourhood Services
RBC Legal Entity,01/12/2021,4619678,264142,SEAN HEATH,Guaranteed Rent Scheme,880.53,Rents,Landlord,STANDARD,5872,KAAA-Directorate of Economic Growth and Neighbourhood Services
RBC Legal Entity,01/12/2021,4619683,264142,SEAN HEATH,Guaranteed Rent Scheme,694.59,Rents,Landlord,STANDARD,5872,KAAA-Directorate of Economic Growth and Neighbourhood Services
RBC Legal Entity,01/12/2021,4619820,264142,SEAN HEATH,Guaranteed Rent Scheme,694.59,Rents,Landlord,STANDARD,5872,KAAA-Directorate of Economic Growth and Neighbourhood Services
RBC Legal Entity,01/12/2021,4619459,264143,GURINDER SINGH,Guaranteed Rent Scheme,865.8,Rents,SUPPLIER,STANDARD,5872,KAAA-Directorate of Economic Growth and Neighbourhood Services
RBC Legal Entity,01/12/2021,4619283,264144,ROSS ERLAM,Guaranteed Rent Scheme,840.58,Rents,SUPPLIER,STANDARD,5872,KAAA-Directorate of Economic Growth and Neighbourhood Services
RBC Legal Entity,01/12/2021,4619492,264145,TERESA HARRIS,Guaranteed Rent Scheme,694.59,Rents,SUPPLIER,STANDARD,5872,KAAA-Directorate of Economic Growth and Neighbourhood Services
RBC Legal Entity,01/12/2021,4619384,264147,KATE NEAL,Guaranteed Rent Scheme,989.91,Rents,Landlord,STANDARD,5872,KAAA-Directorate of Economic Growth and Neighbourhood Services
RBC Legal Entity,01/12/2021,4619721,264149,VOKE PROPERTIES,Guaranteed Rent Scheme,880.53,Rents,Landlord,STANDARD,5872,KAAA-Directorate of Economic Growth and Neighbourhood Services
RBC Legal Entity,01/12/2021,4619394,264150,FRANK MADRAY,Guaranteed Rent Scheme,1006.72,Rents,SUPPLIER,STANDARD,5872,KAAA-Directorate of Economic Growth and Neighbourhood Services
RBC Legal Entity,01/12/2021,4619322,264152,NASEEMA CHAWAMA,Guaranteed Rent Scheme,1006.72,Rents,SUPPLIER,STANDARD,5872,KAAA-Directorate of Economic Growth and Neighbourhood Services
RBC Legal Entity,01/12/2021,4619488,264153,DAYLA SINGH,Guaranteed Rent Scheme,682.98,Rents,Landlord,STANDARD,5872,KAAA-Directorate of Economic Growth and Neighbourhood Services
RBC Legal Entity,01/12/2021,4619409,264154,LORNA CLARK,Guaranteed Rent Scheme,880.53,Rents,Landlord,STANDARD,5872,KAAA-Directorate of Economic Growth and Neighbourhood Services
RBC Legal Entity,01/12/2021,4611109,264155,ANDREW BOND,JLT Disbursements,650,Misc. Legal Expenses,Third Party Supplier,STANDARD,2407,LAAA-Directorate of Resources
RBC Legal Entity,01/12/2021,4619418,264156,PAULINE CAREY,Guaranteed Rent Scheme,880.53,Rents,Landlord,STANDARD,5872,KAAA-Directorate of Economic Growth and Neighbourhood Services
RBC Legal Entity,01/12/2021,4619495,264157,DANIEL DUNNE & TRUDIE MIDDLETON,Guaranteed Rent Scheme,865.8,Rents,Landlord,STANDARD,5872,KAAA-Directorate of Economic Growth and Neighbourhood Services
RBC Legal Entity,01/12/2021,4619427,264158,MR P C BIDGOOD,Guaranteed Rent Scheme,865.8,Rents,SUPPLIER,STANDARD,5872,KAAA-Directorate of Economic Growth and Neighbourhood Services
RBC Legal Entity,01/12/2021,4619181,264159,JEREMY SIMMONS,Guaranteed Rent Scheme,1006.72,Rents,SUPPLIER,STANDARD,5872,KAAA-Directorate of Economic Growth and Neighbourhood Services
RBC Legal Entity,01/12/2021,4619508,264159,JEREMY SIMMONS,Guaranteed Rent Scheme,1006.72,Rents,SUPPLIER,STANDARD,5872,KAAA-Directorate of Economic Growth and Neighbourhood Services
RBC Legal Entity,01/12/2021,4619509,264159,JEREMY SIMMONS,Guaranteed Rent Scheme,880.53,Rents,SUPPLIER,STANDARD,5872,KAAA-Directorate of Economic Growth and Neighbourhood Services
RBC Legal Entity,01/12/2021,4619856,264159,JEREMY SIMMONS,Guaranteed Rent Scheme,880.53,Rents,SUPPLIER,STANDARD,5872,KAAA-Directorate of Economic Growth and Neighbourhood Services
RBC Legal Entity,01/12/2021,4619606,264160,RADHA DHARAMDASS-FORTUNE,Guaranteed Rent Scheme,880.53,Rents,Third Party Supplier,STANDARD,5872,KAAA-Directorate of Economic Growth and Neighbourhood Services
RBC Legal Entity,01/12/2021,4619578,264161,GUY BRAZIL,Guaranteed Rent Scheme,694.59,Rents,SUPPLIER,STANDARD,5872,KAAA-Directorate of Economic Growth and Neighbourhood Services
RBC Legal Entity,01/12/2021,4619519,264162,RAJINDER SOHPAL,Guaranteed Rent Scheme,682.98,Rents,SUPPLIER,STANDARD,5872,KAAA-Directorate of Economic Growth and Neighbourhood Services
RBC Legal Entity,01/12/2021,4619575,264162,RAJINDER SOHPAL,Guaranteed Rent Scheme,880.53,Rents,SUPPLIER,STANDARD,5872,KAAA-Directorate of Economic Growth and Neighbourhood Services
RBC Legal Entity,01/12/2021,4619743,264162,RAJINDER SOHPAL,Guaranteed Rent Scheme,880.53,Rents,SUPPLIER,STANDARD,5872,KAAA-Directorate of Economic Growth and Neighbourhood Services
RBC Legal Entity,01/12/2021,4619749,264162,RAJINDER SOHPAL,Guaranteed Rent Scheme,880.53,Rents,SUPPLIER,STANDARD,5872,KAAA-Directorate of Economic Growth and Neighbourhood Services
RBC Legal Entity,01/12/2021,4619812,264162,RAJINDER SOHPAL,Guaranteed Rent Scheme,694.59,Rents,SUPPLIER,STANDARD,5872,KAAA-Directorate of Economic Growth and Neighbourhood Services
RBC Legal Entity,01/12/2021,4619345,264163,WOODLEYS ESTATE AGENT,Guaranteed Rent Scheme,682.98,Rents,Landlord,STANDARD,5872,KAAA-Directorate of Economic Growth and Neighbourhood Services
RBC Legal Entity,01/12/2021,4619741,264163,WOODLEYS ESTATE AGENT,Guaranteed Rent Scheme,880.53,Rents,Landlord,STANDARD,5872,KAAA-Directorate of Economic Growth and Neighbourhood Services
RBC Legal Entity,01/12/2021,4619753,264163,WOODLEYS ESTATE AGENT,Guaranteed Rent Scheme,880.53,Rents,Landlord,STANDARD,5872,KAAA-Directorate of Economic Growth and Neighbourhood Services
RBC Legal Entity,01/12/2021,4619148,264164,READING LETTINGS,Guaranteed Rent Scheme,694.59,Rents,Landlord,STANDARD,5872,KAAA-Directorate of Economic Growth and Neighbourhood Services
RBC Legal Entity,01/12/2021,4619159,264164,READING LETTINGS,Guaranteed Rent Scheme,694.59,Rents,Landlord,STANDARD,5872,KAAA-Directorate of Economic Growth and Neighbourhood Services
RBC Legal Entity,01/12/2021,4619251,264164,READING LETTINGS,Guaranteed Rent Scheme,865.8,Rents,Landlord,STANDARD,5872,KAAA-Directorate of Economic Growth and Neighbourhood Services
RBC Legal Entity,01/12/2021,4619717,264164,READING LETTINGS,Guaranteed Rent Scheme,1006.72,Rents,Landlord,STANDARD,5872,KAAA-Directorate of Economic Growth and Neighbourhood Services
RBC Legal Entity,01/12/2021,4619782,264164,READING LETTINGS,Guaranteed Rent Scheme,694.59,Rents,Landlord,STANDARD,5872,KAAA-Directorate of Economic Growth and Neighbourhood Services
RBC Legal Entity,01/12/2021,4619375,264165,BRIAN SHARP,Guaranteed Rent Scheme,840.58,Rents,SUPPLIER,STANDARD,5872,KAAA-Directorate of Economic Growth and Neighbourhood Services
RBC Legal Entity,01/12/2021,4619173,264166,CHANEYS CHARTERED SURVEYORS,Guaranteed Rent Scheme,840.58,Rents,SUPPLIER,STANDARD,5872,KAAA-Directorate of Economic Growth and Neighbourhood Services
RBC Legal Entity,01/12/2021,4619200,264166,CHANEYS CHARTERED SURVEYORS,Guaranteed Rent Scheme,840.58,Rents,SUPPLIER,STANDARD,5872,KAAA-Directorate of Economic Growth and Neighbourhood Services
RBC Legal Entity,01/12/2021,4619402,264166,CHANEYS CHARTERED SURVEYORS,Guaranteed Rent Scheme,865.8,Rents,SUPPLIER,STANDARD,5872,KAAA-Directorate of Economic Growth and Neighbourhood Services
RBC Legal Entity,01/12/2021,4619465,264167,WILLIAMS PROPERTY PARTNERSHIP,Guaranteed Rent Scheme,880.53,Rents,SUPPLIER,STANDARD,5872,KAAA-Directorate of Economic Growth and Neighbourhood Services
RBC Legal Entity,01/12/2021,4608914,264168,AVC WISE LTD,HR & Payroll,1350.8,Miscellaneous Expenses,SUPPLIER,STANDARD,2600,LAAA-Directorate of Resources
RBC Legal Entity,01/12/2021,4619094,264168,AVC WISE LTD,HR & Payroll,1388.13,Miscellaneous Expenses,SUPPLIER,STANDARD,2600,LAAA-Directorate of Resources
RBC Legal Entity,01/12/2021,4619440,264169,GERARD DAVIS,Guaranteed Rent Scheme,1006.72,Rents,Landlord,STANDARD,5872,KAAA-Directorate of Economic Growth and Neighbourhood Services
RBC Legal Entity,01/12/2021,4619433,264170,FINEWAYS PROPERTY LTD,Guaranteed Rent Scheme,1029.73,Rents,Landlord,STANDARD,5872,KAAA-Directorate of Economic Growth and Neighbourhood Services
RBC Legal Entity,01/12/2021,4619476,264170,FINEWAYS PROPERTY LTD,Guaranteed Rent Scheme,650,Rents,Landlord,STANDARD,5872,KAAA-Directorate of Economic Growth and Neighbourhood Services
RBC Legal Entity,01/12/2021,4619505,264170,FINEWAYS PROPERTY LTD,Guaranteed Rent Scheme,694.59,Rents,Landlord,STANDARD,5872,KAAA-Directorate of Economic Growth and Neighbourhood Services
RBC Legal Entity,01/12/2021,4619599,264170,FINEWAYS PROPERTY LTD,Guaranteed Rent Scheme,880.53,Rents,Landlord,STANDARD,5872,KAAA-Directorate of Economic Growth and Neighbourhood Services
RBC Legal Entity,01/12/2021,4619690,264170,FINEWAYS PROPERTY LTD,Guaranteed Rent Scheme,694.59,Rents,Landlord,STANDARD,5872,KAAA-Directorate of Economic Growth and Neighbourhood Services
RBC Legal Entity,01/12/2021,4619693,264170,FINEWAYS PROPERTY LTD,Guaranteed Rent Scheme,694.59,Rents,Landlord,STANDARD,5872,KAAA-Directorate of Economic Growth and Neighbourhood Services
RBC Legal Entity,01/12/2021,4619752,264170,FINEWAYS PROPERTY LTD,Guaranteed Rent Scheme,650,Rents,Landlord,STANDARD,5872,KAAA-Directorate of Economic Growth and Neighbourhood Services
RBC Legal Entity,01/12/2021,4619798,264170,FINEWAYS PROPERTY LTD,Guaranteed Rent Scheme,880.53,Rents,Landlord,STANDARD,5872,KAAA-Directorate of Economic Growth and Neighbourhood Services
RBC Legal Entity,01/12/2021,4619804,264170,FINEWAYS PROPERTY LTD,Guaranteed Rent Scheme,694.59,Rents,Landlord,STANDARD,5872,KAAA-Directorate of Economic Growth and Neighbourhood Services
RBC Legal Entity,01/12/2021,4619833,264170,FINEWAYS PROPERTY LTD,Guaranteed Rent Scheme,1388.74,Rents,Landlord,STANDARD,5872,KAAA-Directorate of Economic Growth and Neighbourhood Services
RBC Legal Entity,01/12/2021,4619448,264171,ANDREW BOCTOR,Guaranteed Rent Scheme,880.53,Rents,SUPPLIER,STANDARD,5872,KAAA-Directorate of Economic Growth and Neighbourhood Services
RBC Legal Entity,01/12/2021,4619084,264172,R SLATER ISW,JLT Disbursements,3000,Misc. Legal Expenses,SUPPLIER,STANDARD,2407,LAAA-Directorate of Resources
RBC Legal Entity,01/12/2021,4619457,264173,PATRICK AND VIVIAN NWEKE,Guaranteed Rent Scheme,1006.72,Rents,Landlord,STANDARD,5872,KAAA-Directorate of Economic Growth and Neighbourhood Services
RBC Legal Entity,01/12/2021,4619434,264174,GEORGE AND JANICE BELL,Guaranteed Rent Scheme,1006.72,Rents,SUPPLIER,STANDARD,5872,KAAA-Directorate of Economic Growth and Neighbourhood Services
RBC Legal Entity,01/12/2021,4619849,264174,GEORGE AND JANICE BELL,Guaranteed Rent Scheme,880.53,Rents,SUPPLIER,STANDARD,5872,KAAA-Directorate of Economic Growth and Neighbourhood Services
RBC Legal Entity,01/12/2021,4619451,264175,PHILLIP HILL,Guaranteed Rent Scheme,865.8,Rents,SUPPLIER,STANDARD,5872,KAAA-Directorate of Economic Growth and Neighbourhood Services
RBC Legal Entity,01/12/2021,4619454,264176,ROBERT WATSON & JAMIE HEPBURN,Guaranteed Rent Scheme,694.59,Rents,SUPPLIER,STANDARD,5872,KAAA-Directorate of Economic Growth and Neighbourhood Services
RBC Legal Entity,01/12/2021,4619466,264177,SIMON GROVES,Guaranteed Rent Scheme,600.8,Rents,SUPPLIER,STANDARD,5872,KAAA-Directorate of Economic Growth and Neighbourhood Services
RBC Legal Entity,01/12/2021,4619469,264178,TAIRA CATON,Guaranteed Rent Scheme,880.53,Rents,SUPPLIER,STANDARD,5872,KAAA-Directorate of Economic Growth and Neighbourhood Services
RBC Legal Entity,01/12/2021,4619470,264179,CLIFFORD ALMOND,Guaranteed Rent Scheme,682.98,Rents,SUPPLIER,STANDARD,5872,KAAA-Directorate of Economic Growth and Neighbourhood Services
RBC Legal Entity,01/12/2021,4619761,264179,CLIFFORD ALMOND,Guaranteed Rent Scheme,880.53,Rents,SUPPLIER,STANDARD,5872,KAAA-Directorate of Economic Growth and Neighbourhood Services
RBC Legal Entity,01/12/2021,4619473,264180,TREVOR FITZPATRICK-BROWNE,Guaranteed Rent Scheme,682.98,Rents,SUPPLIER,STANDARD,5872,KAAA-Directorate of Economic Growth and Neighbourhood Services
RBC Legal Entity,01/12/2021,4619314,264181,STEPHEN DORSEY,Guaranteed Rent Scheme,1365.52,Rents,Third Party Supplier,STANDARD,5872,KAAA-Directorate of Economic Growth and Neighbourhood Services
RBC Legal Entity,01/12/2021,4619673,264181,STEPHEN DORSEY,Guaranteed Rent Scheme,694.59,Rents,Third Party Supplier,STANDARD,5872,KAAA-Directorate of Economic Growth and Neighbourhood Services
RBC Legal Entity,01/12/2021,4619702,264181,STEPHEN DORSEY,Guaranteed Rent Scheme,694.59,Rents,Third Party Supplier,STANDARD,5872,KAAA-Directorate of Economic Growth and Neighbourhood Services
RBC Legal Entity,01/12/2021,4619112,264182,MARTYN GRANT,Guaranteed Rent Scheme,694.59,Rents,SUPPLIER,STANDARD,5872,KAAA-Directorate of Economic Growth and Neighbourhood Services
RBC Legal Entity,01/12/2021,4619156,264183,JAY JONES,Guaranteed Rent Scheme,1006.72,Rents,SUPPLIER,STANDARD,5872,KAAA-Directorate of Economic Growth and Neighbourhood Services
RBC Legal Entity,01/12/2021,4619344,264184,KOFI APPAU,Guaranteed Rent Scheme,880.53,Rents,SUPPLIER,STANDARD,5872,KAAA-Directorate of Economic Growth and Neighbourhood Services
RBC Legal Entity,01/12/2021,4619114,264185,MARK & VENERA YOUNG,Guaranteed Rent Scheme,880.53,Rents,SUPPLIER,STANDARD,5872,KAAA-Directorate of Economic Growth and Neighbourhood Services
RBC Legal Entity,01/12/2021,4619297,264185,MARK & VENERA YOUNG,Guaranteed Rent Scheme,880.53,Rents,SUPPLIER,STANDARD,5872,KAAA-Directorate of Economic Growth and Neighbourhood Services
RBC Legal Entity,01/12/2021,4619116,264186,MAYFAIR PROPERTIES,Guaranteed Rent Scheme,880.53,Rents,SUPPLIER,STANDARD,5872,KAAA-Directorate of Economic Growth and Neighbourhood Services
RBC Legal Entity,01/12/2021,4619412,264186,MAYFAIR PROPERTIES,Guaranteed Rent Scheme,1388.74,Rents,SUPPLIER,STANDARD,5872,KAAA-Directorate of Economic Growth and Neighbourhood Services
RBC Legal Entity,01/12/2021,4619574,264186,MAYFAIR PROPERTIES,Guaranteed Rent Scheme,1388.74,Rents,SUPPLIER,STANDARD,5872,KAAA-Directorate of Economic Growth and Neighbourhood Services
RBC Legal Entity,01/12/2021,4612631,264187,DONNA PRICE,JLT Disbursements,1197,Misc. Legal Expenses,SUPPLIER,STANDARD,2407,LAAA-Directorate of Resources
RBC Legal Entity,01/12/2021,4619369,264188,LEE & HANNAH VOCKINS,Guaranteed Rent Scheme,1006.72,Rents,SUPPLIER,STANDARD,5872,KAAA-Directorate of Economic Growth and Neighbourhood Services
RBC Legal Entity,01/12/2021,4619256,264189,JOANNE ASKIN,Guaranteed Rent Scheme,880.53,Rents,SUPPLIER,STANDARD,5872,KAAA-Directorate of Economic Growth and Neighbourhood Services
RBC Legal Entity,01/12/2021,4619622,264190,LISA & MARTIN PERRIN,Guaranteed Rent Scheme,880.53,Rents,SUPPLIER,STANDARD,5872,KAAA-Directorate of Economic Growth and Neighbourhood Services
RBC Legal Entity,01/12/2021,4619584,264191,HADI & MUBARKA MEHTA,Guaranteed Rent Scheme,1006.72,Rents,SUPPLIER,STANDARD,5872,KAAA-Directorate of Economic Growth and Neighbourhood Services
RBC Legal Entity,01/12/2021,4619118,264192,E VAN DER KAMP & S BLAKENEY,Guaranteed Rent Scheme,1006.72,Rents,SUPPLIER,STANDARD,5872,KAAA-Directorate of Economic Growth and Neighbourhood Services
RBC Legal Entity,01/12/2021,4619266,264193,NIGEL & ELIANA SYDES,Guaranteed Rent Scheme,663.08,Rents,SUPPLIER,STANDARD,5872,KAAA-Directorate of Economic Growth and Neighbourhood Services
RBC Legal Entity,01/12/2021,4619506,264194,MITCHELL AND JOANNE TOWNSEND,Guaranteed Rent Scheme,1006.72,Rents,SUPPLIER,STANDARD,5872,KAAA-Directorate of Economic Growth and Neighbourhood Services
RBC Legal Entity,01/12/2021,4619478,264195,MATILDA MANHARDT,Guaranteed Rent Scheme,1006.72,Rents,SUPPLIER,STANDARD,5872,KAAA-Directorate of Economic Growth and Neighbourhood Services
RBC Legal Entity,01/12/2021,4619472,264196,SHIRU WU,Guaranteed Rent Scheme,1006.72,Rents,SUPPLIER,STANDARD,5872,KAAA-Directorate of Economic Growth and Neighbourhood Services
RBC Legal Entity,01/12/2021,4619483,264198,MCM REAL ESTATE VENTURES LTD,Guaranteed Rent Scheme,1388.74,Rents,SUPPLIER,STANDARD,5872,KAAA-Directorate of Economic Growth and Neighbourhood Services
RBC Legal Entity,01/12/2021,4619477,264199,STEPHEN ROSE,Guaranteed Rent Scheme,1388.74,Rents,SUPPLIER,STANDARD,5872,KAAA-Directorate of Economic Growth and Neighbourhood Services
RBC Legal Entity,01/12/2021,4619486,264200,MR RICHARD GRAHAM,Guaranteed Rent Scheme,1006.72,Rents,SUPPLIER,STANDARD,5872,KAAA-Directorate of Economic Growth and Neighbourhood Services
RBC Legal Entity,01/12/2021,4619445,264202,RUKHSANA BUTT,Guaranteed Rent Scheme,880.53,Rents,SUPPLIER,STANDARD,5872,KAAA-Directorate of Economic Growth and Neighbourhood Services
RBC Legal Entity,01/12/2021,4619502,264203,CHILD AND CO,Guaranteed Rent Scheme,880.53,Rents,SUPPLIER,STANDARD,5872,KAAA-Directorate of Economic Growth and Neighbourhood Services
RBC Legal Entity,01/12/2021,4619501,264204,DARYL ALLEYNE,Guaranteed Rent Scheme,694.59,Rents,Direct Payments,STANDARD,5872,KAAA-Directorate of Economic Growth and Neighbourhood Services
RBC Legal Entity,01/12/2021,4619494,264205,JUDRIN PHILLIPS,Guaranteed Rent Scheme,989.91,Rents,SUPPLIER,STANDARD,5872,KAAA-Directorate of Economic Growth and Neighbourhood Services
RBC Legal Entity,01/12/2021,4619496,264206,ALLEN YOUNG,Guaranteed Rent Scheme,682.98,Rents,SUPPLIER,STANDARD,5872,KAAA-Directorate of Economic Growth and Neighbourhood Services
RBC Legal Entity,01/12/2021,4619250,264207,AQSA QURESHI,Guaranteed Rent Scheme,1006.72,Rents,SUPPLIER,STANDARD,5872,KAAA-Directorate of Economic Growth and Neighbourhood Services
RBC Legal Entity,01/12/2021,4619310,264207,AQSA QURESHI,Guaranteed Rent Scheme,880.53,Rents,SUPPLIER,STANDARD,5872,KAAA-Directorate of Economic Growth and Neighbourhood Services
RBC Legal Entity,01/12/2021,4619121,264208,EDWARD BATSON,Guaranteed Rent Scheme,1006.72,Rents,SUPPLIER,STANDARD,5872,KAAA-Directorate of Economic Growth and Neighbourhood Services
RBC Legal Entity,01/12/2021,4619160,264209,MICHELLE BOYLAN,Guaranteed Rent Scheme,1006.72,Rents,SUPPLIER,STANDARD,5872,KAAA-Directorate of Economic Growth and Neighbourhood Services
RBC Legal Entity,01/12/2021,4619624,264210,SHAHIN GULAMALI,Guaranteed Rent Scheme,694.59,Rents,SUPPLIER,STANDARD,5872,KAAA-Directorate of Economic Growth and Neighbourhood Services
RBC Legal Entity,01/12/2021,4619428,264211,JASON METHVEN,Guaranteed Rent Scheme,694.59,Rents,SUPPLIER,STANDARD,5872,KAAA-Directorate of Economic Growth and Neighbourhood Services
RBC Legal Entity,01/12/2021,4619659,264211,JASON METHVEN,Guaranteed Rent Scheme,694.59,Rents,SUPPLIER,STANDARD,5872,KAAA-Directorate of Economic Growth and Neighbourhood Services
RBC Legal Entity,01/12/2021,4619801,264211,JASON METHVEN,Guaranteed Rent Scheme,694.59,Rents,SUPPLIER,STANDARD,5872,KAAA-Directorate of Economic Growth and Neighbourhood Services
RBC Legal Entity,01/12/2021,4619300,264213,NIGEL BISH,Guaranteed Rent Scheme,980.91,Rents,Landlord,STANDARD,5872,KAAA-Directorate of Economic Growth and Neighbourhood Services
RBC Legal Entity,01/12/2021,4619127,264215,MARTIN JOHN PRODGER,Guaranteed Rent Scheme,1388.74,Rents,SUPPLIER,STANDARD,5872,KAAA-Directorate of Economic Growth and Neighbourhood Services
RBC Legal Entity,01/12/2021,4619124,264216,JAMES MILLER,Guaranteed Rent Scheme,880.53,Rents,SUPPLIER,STANDARD,5872,KAAA-Directorate of Economic Growth and Neighbourhood Services
RBC Legal Entity,01/12/2021,4619526,264218,AF PROPERTY LTD,Guaranteed Rent Scheme,1006.72,Rents,Landlord,STANDARD,5872,KAAA-Directorate of Economic Growth and Neighbourhood Services
RBC Legal Entity,01/12/2021,4619487,264221,STRAWBERRY HILL INVESTMENTS,Guaranteed Rent Scheme,682.98,Rents,SUPPLIER,STANDARD,5872,KAAA-Directorate of Economic Growth and Neighbourhood Services
RBC Legal Entity,01/12/2021,4619550,264222,MICHAEL HOLT,Guaranteed Rent Scheme,1388.74,Rents,SUPPLIER,STANDARD,5872,KAAA-Directorate of Economic Growth and Neighbourhood Services
RBC Legal Entity,01/12/2021,4619528,264223,SUCHETA MULLICK,Guaranteed Rent Scheme,880.53,Rents,SUPPLIER,STANDARD,5872,KAAA-Directorate of Economic Growth and Neighbourhood Services
RBC Legal Entity,01/12/2021,4619544,264224,LINDA CARADINE,Guaranteed Rent Scheme,682.98,Rents,SUPPLIER,STANDARD,5872,KAAA-Directorate of Economic Growth and Neighbourhood Services
RBC Legal Entity,01/12/2021,4619507,264225,RAMI MURSI,Guaranteed Rent Scheme,880.53,Rents,SUPPLIER,STANDARD,5872,KAAA-Directorate of Economic Growth and Neighbourhood Services
RBC Legal Entity,01/12/2021,4619534,264226,SUSAN BAKER,Guaranteed Rent Scheme,1388.74,Rents,SUPPLIER,STANDARD,5872,KAAA-Directorate of Economic Growth and Neighbourhood Services
RBC Legal Entity,01/12/2021,4619539,264227,MELODIE CHILD & DANIEL GRIFFITH,Guaranteed Rent Scheme,865.8,Rents,Landlord,STANDARD,5872,KAAA-Directorate of Economic Growth and Neighbourhood Services
RBC Legal Entity,01/12/2021,4619840,264227,MELODIE CHILD & DANIEL GRIFFITH,Guaranteed Rent Scheme,880.53,Rents,Landlord,STANDARD,5872,KAAA-Directorate of Economic Growth and Neighbourhood Services
RBC Legal Entity,01/12/2021,4619546,264228,EURETTA HUTCHINSON,Guaranteed Rent Scheme,865.8,Rents,Landlord,STANDARD,5872,KAAA-Directorate of Economic Growth and Neighbourhood Services
RBC Legal Entity,01/12/2021,4619802,264228,EURETTA HUTCHINSON,Guaranteed Rent Scheme,1006.72,Rents,Landlord,STANDARD,5872,KAAA-Directorate of Economic Growth and Neighbourhood Services
RBC Legal Entity,01/12/2021,4619541,264229,ROSE MENEZES,Guaranteed Rent Scheme,1388.74,Rents,Landlord,STANDARD,5872,KAAA-Directorate of Economic Growth and Neighbourhood Services
RBC Legal Entity,01/12/2021,4619128,264230,SIOBHAN SANCTUARY,Guaranteed Rent Scheme,1365.52,Rents,SUPPLIER,STANDARD,5872,KAAA-Directorate of Economic Growth and Neighbourhood Services
RBC Legal Entity,01/12/2021,4619368,264230,SIOBHAN SANCTUARY,Guaranteed Rent Scheme,961.09,Rents,SUPPLIER,STANDARD,5872,KAAA-Directorate of Economic Growth and Neighbourhood Services
RBC Legal Entity,01/12/2021,4619333,264231,ANDREW WILKINSON,Guaranteed Rent Scheme,880.53,Rents,SUPPLIER,STANDARD,5872,KAAA-Directorate of Economic Growth and Neighbourhood Services
RBC Legal Entity,01/12/2021,4619130,264232,SHING HEUNG,Guaranteed Rent Scheme,694.59,Rents,SUPPLIER,STANDARD,5872,KAAA-Directorate of Economic Growth and Neighbourhood Services
RBC Legal Entity,01/12/2021,4619644,264233,RUTH KINYANJUI,Guaranteed Rent Scheme,880.53,Rents,SUPPLIER,STANDARD,5872,KAAA-Directorate of Economic Growth and Neighbourhood Services
RBC Legal Entity,01/12/2021,4619131,264234,JEREMY SIMMONS & STEFAN WASYLCIW,Guaranteed Rent Scheme,1006.72,Rents,Landlord,STANDARD,5872,KAAA-Directorate of Economic Growth and Neighbourhood Services
RBC Legal Entity,01/12/2021,4619179,264234,JEREMY SIMMONS & STEFAN WASYLCIW,Guaranteed Rent Scheme,694.59,Rents,Landlord,STANDARD,5872,KAAA-Directorate of Economic Growth and Neighbourhood Services
RBC Legal Entity,01/12/2021,4619211,264234,JEREMY SIMMONS & STEFAN WASYLCIW,Guaranteed Rent Scheme,880,Rents,Landlord,STANDARD,5872,KAAA-Directorate of Economic Growth and Neighbourhood Services
RBC Legal Entity,01/12/2021,4619313,264234,JEREMY SIMMONS & STEFAN WASYLCIW,Guaranteed Rent Scheme,880.53,Rents,Landlord,STANDARD,5872,KAAA-Directorate of Economic Growth and Neighbourhood Services
RBC Legal Entity,01/12/2021,4619383,264235,DEEPAK GILL,Guaranteed Rent Scheme,880.53,Rents,SUPPLIER,STANDARD,5872,KAAA-Directorate of Economic Growth and Neighbourhood Services
RBC Legal Entity,01/12/2021,4619586,264235,DEEPAK GILL,Guaranteed Rent Scheme,880.53,Rents,SUPPLIER,STANDARD,5872,KAAA-Directorate of Economic Growth and Neighbourhood Services
RBC Legal Entity,01/12/2021,4619132,264237,MICHAEL & PAULINE MILLER,Guaranteed Rent Scheme,880.53,Rents,SUPPLIER,STANDARD,5872,KAAA-Directorate of Economic Growth and Neighbourhood Services
RBC Legal Entity,01/12/2021,4619133,264239,KAY REEVE,Guaranteed Rent Scheme,1006.72,Rents,SUPPLIER,STANDARD,5872,KAAA-Directorate of Economic Growth and Neighbourhood Services
RBC Legal Entity,01/12/2021,4619208,264240,MIKE COTTER,Guaranteed Rent Scheme,1388.74,Rents,SUPPLIER,STANDARD,5872,KAAA-Directorate of Economic Growth and Neighbourhood Services
RBC Legal Entity,01/12/2021,4618940,264241,ETHICAL READING,ASC Senior Management Team,7470,Project Fees,Third Party Supplier,STANDARD,5700,JAAA-Directorate of Social Care and Health Services
RBC Legal Entity,01/12/2021,4619548,264242,GRAHAM BYRNE,Guaranteed Rent Scheme,865.8,Rents,SUPPLIER,STANDARD,5872,KAAA-Directorate of Economic Growth and Neighbourhood Services
RBC Legal Entity,01/12/2021,4619549,264243,KRISTINE ALLEN,Guaranteed Rent Scheme,989.91,Rents,SUPPLIER,STANDARD,5872,KAAA-Directorate of Economic Growth and Neighbourhood Services
RBC Legal Entity,01/12/2021,4619556,264245,EDWARD MCGREEVY,Guaranteed Rent Scheme,682.98,Rents,SUPPLIER,STANDARD,5872,KAAA-Directorate of Economic Growth and Neighbourhood Services
RBC Legal Entity,01/12/2021,4619567,264246,SHARON AND ROYDEL ROBINSON,Guaranteed Rent Scheme,1006.72,Rents,SUPPLIER,STANDARD,5872,KAAA-Directorate of Economic Growth and Neighbourhood Services
RBC Legal Entity,01/12/2021,4619559,264247,TONI HENDERSON,Guaranteed Rent Scheme,694.59,Rents,SUPPLIER,STANDARD,5872,KAAA-Directorate of Economic Growth and Neighbourhood Services
RBC Legal Entity,01/12/2021,4619560,264247,TONI HENDERSON,Guaranteed Rent Scheme,694.59,Rents,SUPPLIER,STANDARD,5872,KAAA-Directorate of Economic Growth and Neighbourhood Services
RBC Legal Entity,01/12/2021,4619562,264248,MARIANNE IBRAHIM,Guaranteed Rent Scheme,1006.72,Rents,Landlord,STANDARD,5872,KAAA-Directorate of Economic Growth and Neighbourhood Services
RBC Legal Entity,01/12/2021,4619561,264249,JULIE HOGAN,Guaranteed Rent Scheme,682.98,Rents,SUPPLIER,STANDARD,5872,KAAA-Directorate of Economic Growth and Neighbourhood Services
RBC Legal Entity,01/12/2021,4619565,264250,PETER SMITH,Guaranteed Rent Scheme,694.59,Rents,SUPPLIER,STANDARD,5872,KAAA-Directorate of Economic Growth and Neighbourhood Services
RBC Legal Entity,01/12/2021,4619790,264251,MISCHA TYTEL,Guaranteed Rent Scheme,694.59,Rents,SUPPLIER,STANDARD,5872,KAAA-Directorate of Economic Growth and Neighbourhood Services
RBC Legal Entity,01/12/2021,4619581,264252,SUMANA SEEBORUTH,Guaranteed Rent Scheme,1006.72,Rents,SUPPLIER,STANDARD,5872,KAAA-Directorate of Economic Growth and Neighbourhood Services
RBC Legal Entity,01/12/2021,4619585,264253,ANDREW BYNOE AND DENNY LEWIS-BYNOE,Guaranteed Rent Scheme,880.53,Rents,SUPPLIER,STANDARD,5872,KAAA-Directorate of Economic Growth and Neighbourhood Services
RBC Legal Entity,01/12/2021,4619135,264254,HANNAH WATSON-TOFT,Guaranteed Rent Scheme,1006.72,Rents,SUPPLIER,STANDARD,5872,KAAA-Directorate of Economic Growth and Neighbourhood Services
RBC Legal Entity,01/12/2021,4619174,264254,HANNAH WATSON-TOFT,Guaranteed Rent Scheme,1006.72,Rents,SUPPLIER,STANDARD,5872,KAAA-Directorate of Economic Growth and Neighbourhood Services
RBC Legal Entity,01/12/2021,4611090,264255,ELEANOR HOWARD,JLT Disbursements,600,Misc. Legal Expenses,INDIVIDUAL,STANDARD,2407,LAAA-Directorate of Resources
RBC Legal Entity,01/12/2021,4619215,264256,BRIJINDER & SUNITA ARJUNA,Guaranteed Rent Scheme,880.53,Rents,SUPPLIER,STANDARD,5872,KAAA-Directorate of Economic Growth and Neighbourhood Services
RBC Legal Entity,01/12/2021,4619141,264257,POLLY & NIGEL TUCKER,Guaranteed Rent Scheme,880.53,Rents,SUPPLIER,STANDARD,5872,KAAA-Directorate of Economic Growth and Neighbourhood Services
RBC Legal Entity,01/12/2021,4619640,264257,POLLY & NIGEL TUCKER,Guaranteed Rent Scheme,880.53,Rents,SUPPLIER,STANDARD,5872,KAAA-Directorate of Economic Growth and Neighbourhood Services
RBC Legal Entity,01/12/2021,4619142,264258,LISA DE BORJA,Guaranteed Rent Scheme,880.53,Rents,SUPPLIER,STANDARD,5872,KAAA-Directorate of Economic Growth and Neighbourhood Services
RBC Legal Entity,01/12/2021,4619513,264258,LISA DE BORJA,Guaranteed Rent Scheme,880.53,Rents,SUPPLIER,STANDARD,5872,KAAA-Directorate of Economic Growth and Neighbourhood Services
RBC Legal Entity,01/12/2021,4619203,264259,JEMP LLP,Guaranteed Rent Scheme,880.53,Rents,Landlord,STANDARD,5872,KAAA-Directorate of Economic Growth and Neighbourhood Services
RBC Legal Entity,01/12/2021,4619227,264260,CLIFF WALLER,Guaranteed Rent Scheme,816.1,Rents,SUPPLIER,STANDARD,5872,KAAA-Directorate of Economic Growth and Neighbourhood Services
RBC Legal Entity,01/12/2021,4619140,264261,CHRISTINE O'NEIL,Guaranteed Rent Scheme,840.58,Rents,SUPPLIER,STANDARD,5872,KAAA-Directorate of Economic Growth and Neighbourhood Services
RBC Legal Entity,01/12/2021,4619151,264262,ROSALIND SIMMONS & POLLY TUCKER,Guaranteed Rent Scheme,880.53,Rents,SUPPLIER,STANDARD,5872,KAAA-Directorate of Economic Growth and Neighbourhood Services
RBC Legal Entity,01/12/2021,4619218,264263,MEDACCO LTD,Guaranteed Rent Scheme,694.59,Rents,Landlord,STANDARD,5872,KAAA-Directorate of Economic Growth and Neighbourhood Services
RBC Legal Entity,01/12/2021,4619372,264263,MEDACCO LTD,Guaranteed Rent Scheme,694.59,Rents,Landlord,STANDARD,5872,KAAA-Directorate of Economic Growth and Neighbourhood Services
RBC Legal Entity,01/12/2021,4619639,264263,MEDACCO LTD,Guaranteed Rent Scheme,694.59,Rents,Landlord,STANDARD,5872,KAAA-Directorate of Economic Growth and Neighbourhood Services
RBC Legal Entity,01/12/2021,4619713,264263,MEDACCO LTD,Guaranteed Rent Scheme,694.59,Rents,Landlord,STANDARD,5872,KAAA-Directorate of Economic Growth and Neighbourhood Services
RBC Legal Entity,01/12/2021,4619853,264263,MEDACCO LTD,Guaranteed Rent Scheme,694.59,Rents,Landlord,STANDARD,5872,KAAA-Directorate of Economic Growth and Neighbourhood Services
RBC Legal Entity,01/12/2021,4619879,264263,MEDACCO LTD,Guaranteed Rent Scheme,694.59,Rents,Landlord,STANDARD,5872,KAAA-Directorate of Economic Growth and Neighbourhood Services
RBC Legal Entity,01/12/2021,4619292,264264,PROSPECT HOLDINGS (READING) LTD,Guaranteed Rent Scheme,694.59,Rents,Landlord,STANDARD,5872,KAAA-Directorate of Economic Growth and Neighbourhood Services
RBC Legal Entity,01/12/2021,4619293,264264,PROSPECT HOLDINGS (READING) LTD,Guaranteed Rent Scheme,694.59,Rents,Landlord,STANDARD,5872,KAAA-Directorate of Economic Growth and Neighbourhood Services
RBC Legal Entity,01/12/2021,4619294,264264,PROSPECT HOLDINGS (READING) LTD,Guaranteed Rent Scheme,694.59,Rents,Landlord,STANDARD,5872,KAAA-Directorate of Economic Growth and Neighbourhood Services
RBC Legal Entity,01/12/2021,4619295,264264,PROSPECT HOLDINGS (READING) LTD,Guaranteed Rent Scheme,694.59,Rents,Landlord,STANDARD,5872,KAAA-Directorate of Economic Growth and Neighbourhood Services
RBC Legal Entity,01/12/2021,4619638,264265,PRIYA SAJU KANNATH,Guaranteed Rent Scheme,1006.72,Rents,SUPPLIER,STANDARD,5872,KAAA-Directorate of Economic Growth and Neighbourhood Services
RBC Legal Entity,01/12/2021,4619577,264266,RICHARD GRAHAM AND EMMA GRAHAM,Guaranteed Rent Scheme,880.53,Rents,SUPPLIER,STANDARD,5872,KAAA-Directorate of Economic Growth and Neighbourhood Services
RBC Legal Entity,01/12/2021,4619580,264267,ADAM PERRYMAN,Guaranteed Rent Scheme,694.59,Rents,SUPPLIER,STANDARD,5872,KAAA-Directorate of Economic Growth and Neighbourhood Services
RBC Legal Entity,01/12/2021,4619607,264268,HOMES COUNTRYWIDE LTD,Guaranteed Rent Scheme,1388.74,Rents,SUPPLIER,STANDARD,5872,KAAA-Directorate of Economic Growth and Neighbourhood Services
RBC Legal Entity,01/12/2021,4619497,264269,GEORGI PRODANOV,Guaranteed Rent Scheme,880.53,Rents,SUPPLIER,STANDARD,5872,KAAA-Directorate of Economic Growth and Neighbourhood Services
RBC Legal Entity,01/12/2021,4619636,264270,BHARAT & ANANT THAKRAR,Guaranteed Rent Scheme,880.53,Rents,SUPPLIER,STANDARD,5872,KAAA-Directorate of Economic Growth and Neighbourhood Services
RBC Legal Entity,01/12/2021,4619657,264271,ANDREW SEARS,Guaranteed Rent Scheme,880.53,Rents,SUPPLIER,STANDARD,5872,KAAA-Directorate of Economic Growth and Neighbourhood Services
RBC Legal Entity,01/12/2021,4619613,264272,DEBORAH COURTNAGE,Guaranteed Rent Scheme,1006.72,Rents,SUPPLIER,STANDARD,5872,KAAA-Directorate of Economic Growth and Neighbourhood Services
RBC Legal Entity,01/12/2021,4619592,264273,MARC VAN ACKER + FABRICE GHIOTTO,Guaranteed Rent Scheme,694.59,Rents,SUPPLIER,STANDARD,5872,KAAA-Directorate of Economic Growth and Neighbourhood Services
RBC Legal Entity,01/12/2021,4619590,264274,ZOE WAREHAM,Guaranteed Rent Scheme,694.59,Rents,SUPPLIER,STANDARD,5872,KAAA-Directorate of Economic Growth and Neighbourhood Services
RBC Legal Entity,01/12/2021,4619787,264275,SARDAR HAYAT,Guaranteed Rent Scheme,1388.74,Rents,SUPPLIER,STANDARD,5872,KAAA-Directorate of Economic Growth and Neighbourhood Services
RBC Legal Entity,01/12/2021,4619603,264276,GEMMA & JOE BEAZLEY,Guaranteed Rent Scheme,880.53,Rents,SUPPLIER,STANDARD,5872,KAAA-Directorate of Economic Growth and Neighbourhood Services
RBC Legal Entity,01/12/2021,4619493,264278,MEAD PROPERTY MANAGEMENT,Guaranteed Rent Scheme,865.8,Rents,SUPPLIER,STANDARD,5872,KAAA-Directorate of Economic Growth and Neighbourhood Services
RBC Legal Entity,01/12/2021,4619146,264279,GARRY & TERESA SOUTHERN,Guaranteed Rent Scheme,840.58,Rents,Landlord,STANDARD,5872,KAAA-Directorate of Economic Growth and Neighbourhood Services
RBC Legal Entity,01/12/2021,4619164,264280,TIMOTHY LANGDALE,Guaranteed Rent Scheme,1388.74,Rents,SUPPLIER,STANDARD,5872,KAAA-Directorate of Economic Growth and Neighbourhood Services
RBC Legal Entity,01/12/2021,4619150,264281,VICTORIA EDWARDS,Guaranteed Rent Scheme,663.08,Rents,SUPPLIER,STANDARD,5872,KAAA-Directorate of Economic Growth and Neighbourhood Services
RBC Legal Entity,01/12/2021,4619147,264282,PAUL & BRENDA DOYLE,Guaranteed Rent Scheme,961.09,Rents,SUPPLIER,STANDARD,5872,KAAA-Directorate of Economic Growth and Neighbourhood Services
RBC Legal Entity,01/12/2021,4619149,264283,JAMES & TERESA WARD,Guaranteed Rent Scheme,1006.72,Rents,SUPPLIER,STANDARD,5872,KAAA-Directorate of Economic Growth and Neighbourhood Services
RBC Legal Entity,01/12/2021,4619184,264284,ANTHONY ROE,Guaranteed Rent Scheme,1365.52,Rents,SUPPLIER,STANDARD,5872,KAAA-Directorate of Economic Growth and Neighbourhood Services
RBC Legal Entity,01/12/2021,4619316,264284,ANTHONY ROE,Guaranteed Rent Scheme,663.08,Rents,SUPPLIER,STANDARD,5872,KAAA-Directorate of Economic Growth and Neighbourhood Services
RBC Legal Entity,01/12/2021,4619799,264284,ANTHONY ROE,Guaranteed Rent Scheme,880.53,Rents,SUPPLIER,STANDARD,5872,KAAA-Directorate of Economic Growth and Neighbourhood Services
RBC Legal Entity,01/12/2021,4619284,264285,DR ALAN BULLOCK,Guaranteed Rent Scheme,880.53,Rents,SUPPLIER,STANDARD,5872,KAAA-Directorate of Economic Growth and Neighbourhood Services
RBC Legal Entity,01/12/2021,4619153,264286,MARK WATTON,Guaranteed Rent Scheme,816.1,Rents,SUPPLIER,STANDARD,5872,KAAA-Directorate of Economic Growth and Neighbourhood Services
RBC Legal Entity,01/12/2021,4619152,264287,JASON & SCOTT LONDON,Guaranteed Rent Scheme,816.1,Rents,SUPPLIER,STANDARD,5872,KAAA-Directorate of Economic Growth and Neighbourhood Services
RBC Legal Entity,01/12/2021,4619161,264288,PETER DAY,Guaranteed Rent Scheme,694.59,Rents,SUPPLIER,STANDARD,5872,KAAA-Directorate of Economic Growth and Neighbourhood Services
RBC Legal Entity,01/12/2021,4619281,264288,PETER DAY,Guaranteed Rent Scheme,694.59,Rents,SUPPLIER,STANDARD,5872,KAAA-Directorate of Economic Growth and Neighbourhood Services
RBC Legal Entity,01/12/2021,4619158,264289,OAKCOT LTD,Guaranteed Rent Scheme,663.08,Rents,Third Party Supplier,STANDARD,5872,KAAA-Directorate of Economic Growth and Neighbourhood Services
RBC Legal Entity,01/12/2021,4619808,264289,OAKCOT LTD,Guaranteed Rent Scheme,880.53,Rents,Third Party Supplier,STANDARD,5872,KAAA-Directorate of Economic Growth and Neighbourhood Services
RBC Legal Entity,01/12/2021,4619155,264290,RAVI MISHRA,Guaranteed Rent Scheme,1388.74,Rents,SUPPLIER,STANDARD,5872,KAAA-Directorate of Economic Growth and Neighbourhood Services
RBC Legal Entity,01/12/2021,4619604,264291,SYLVIA AND MICHAEL GEEVES,Guaranteed Rent Scheme,1006.72,Rents,SUPPLIER,STANDARD,5872,KAAA-Directorate of Economic Growth and Neighbourhood Services
RBC Legal Entity,01/12/2021,4619625,264292,KANWALBIR GILL,Guaranteed Rent Scheme,880.53,Rents,SUPPLIER,STANDARD,5872,KAAA-Directorate of Economic Growth and Neighbourhood Services
RBC Legal Entity,01/12/2021,4619614,264294,QUEEN VICTORIA INSTITUTE,Guaranteed Rent Scheme,694.59,Rents,Landlord,STANDARD,5872,KAAA-Directorate of Economic Growth and Neighbourhood Services
RBC Legal Entity,01/12/2021,4619809,264295,SATISH KOCHHAR,Guaranteed Rent Scheme,694.59,Rents,Direct Payments,STANDARD,5872,KAAA-Directorate of Economic Growth and Neighbourhood Services
RBC Legal Entity,01/12/2021,4619615,264296,KAREN O'LEARY,Guaranteed Rent Scheme,880.53,Rents,SUPPLIER,STANDARD,5872,KAAA-Directorate of Economic Growth and Neighbourhood Services
RBC Legal Entity,01/12/2021,4619632,264297,RATNA GHOSH,Guaranteed Rent Scheme,880.53,Rents,SUPPLIER,STANDARD,5872,KAAA-Directorate of Economic Growth and Neighbourhood Services
RBC Legal Entity,01/12/2021,4619616,264298,RAJENDRA SHAH,Guaranteed Rent Scheme,880.53,Rents,SUPPLIER,STANDARD,5872,KAAA-Directorate of Economic Growth and Neighbourhood Services
RBC Legal Entity,01/12/2021,4619387,264300,JOSEPH SESAY,Guaranteed Rent Scheme,1006.72,Rents,SUPPLIER,STANDARD,5872,KAAA-Directorate of Economic Growth and Neighbourhood Services
RBC Legal Entity,01/12/2021,4619617,264301,CHRISTOPHER DEAN,Guaranteed Rent Scheme,694.59,Rents,SUPPLIER,STANDARD,5872,KAAA-Directorate of Economic Growth and Neighbourhood Services
RBC Legal Entity,01/12/2021,4619641,264302,WILLIAMS PROPERTY PARTNERSHIP,Guaranteed Rent Scheme,880.53,Rents,SUPPLIER,STANDARD,5872,KAAA-Directorate of Economic Growth and Neighbourhood Services
RBC Legal Entity,01/12/2021,4619662,264303,GILLS ESTATES,Guaranteed Rent Scheme,694.59,Rents,Third Party Supplier,STANDARD,5872,KAAA-Directorate of Economic Growth and Neighbourhood Services
RBC Legal Entity,01/12/2021,4613986,264305,URBAN PLACE LAB LTD,Road Resurfacing,24950,Contractors,SUPPLIER,STANDARD,8870,ZZZC-Capital
RBC Legal Entity,01/12/2021,4619175,264306,PRODATA SYSTEMS LTD,Guaranteed Rent Scheme,865.8,Rents,Landlord,STANDARD,5872,KAAA-Directorate of Economic Growth and Neighbourhood Services
RBC Legal Entity,01/12/2021,4619393,264306,PRODATA SYSTEMS LTD,Guaranteed Rent Scheme,880.53,Rents,Landlord,STANDARD,5872,KAAA-Directorate of Economic Growth and Neighbourhood Services
RBC Legal Entity,01/12/2021,4619694,264307,PATRICK ARTWELL,Guaranteed Rent Scheme,1006.72,Rents,Landlord,STANDARD,5872,KAAA-Directorate of Economic Growth and Neighbourhood Services
RBC Legal Entity,01/12/2021,4619162,264308,EUROCARB LIMITED,Guaranteed Rent Scheme,880.53,Rents,SUPPLIER,STANDARD,5872,KAAA-Directorate of Economic Growth and Neighbourhood Services
RBC Legal Entity,01/12/2021,4619504,264309,DR FARLEY FERNANDO,Guaranteed Rent Scheme,865.8,Rents,Direct Payments,STANDARD,5872,KAAA-Directorate of Economic Growth and Neighbourhood Services
RBC Legal Entity,01/12/2021,4619165,264310,GEORGE HALLMEY,Guaranteed Rent Scheme,880.53,Rents,SUPPLIER,STANDARD,5872,KAAA-Directorate of Economic Growth and Neighbourhood Services
RBC Legal Entity,01/12/2021,4619186,264311,FRANK & GARY HOPE,Guaranteed Rent Scheme,880.53,Rents,SUPPLIER,STANDARD,5872,KAAA-Directorate of Economic Growth and Neighbourhood Services
RBC Legal Entity,01/12/2021,4619677,264311,FRANK & GARY HOPE,Guaranteed Rent Scheme,694.59,Rents,SUPPLIER,STANDARD,5872,KAAA-Directorate of Economic Growth and Neighbourhood Services
RBC Legal Entity,01/12/2021,4619767,264311,FRANK & GARY HOPE,Guaranteed Rent Scheme,880.53,Rents,SUPPLIER,STANDARD,5872,KAAA-Directorate of Economic Growth and Neighbourhood Services
RBC Legal Entity,01/12/2021,4619851,264311,FRANK & GARY HOPE,Guaranteed Rent Scheme,694.59,Rents,SUPPLIER,STANDARD,5872,KAAA-Directorate of Economic Growth and Neighbourhood Services
RBC Legal Entity,01/12/2021,4619167,264312,MAUREEN WHITCHER,Guaranteed Rent Scheme,961.09,Rents,SUPPLIER,STANDARD,5872,KAAA-Directorate of Economic Growth and Neighbourhood Services
RBC Legal Entity,01/12/2021,4619240,264313,SUMREEN SHEIKH,Guaranteed Rent Scheme,880.53,Rents,SUPPLIER,STANDARD,5872,KAAA-Directorate of Economic Growth and Neighbourhood Services
RBC Legal Entity,01/12/2021,4619170,264314,ROY & JANET SIMMONDS,Guaranteed Rent Scheme,1388.74,Rents,SUPPLIER,STANDARD,5872,KAAA-Directorate of Economic Growth and Neighbourhood Services
RBC Legal Entity,01/12/2021,4619168,264316,M.S PROPERTY LTD,Guaranteed Rent Scheme,1365.52,Rents,SUPPLIER,STANDARD,5872,KAAA-Directorate of Economic Growth and Neighbourhood Services
RBC Legal Entity,01/12/2021,4619202,264317,ALLAN KEW,Guaranteed Rent Scheme,694.59,Rents,SUPPLIER,STANDARD,5872,KAAA-Directorate of Economic Growth and Neighbourhood Services
RBC Legal Entity,01/12/2021,4619287,264317,ALLAN KEW,Guaranteed Rent Scheme,694.59,Rents,SUPPLIER,STANDARD,5872,KAAA-Directorate of Economic Growth and Neighbourhood Services
RBC Legal Entity,01/12/2021,4619419,264317,ALLAN KEW,Guaranteed Rent Scheme,694.59,Rents,SUPPLIER,STANDARD,5872,KAAA-Directorate of Economic Growth and Neighbourhood Services
RBC Legal Entity,01/12/2021,4619661,264318,VOKE PROPERTIES,Guaranteed Rent Scheme,694.59,Rents,Landlord,STANDARD,5872,KAAA-Directorate of Economic Growth and Neighbourhood Services
RBC Legal Entity,01/12/2021,4619663,264319,ENID AND LYNDON MOLLYNEAUX,Guaranteed Rent Scheme,1388.74,Rents,Landlord,STANDARD,5872,KAAA-Directorate of Economic Growth and Neighbourhood Services
RBC Legal Entity,01/12/2021,4619172,264320,BALVER SINGH,Guaranteed Rent Scheme,1388.74,Rents,Landlord,STANDARD,5872,KAAA-Directorate of Economic Growth and Neighbourhood Services
RBC Legal Entity,01/12/2021,4619674,264322,MICHAEL JONES AND MARY JONES,Guaranteed Rent Scheme,1388.74,Rents,Landlord,STANDARD,5872,KAAA-Directorate of Economic Growth and Neighbourhood Services
RBC Legal Entity,01/12/2021,4619696,264323,CHARLES SINCLAIR LTD,Guaranteed Rent Scheme,880.53,Rents,Landlord,STANDARD,5872,KAAA-Directorate of Economic Growth and Neighbourhood Services
RBC Legal Entity,01/12/2021,4619697,264323,CHARLES SINCLAIR LTD,Guaranteed Rent Scheme,694.59,Rents,Landlord,STANDARD,5872,KAAA-Directorate of Economic Growth and Neighbourhood Services
RBC Legal Entity,01/12/2021,4619682,264324,MARTIN BROWN,Guaranteed Rent Scheme,880.53,Rents,Landlord,STANDARD,5872,KAAA-Directorate of Economic Growth and Neighbourhood Services
RBC Legal Entity,01/12/2021,4619695,264325,LAWRENCE TAYLOR,Guaranteed Rent Scheme,880.53,Rents,Landlord,STANDARD,5872,KAAA-Directorate of Economic Growth and Neighbourhood Services
RBC Legal Entity,01/12/2021,4619685,264326,LANGHAMS PARTNERSHIP LTD,Guaranteed Rent Scheme,880.53,Rents,Landlord,STANDARD,5872,KAAA-Directorate of Economic Growth and Neighbourhood Services
RBC Legal Entity,01/12/2021,4619692,264326,LANGHAMS PARTNERSHIP LTD,Guaranteed Rent Scheme,880.53,Rents,Landlord,STANDARD,5872,KAAA-Directorate of Economic Growth and Neighbourhood Services
RBC Legal Entity,01/12/2021,4619836,264326,LANGHAMS PARTNERSHIP LTD,Guaranteed Rent Scheme,694.59,Rents,Landlord,STANDARD,5872,KAAA-Directorate of Economic Growth and Neighbourhood Services
RBC Legal Entity,01/12/2021,4619699,264327,JOHN AND JEAN MEIGHEN,Guaranteed Rent Scheme,694.59,Rents,Landlord,STANDARD,5872,KAAA-Directorate of Economic Growth and Neighbourhood Services
RBC Legal Entity,01/12/2021,4619807,264327,JOHN AND JEAN MEIGHEN,Guaranteed Rent Scheme,694.59,Rents,Landlord,STANDARD,5872,KAAA-Directorate of Economic Growth and Neighbourhood Services
RBC Legal Entity,01/12/2021,4610747,264328,TRASH UK LIMITED,Fleet Management,3600,Vehicle Spot Hire,Third Party Supplier,STANDARD,4552,KAAA-Directorate of Economic Growth and Neighbourhood Services
RBC Legal Entity,01/12/2021,4619700,264329,ALKA BAHUGUNA,Guaranteed Rent Scheme,880.53,Rents,Landlord,STANDARD,5872,KAAA-Directorate of Economic Growth and Neighbourhood Services
RBC Legal Entity,01/12/2021,4612860,264330,MARTIN CONWAY,Bed and Breakfast,630,Rents,SUPPLIER,STANDARD,5871,KAAA-Directorate of Economic Growth and Neighbourhood Services
RBC Legal Entity,01/12/2021,4610995,264331,GLASDON GROUP,Strategic Transport & Concessionary Fares,117.2,TPP to Others,SUPPLIER,STANDARD,4726,KAAA-Directorate of Economic Growth and Neighbourhood Services
RBC Legal Entity,01/12/2021,4610995,264331,GLASDON GROUP,Strategic Transport & Concessionary Fares,983,TPP to Others,SUPPLIER,STANDARD,4726,KAAA-Directorate of Economic Growth and Neighbourhood Services
RBC Legal Entity,01/12/2021,4618354,264332,ACTIVE ASSISTANCE,PS Acquired Community Services,952.83,Purchased Care,SUPPLIER,STANDARD,5771,JAAA-Directorate of Social Care and Health Services
RBC Legal Entity,01/12/2021,4618355,264332,ACTIVE ASSISTANCE,PS Acquired Community Services,634.34,Purchased Care,SUPPLIER,STANDARD,5771,JAAA-Directorate of Social Care and Health Services
RBC Legal Entity,01/12/2021,4613293,264333,BIDVEST FOODSERVICE (BIDFOOD),Hexagon Catering,31.05,Purchases - Stock Provisions,SUPPLIER,STANDARD,1241,KAAA-Directorate of Economic Growth and Neighbourhood Services
RBC Legal Entity,01/12/2021,4613293,264333,BIDVEST FOODSERVICE (BIDFOOD),Hexagon Catering,749.99,Purchases - Stock Provisions,SUPPLIER,STANDARD,1241,KAAA-Directorate of Economic Growth and Neighbourhood Services
RBC Legal Entity,01/12/2021,4613068,264334,CAPITA BUSINESS SERVICES LTD,Revenues & Benefits Systems,1215,TPP  Contract,Third Party Supplier,STANDARD,2266,LAAA-Directorate of Resources
RBC Legal Entity,01/12/2021,4619475,264335,JOHN MAYNARD,Guaranteed Rent Scheme,865.8,Rents,SUPPLIER,STANDARD,5872,KAAA-Directorate of Economic Growth and Neighbourhood Services
RBC Legal Entity,01/12/2021,4619814,264335,JOHN MAYNARD,Guaranteed Rent Scheme,694.59,Rents,SUPPLIER,STANDARD,5872,KAAA-Directorate of Economic Growth and Neighbourhood Services
RBC Legal Entity,01/12/2021,4619452,264336,BERYL BANISTER,Guaranteed Rent Scheme,880.53,Rents,SUPPLIER,STANDARD,5872,KAAA-Directorate of Economic Growth and Neighbourhood Services
RBC Legal Entity,01/12/2021,4619185,264337,WINKWORTH ESTATE AGENTS,Guaranteed Rent Scheme,694.59,Rents,SUPPLIER,STANDARD,5872,KAAA-Directorate of Economic Growth and Neighbourhood Services
RBC Legal Entity,01/12/2021,4619491,264337,WINKWORTH ESTATE AGENTS,Guaranteed Rent Scheme,896,Rents,SUPPLIER,STANDARD,5872,KAAA-Directorate of Economic Growth and Neighbourhood Services
RBC Legal Entity,01/12/2021,4619654,264337,WINKWORTH ESTATE AGENTS,Guaranteed Rent Scheme,694.59,Rents,SUPPLIER,STANDARD,5872,KAAA-Directorate of Economic Growth and Neighbourhood Services
RBC Legal Entity,01/12/2021,4619171,264338,MOHAMMED S AHMED,Guaranteed Rent Scheme,1388.74,Rents,SUPPLIER,STANDARD,5872,KAAA-Directorate of Economic Growth and Neighbourhood Services
RBC Legal Entity,01/12/2021,4619500,264339,AMAR AZIZ,Guaranteed Rent Scheme,682.98,Rents,SUPPLIER,STANDARD,5872,KAAA-Directorate of Economic Growth and Neighbourhood Services
RBC Legal Entity,01/12/2021,4619524,264339,AMAR AZIZ,Guaranteed Rent Scheme,682.98,Rents,SUPPLIER,STANDARD,5872,KAAA-Directorate of Economic Growth and Neighbourhood Services
RBC Legal Entity,01/12/2021,4619676,264339,AMAR AZIZ,Guaranteed Rent Scheme,694.59,Rents,SUPPLIER,STANDARD,5872,KAAA-Directorate of Economic Growth and Neighbourhood Services
RBC Legal Entity,01/12/2021,4619671,264340,MISS Y C FOSSEY & MR G LUBBOCK,Guaranteed Rent Scheme,1006.72,Rents,Third Party Supplier,STANDARD,5872,KAAA-Directorate of Economic Growth and Neighbourhood Services
RBC Legal Entity,01/12/2021,4619777,264341,ELLEN TOGHER,Guaranteed Rent Scheme,694.59,Rents,SUPPLIER,STANDARD,5872,KAAA-Directorate of Economic Growth and Neighbourhood Services
RBC Legal Entity,01/12/2021,4619178,264342,NORTHWOOD READING,Guaranteed Rent Scheme,663.08,Rents,Landlord,STANDARD,5872,KAAA-Directorate of Economic Growth and Neighbourhood Services
RBC Legal Entity,01/12/2021,4619258,264342,NORTHWOOD READING,Guaranteed Rent Scheme,694.59,Rents,Landlord,STANDARD,5872,KAAA-Directorate of Economic Growth and Neighbourhood Services
RBC Legal Entity,01/12/2021,4619439,264342,NORTHWOOD READING,Guaranteed Rent Scheme,865.8,Rents,Landlord,STANDARD,5872,KAAA-Directorate of Economic Growth and Neighbourhood Services
RBC Legal Entity,01/12/2021,4619815,264342,NORTHWOOD READING,Guaranteed Rent Scheme,600,Rents,Landlord,STANDARD,5872,KAAA-Directorate of Economic Growth and Neighbourhood Services
RBC Legal Entity,01/12/2021,4619545,264343,EDMUND AND MARGARET ATKINSON ,Guaranteed Rent Scheme,865.8,Rents,SUPPLIER,STANDARD,5872,KAAA-Directorate of Economic Growth and Neighbourhood Services
RBC Legal Entity,01/12/2021,4619800,264344,BOYD RANWELL,Guaranteed Rent Scheme,1006.72,Rents,Landlord,STANDARD,5872,KAAA-Directorate of Economic Growth and Neighbourhood Services
RBC Legal Entity,01/12/2021,4619182,264345,ALEXANDER & YAS BATCHELOR,Guaranteed Rent Scheme,694.59,Rents,SUPPLIER,STANDARD,5872,KAAA-Directorate of Economic Growth and Neighbourhood Services
RBC Legal Entity,01/12/2021,4619370,264346,AMANDA COLLINS,Guaranteed Rent Scheme,880.53,Rents,SUPPLIER,STANDARD,5872,KAAA-Directorate of Economic Growth and Neighbourhood Services
RBC Legal Entity,01/12/2021,4619706,264347,MUHAMMAD USMAN DAR AND FARAH USMAN DAR,Guaranteed Rent Scheme,880.53,Rents,Landlord,STANDARD,5872,KAAA-Directorate of Economic Growth and Neighbourhood Services
RBC Legal Entity,01/12/2021,4619719,264348,CHRISTOPHER EDWARD JORDAN,Guaranteed Rent Scheme,1006.72,Rents,Landlord,STANDARD,5872,KAAA-Directorate of Economic Growth and Neighbourhood Services
RBC Legal Entity,01/12/2021,4619712,264349,RABIA BUTT,Guaranteed Rent Scheme,880.53,Rents,Landlord,STANDARD,5872,KAAA-Directorate of Economic Growth and Neighbourhood Services
RBC Legal Entity,01/12/2021,4619742,264350,LOLA MONICA SMITH,Guaranteed Rent Scheme,694.59,Rents,Landlord,STANDARD,5872,KAAA-Directorate of Economic Growth and Neighbourhood Services
RBC Legal Entity,01/12/2021,4619733,264351,JEFFREY UNSWORTH AND NEENA PATEL,Guaranteed Rent Scheme,880.53,Rents,Landlord,STANDARD,5872,KAAA-Directorate of Economic Growth and Neighbourhood Services
RBC Legal Entity,01/12/2021,4619716,264353,SPENCER CHAPLIN,Guaranteed Rent Scheme,1006.72,Rents,Landlord,STANDARD,5872,KAAA-Directorate of Economic Growth and Neighbourhood Services
RBC Legal Entity,01/12/2021,4619725,264354,JASVIR SINGH,Guaranteed Rent Scheme,880.53,Rents,Landlord,STANDARD,5872,KAAA-Directorate of Economic Growth and Neighbourhood Services
RBC Legal Entity,01/12/2021,4619731,264355,SIMON O'BRIEN,Guaranteed Rent Scheme,1006.72,Rents,Landlord,STANDARD,5872,KAAA-Directorate of Economic Growth and Neighbourhood Services
RBC Legal Entity,01/12/2021,4619728,264356,TIMOTHY PAUL CARTER,Guaranteed Rent Scheme,880.53,Rents,Landlord,STANDARD,5872,KAAA-Directorate of Economic Growth and Neighbourhood Services
RBC Legal Entity,01/12/2021,4619737,264357,MARK PARMENTER,Guaranteed Rent Scheme,694.59,Rents,Landlord,STANDARD,5872,KAAA-Directorate of Economic Growth and Neighbourhood Services
RBC Legal Entity,01/12/2021,4619748,264358,ASHWANI ANAND,Guaranteed Rent Scheme,880.53,Rents,Landlord,STANDARD,5872,KAAA-Directorate of Economic Growth and Neighbourhood Services
RBC Legal Entity,01/12/2021,4613111,264360,HOBART UK,Corporate Maintenance Services,865.9,TPP  Contract,SUPPLIER,STANDARD,4080,KAAA-Directorate of Economic Growth and Neighbourhood Services
RBC Legal Entity,01/12/2021,4619867,264362,MRS H C UWANNAH & DR E C UWANNAH,Guaranteed Rent Scheme,880.53,Rents,Direct Payments,STANDARD,5872,KAAA-Directorate of Economic Growth and Neighbourhood Services
RBC Legal Entity,01/12/2021,4619072,264363,CHRISTIAN COMMUNITY ACTION,Voluntary Sector & Community Grants,1870,GrantsVolunt.Organ.,SUPPLIER,STANDARD,2041,LAAA-Directorate of Resources
RBC Legal Entity,01/12/2021,4619073,264364,CHURCHES IN READING DROP IN CENTRE,Voluntary Sector & Community Grants,1395,GrantsVolunt.Organ.,Third Party Supplier,STANDARD,2041,LAAA-Directorate of Resources
RBC Legal Entity,01/12/2021,4618506,264366,WINNERSH PLANT HIRE LTD,Highways,49.98,Hire of Plant,SUPPLIER,STANDARD,4252,KAAA-Directorate of Economic Growth and Neighbourhood Services
RBC Legal Entity,01/12/2021,4618506,264366,WINNERSH PLANT HIRE LTD,Highways,1104,Hire of Plant,SUPPLIER,STANDARD,4252,KAAA-Directorate of Economic Growth and Neighbourhood Services
RBC Legal Entity,01/12/2021,4619389,264370,VILLAGE PROPERTIES,Guaranteed Rent Scheme,1388.74,Rents,Landlord,STANDARD,5872,KAAA-Directorate of Economic Growth and Neighbourhood Services
RBC Legal Entity,01/12/2021,4613296,264372,WILLS BROS CIVIL ENGINEERING LTD,LEP Projects,143230.77,Contractors,SUB-CONTRACTOR,STANDARD,8806,ZZZC-Capital
RBC Legal Entity,01/12/2021,4619197,264373,NETHER GREEN LTD,Guaranteed Rent Scheme,1388.74,Rents,SUPPLIER,STANDARD,5872,KAAA-Directorate of Economic Growth and Neighbourhood Services
RBC Legal Entity,01/12/2021,4619362,264373,NETHER GREEN LTD,Guaranteed Rent Scheme,1006.72,Rents,SUPPLIER,STANDARD,5872,KAAA-Directorate of Economic Growth and Neighbourhood Services
RBC Legal Entity,01/12/2021,4619744,264373,NETHER GREEN LTD,Guaranteed Rent Scheme,1388.74,Rents,SUPPLIER,STANDARD,5872,KAAA-Directorate of Economic Growth and Neighbourhood Services
RBC Legal Entity,01/12/2021,4612981,264374,F M CONWAY LTD,Highways,575,Materials Direct,SUB-CONTRACTOR,STANDARD,4252,KAAA-Directorate of Economic Growth and Neighbourhood Services
RBC Legal Entity,01/12/2021,4612983,264374,F M CONWAY LTD,Highways,575,Materials Direct,SUB-CONTRACTOR,STANDARD,4252,KAAA-Directorate of Economic Growth and Neighbourhood Services
RBC Legal Entity,01/12/2021,4619996,264374,F M CONWAY LTD,Road Resurfacing,349080.07,Contractors,SUB-CONTRACTOR,STANDARD,8870,ZZZC-Capital
RBC Legal Entity,01/12/2021,4619036,264375,ST LUKE WITH ST BARTHOLOMEW,Local Elections,357.5,Hire of halls,Third Party Supplier,STANDARD,2425,LAAA-Directorate of Resources
RBC Legal Entity,01/12/2021,4619036,264375,ST LUKE WITH ST BARTHOLOMEW,Parliamentary Elections,357.5,Hire of halls,Third Party Supplier,STANDARD,2430,LAAA-Directorate of Resources
RBC Legal Entity,01/12/2021,4619338,264376,DAMON GERARD HALL & SARAH ANN ORME,Guaranteed Rent Scheme,682.98,Rents,SUPPLIER,STANDARD,5872,KAAA-Directorate of Economic Growth and Neighbourhood Services
RBC Legal Entity,01/12/2021,4619190,264377,MARK  PEARCE,Guaranteed Rent Scheme,816.1,Rents,Landlord,STANDARD,5872,KAAA-Directorate of Economic Growth and Neighbourhood Services
RBC Legal Entity,01/12/2021,4619191,264378,ELIZABETH & TOBY WILSON,Guaranteed Rent Scheme,961.09,Rents,SUPPLIER,STANDARD,5872,KAAA-Directorate of Economic Growth and Neighbourhood Services
RBC Legal Entity,01/12/2021,4619126,264379,PETER COLLINS,Guaranteed Rent Scheme,694.59,Rents,SUPPLIER,STANDARD,5872,KAAA-Directorate of Economic Growth and Neighbourhood Services
RBC Legal Entity,01/12/2021,4619516,264379,PETER COLLINS,Guaranteed Rent Scheme,880.53,Rents,SUPPLIER,STANDARD,5872,KAAA-Directorate of Economic Growth and Neighbourhood Services
RBC Legal Entity,01/12/2021,4619557,264379,PETER COLLINS,Guaranteed Rent Scheme,880.53,Rents,SUPPLIER,STANDARD,5872,KAAA-Directorate of Economic Growth and Neighbourhood Services
RBC Legal Entity,01/12/2021,4619601,264379,PETER COLLINS,Guaranteed Rent Scheme,694.59,Rents,SUPPLIER,STANDARD,5872,KAAA-Directorate of Economic Growth and Neighbourhood Services
RBC Legal Entity,01/12/2021,4619821,264379,PETER COLLINS,Guaranteed Rent Scheme,880.53,Rents,SUPPLIER,STANDARD,5872,KAAA-Directorate of Economic Growth and Neighbourhood Services
RBC Legal Entity,01/12/2021,4619832,264380,OLUKEMI ILELABOYE,Guaranteed Rent Scheme,880.53,Rents,SUPPLIER,STANDARD,5872,KAAA-Directorate of Economic Growth and Neighbourhood Services
RBC Legal Entity,01/12/2021,4619196,264381,KIM LEWENDON,Guaranteed Rent Scheme,880.53,Rents,SUPPLIER,STANDARD,5872,KAAA-Directorate of Economic Growth and Neighbourhood Services
RBC Legal Entity,01/12/2021,4619770,264382,OJAS ASSOCIATES LTD,Guaranteed Rent Scheme,880.53,Rents,Landlord,STANDARD,5872,KAAA-Directorate of Economic Growth and Neighbourhood Services
RBC Legal Entity,01/12/2021,4619194,264383,JACQUELINE STUBBS,Guaranteed Rent Scheme,880.53,Rents,SUPPLIER,STANDARD,5872,KAAA-Directorate of Economic Growth and Neighbourhood Services
RBC Legal Entity,01/12/2021,4619329,264384,FIONA & STEVE HOLLOWAY,Guaranteed Rent Scheme,1006.72,Rents,SUPPLIER,STANDARD,5872,KAAA-Directorate of Economic Growth and Neighbourhood Services
RBC Legal Entity,01/12/2021,4619608,264384,FIONA & STEVE HOLLOWAY,Guaranteed Rent Scheme,880.53,Rents,SUPPLIER,STANDARD,5872,KAAA-Directorate of Economic Growth and Neighbourhood Services
RBC Legal Entity,01/12/2021,4619760,264384,FIONA & STEVE HOLLOWAY,Guaranteed Rent Scheme,694.59,Rents,SUPPLIER,STANDARD,5872,KAAA-Directorate of Economic Growth and Neighbourhood Services
RBC Legal Entity,01/12/2021,4619780,264385,REBECCA TAYNTON,Guaranteed Rent Scheme,880.53,Rents,Landlord,STANDARD,5872,KAAA-Directorate of Economic Growth and Neighbourhood Services
RBC Legal Entity,01/12/2021,4619763,264386,GVA PROPERTIES LTD,Guaranteed Rent Scheme,694.59,Rents,Landlord,STANDARD,5872,KAAA-Directorate of Economic Growth and Neighbourhood Services
RBC Legal Entity,01/12/2021,4619762,264387,BRIJ BHARATI AND ALKA BAHUGUNA,Guaranteed Rent Scheme,880.53,Rents,Landlord,STANDARD,5872,KAAA-Directorate of Economic Growth and Neighbourhood Services
RBC Legal Entity,01/12/2021,4619828,264387,BRIJ BHARATI AND ALKA BAHUGUNA,Guaranteed Rent Scheme,880.53,Rents,Landlord,STANDARD,5872,KAAA-Directorate of Economic Growth and Neighbourhood Services
RBC Legal Entity,01/12/2021,4619768,264388,VTS SERVICES & CONSULTING LTD,Guaranteed Rent Scheme,880.53,Rents,Landlord,STANDARD,5872,KAAA-Directorate of Economic Growth and Neighbourhood Services
RBC Legal Entity,01/12/2021,4619531,264389,SEAN HEATH,Guaranteed Rent Scheme,880.53,Rents,Landlord,STANDARD,5872,KAAA-Directorate of Economic Growth and Neighbourhood Services
RBC Legal Entity,01/12/2021,4619785,264390,DAVID AND SUSAN SALMON,Guaranteed Rent Scheme,880.53,Rents,Landlord,STANDARD,5872,KAAA-Directorate of Economic Growth and Neighbourhood Services
RBC Legal Entity,01/12/2021,4619771,264391,NORTHWOOD READING,Guaranteed Rent Scheme,880.53,Rents,Landlord,STANDARD,5872,KAAA-Directorate of Economic Growth and Neighbourhood Services
RBC Legal Entity,01/12/2021,4619861,264392,CYRILENE TOLLAFIELD-SMALL,Guaranteed Rent Scheme,880.53,Rents,Landlord,STANDARD,5872,KAAA-Directorate of Economic Growth and Neighbourhood Services
RBC Legal Entity,01/12/2021,4619773,264393,NICOLA BUTLER,Guaranteed Rent Scheme,694.59,Rents,Landlord,STANDARD,5872,KAAA-Directorate of Economic Growth and Neighbourhood Services
RBC Legal Entity,01/12/2021,4619775,264394,GURJOT SIDHU AND RAMANDIP SIDHU,Guaranteed Rent Scheme,1006.72,Rents,Landlord,STANDARD,5872,KAAA-Directorate of Economic Growth and Neighbourhood Services
RBC Legal Entity,01/12/2021,4619803,264396,SAID KAMAL HASHEMI,Guaranteed Rent Scheme,1006.72,Rents,Landlord,STANDARD,5872,KAAA-Directorate of Economic Growth and Neighbourhood Services
RBC Legal Entity,01/12/2021,4619794,264397,GORDON ANDERSON,Guaranteed Rent Scheme,816.1,Rents,INDIVIDUAL,STANDARD,5872,KAAA-Directorate of Economic Growth and Neighbourhood Services
RBC Legal Entity,01/12/2021,4619166,264398,LANDLORDS & TENANTS,Guaranteed Rent Scheme,1006.72,Rents,Landlord,STANDARD,5872,KAAA-Directorate of Economic Growth and Neighbourhood Services
RBC Legal Entity,01/12/2021,4619198,264398,LANDLORDS & TENANTS,Guaranteed Rent Scheme,880.53,Rents,Landlord,STANDARD,5872,KAAA-Directorate of Economic Growth and Neighbourhood Services
RBC Legal Entity,01/12/2021,4619212,264398,LANDLORDS & TENANTS,Guaranteed Rent Scheme,694.59,Rents,Landlord,STANDARD,5872,KAAA-Directorate of Economic Growth and Neighbourhood Services
RBC Legal Entity,01/12/2021,4619272,264398,LANDLORDS & TENANTS,Guaranteed Rent Scheme,694.59,Rents,Landlord,STANDARD,5872,KAAA-Directorate of Economic Growth and Neighbourhood Services
RBC Legal Entity,01/12/2021,4619360,264398,LANDLORDS & TENANTS,Guaranteed Rent Scheme,865.8,Rents,Landlord,STANDARD,5872,KAAA-Directorate of Economic Growth and Neighbourhood Services
RBC Legal Entity,01/12/2021,4619377,264398,LANDLORDS & TENANTS,Guaranteed Rent Scheme,880.53,Rents,Landlord,STANDARD,5872,KAAA-Directorate of Economic Growth and Neighbourhood Services
RBC Legal Entity,01/12/2021,4619464,264398,LANDLORDS & TENANTS,Guaranteed Rent Scheme,694.59,Rents,Landlord,STANDARD,5872,KAAA-Directorate of Economic Growth and Neighbourhood Services
RBC Legal Entity,01/12/2021,4619596,264398,LANDLORDS & TENANTS,Guaranteed Rent Scheme,880.53,Rents,Landlord,STANDARD,5872,KAAA-Directorate of Economic Growth and Neighbourhood Services
RBC Legal Entity,01/12/2021,4619605,264398,LANDLORDS & TENANTS,Guaranteed Rent Scheme,1006.72,Rents,Landlord,STANDARD,5872,KAAA-Directorate of Economic Growth and Neighbourhood Services
RBC Legal Entity,01/12/2021,4619634,264398,LANDLORDS & TENANTS,Guaranteed Rent Scheme,880.53,Rents,Landlord,STANDARD,5872,KAAA-Directorate of Economic Growth and Neighbourhood Services
RBC Legal Entity,01/12/2021,4619688,264398,LANDLORDS & TENANTS,Guaranteed Rent Scheme,1006.72,Rents,Landlord,STANDARD,5872,KAAA-Directorate of Economic Growth and Neighbourhood Services
RBC Legal Entity,01/12/2021,4619757,264398,LANDLORDS & TENANTS,Guaranteed Rent Scheme,694.59,Rents,Landlord,STANDARD,5872,KAAA-Directorate of Economic Growth and Neighbourhood Services
RBC Legal Entity,01/12/2021,4619793,264398,LANDLORDS & TENANTS,Guaranteed Rent Scheme,880.53,Rents,Landlord,STANDARD,5872,KAAA-Directorate of Economic Growth and Neighbourhood Services
RBC Legal Entity,01/12/2021,4619850,264398,LANDLORDS & TENANTS,Guaranteed Rent Scheme,880.53,Rents,Landlord,STANDARD,5872,KAAA-Directorate of Economic Growth and Neighbourhood Services
RBC Legal Entity,01/12/2021,4619887,264398,LANDLORDS & TENANTS,Guaranteed Rent Scheme,880.53,Rents,Landlord,STANDARD,5872,KAAA-Directorate of Economic Growth and Neighbourhood Services
RBC Legal Entity,01/12/2021,4619414,264401,ADDINGTON PROPERTIES,Guaranteed Rent Scheme,694.59,Rents,SUPPLIER,STANDARD,5872,KAAA-Directorate of Economic Growth and Neighbourhood Services
RBC Legal Entity,01/12/2021,4619416,264401,ADDINGTON PROPERTIES,Guaranteed Rent Scheme,686.96,Rents,SUPPLIER,STANDARD,5872,KAAA-Directorate of Economic Growth and Neighbourhood Services
RBC Legal Entity,01/12/2021,4619417,264401,ADDINGTON PROPERTIES,Guaranteed Rent Scheme,694.59,Rents,SUPPLIER,STANDARD,5872,KAAA-Directorate of Economic Growth and Neighbourhood Services
RBC Legal Entity,01/12/2021,4619432,264401,ADDINGTON PROPERTIES,Guaranteed Rent Scheme,694.59,Rents,SUPPLIER,STANDARD,5872,KAAA-Directorate of Economic Growth and Neighbourhood Services
RBC Legal Entity,01/12/2021,4619540,264401,ADDINGTON PROPERTIES,Guaranteed Rent Scheme,694.59,Rents,SUPPLIER,STANDARD,5872,KAAA-Directorate of Economic Growth and Neighbourhood Services
RBC Legal Entity,01/12/2021,4619563,264401,ADDINGTON PROPERTIES,Guaranteed Rent Scheme,694.59,Rents,SUPPLIER,STANDARD,5872,KAAA-Directorate of Economic Growth and Neighbourhood Services
RBC Legal Entity,01/12/2021,4619635,264401,ADDINGTON PROPERTIES,Guaranteed Rent Scheme,694.59,Rents,SUPPLIER,STANDARD,5872,KAAA-Directorate of Economic Growth and Neighbourhood Services
RBC Legal Entity,01/12/2021,4619684,264401,ADDINGTON PROPERTIES,Guaranteed Rent Scheme,694.59,Rents,SUPPLIER,STANDARD,5872,KAAA-Directorate of Economic Growth and Neighbourhood Services
RBC Legal Entity,01/12/2021,4619842,264401,ADDINGTON PROPERTIES,Guaranteed Rent Scheme,694.59,Rents,SUPPLIER,STANDARD,5872,KAAA-Directorate of Economic Growth and Neighbourhood Services
RBC Legal Entity,01/12/2021,4619113,264402,A H LANSLEY RESIDENTIAL LTD,Guaranteed Rent Scheme,682.98,Rents,Landlord,STANDARD,5872,KAAA-Directorate of Economic Growth and Neighbourhood Services
RBC Legal Entity,01/12/2021,4619485,264402,A H LANSLEY RESIDENTIAL LTD,Guaranteed Rent Scheme,682.98,Rents,Landlord,STANDARD,5872,KAAA-Directorate of Economic Growth and Neighbourhood Services
RBC Legal Entity,01/12/2021,4619680,264402,A H LANSLEY RESIDENTIAL LTD,Guaranteed Rent Scheme,694.59,Rents,Landlord,STANDARD,5872,KAAA-Directorate of Economic Growth and Neighbourhood Services
RBC Legal Entity,01/12/2021,4613156,264403,A2 DOMINION GROUP,Charles Clore Court,914.43,Rents,Third Party Supplier,STANDARD,5157,JAAA-Directorate of Social Care and Health Services
RBC Legal Entity,01/12/2021,4613160,264403,A2 DOMINION GROUP,Charles Clore Court,919.58,Rents,Third Party Supplier,STANDARD,5157,JAAA-Directorate of Social Care and Health Services
RBC Legal Entity,01/12/2021,4613163,264403,A2 DOMINION GROUP,Charles Clore Court,913.98,Rents,Third Party Supplier,STANDARD,5157,JAAA-Directorate of Social Care and Health Services
RBC Legal Entity,01/12/2021,4619136,264405,MCCARTHY PROPERTIES READING LTD,Guaranteed Rent Scheme,880.53,Rents,Landlord,STANDARD,5872,KAAA-Directorate of Economic Growth and Neighbourhood Services
RBC Legal Entity,01/12/2021,4619163,264405,MCCARTHY PROPERTIES READING LTD,Guaranteed Rent Scheme,682.98,Rents,Landlord,STANDARD,5872,KAAA-Directorate of Economic Growth and Neighbourhood Services
RBC Legal Entity,01/12/2021,4619183,264405,MCCARTHY PROPERTIES READING LTD,Guaranteed Rent Scheme,682.98,Rents,Landlord,STANDARD,5872,KAAA-Directorate of Economic Growth and Neighbourhood Services
RBC Legal Entity,01/12/2021,4619228,264405,MCCARTHY PROPERTIES READING LTD,Guaranteed Rent Scheme,694.59,Rents,Landlord,STANDARD,5872,KAAA-Directorate of Economic Growth and Neighbourhood Services
RBC Legal Entity,01/12/2021,4619234,264405,MCCARTHY PROPERTIES READING LTD,Guaranteed Rent Scheme,694.59,Rents,Landlord,STANDARD,5872,KAAA-Directorate of Economic Growth and Neighbourhood Services
RBC Legal Entity,01/12/2021,4619271,264405,MCCARTHY PROPERTIES READING LTD,Guaranteed Rent Scheme,694.59,Rents,Landlord,STANDARD,5872,KAAA-Directorate of Economic Growth and Neighbourhood Services
RBC Legal Entity,01/12/2021,4619276,264405,MCCARTHY PROPERTIES READING LTD,Guaranteed Rent Scheme,682.98,Rents,Landlord,STANDARD,5872,KAAA-Directorate of Economic Growth and Neighbourhood Services
RBC Legal Entity,01/12/2021,4619289,264405,MCCARTHY PROPERTIES READING LTD,Guaranteed Rent Scheme,880.53,Rents,Landlord,STANDARD,5872,KAAA-Directorate of Economic Growth and Neighbourhood Services
RBC Legal Entity,01/12/2021,4619315,264405,MCCARTHY PROPERTIES READING LTD,Guaranteed Rent Scheme,682.98,Rents,Landlord,STANDARD,5872,KAAA-Directorate of Economic Growth and Neighbourhood Services
RBC Legal Entity,01/12/2021,4619339,264405,MCCARTHY PROPERTIES READING LTD,Guaranteed Rent Scheme,865.8,Rents,Landlord,STANDARD,5872,KAAA-Directorate of Economic Growth and Neighbourhood Services
RBC Legal Entity,01/12/2021,4619350,264405,MCCARTHY PROPERTIES READING LTD,Guaranteed Rent Scheme,694.59,Rents,Landlord,STANDARD,5872,KAAA-Directorate of Economic Growth and Neighbourhood Services
RBC Legal Entity,01/12/2021,4619364,264405,MCCARTHY PROPERTIES READING LTD,Guaranteed Rent Scheme,682.98,Rents,Landlord,STANDARD,5872,KAAA-Directorate of Economic Growth and Neighbourhood Services
RBC Legal Entity,01/12/2021,4619381,264405,MCCARTHY PROPERTIES READING LTD,Guaranteed Rent Scheme,694.59,Rents,Landlord,STANDARD,5872,KAAA-Directorate of Economic Growth and Neighbourhood Services
RBC Legal Entity,01/12/2021,4619382,264405,MCCARTHY PROPERTIES READING LTD,Guaranteed Rent Scheme,682.98,Rents,Landlord,STANDARD,5872,KAAA-Directorate of Economic Growth and Neighbourhood Services
RBC Legal Entity,01/12/2021,4619410,264405,MCCARTHY PROPERTIES READING LTD,Guaranteed Rent Scheme,682.98,Rents,Landlord,STANDARD,5872,KAAA-Directorate of Economic Growth and Neighbourhood Services
RBC Legal Entity,01/12/2021,4619458,264405,MCCARTHY PROPERTIES READING LTD,Guaranteed Rent Scheme,865.8,Rents,Landlord,STANDARD,5872,KAAA-Directorate of Economic Growth and Neighbourhood Services
RBC Legal Entity,01/12/2021,4619460,264405,MCCARTHY PROPERTIES READING LTD,Guaranteed Rent Scheme,865.8,Rents,Landlord,STANDARD,5872,KAAA-Directorate of Economic Growth and Neighbourhood Services
RBC Legal Entity,01/12/2021,4619482,264405,MCCARTHY PROPERTIES READING LTD,Guaranteed Rent Scheme,682.98,Rents,Landlord,STANDARD,5872,KAAA-Directorate of Economic Growth and Neighbourhood Services
RBC Legal Entity,01/12/2021,4619514,264405,MCCARTHY PROPERTIES READING LTD,Guaranteed Rent Scheme,682.98,Rents,Landlord,STANDARD,5872,KAAA-Directorate of Economic Growth and Neighbourhood Services
RBC Legal Entity,01/12/2021,4619530,264405,MCCARTHY PROPERTIES READING LTD,Guaranteed Rent Scheme,682.98,Rents,Landlord,STANDARD,5872,KAAA-Directorate of Economic Growth and Neighbourhood Services
RBC Legal Entity,01/12/2021,4619564,264405,MCCARTHY PROPERTIES READING LTD,Guaranteed Rent Scheme,694.59,Rents,Landlord,STANDARD,5872,KAAA-Directorate of Economic Growth and Neighbourhood Services
RBC Legal Entity,01/12/2021,4619583,264405,MCCARTHY PROPERTIES READING LTD,Guaranteed Rent Scheme,694.59,Rents,Landlord,STANDARD,5872,KAAA-Directorate of Economic Growth and Neighbourhood Services
RBC Legal Entity,01/12/2021,4619602,264405,MCCARTHY PROPERTIES READING LTD,Guaranteed Rent Scheme,694.59,Rents,Landlord,STANDARD,5872,KAAA-Directorate of Economic Growth and Neighbourhood Services
RBC Legal Entity,01/12/2021,4619623,264405,MCCARTHY PROPERTIES READING LTD,Guaranteed Rent Scheme,694.59,Rents,Landlord,STANDARD,5872,KAAA-Directorate of Economic Growth and Neighbourhood Services
RBC Legal Entity,01/12/2021,4619637,264405,MCCARTHY PROPERTIES READING LTD,Guaranteed Rent Scheme,694.59,Rents,Landlord,STANDARD,5872,KAAA-Directorate of Economic Growth and Neighbourhood Services
RBC Legal Entity,01/12/2021,4619643,264405,MCCARTHY PROPERTIES READING LTD,Guaranteed Rent Scheme,650,Rents,Landlord,STANDARD,5872,KAAA-Directorate of Economic Growth and Neighbourhood Services
RBC Legal Entity,01/12/2021,4619648,264405,MCCARTHY PROPERTIES READING LTD,Guaranteed Rent Scheme,880.53,Rents,Landlord,STANDARD,5872,KAAA-Directorate of Economic Growth and Neighbourhood Services
RBC Legal Entity,01/12/2021,4619649,264405,MCCARTHY PROPERTIES READING LTD,Guaranteed Rent Scheme,694.59,Rents,Landlord,STANDARD,5872,KAAA-Directorate of Economic Growth and Neighbourhood Services
RBC Legal Entity,01/12/2021,4619668,264405,MCCARTHY PROPERTIES READING LTD,Guaranteed Rent Scheme,880.53,Rents,Landlord,STANDARD,5872,KAAA-Directorate of Economic Growth and Neighbourhood Services
RBC Legal Entity,01/12/2021,4619708,264405,MCCARTHY PROPERTIES READING LTD,Guaranteed Rent Scheme,694.59,Rents,Landlord,STANDARD,5872,KAAA-Directorate of Economic Growth and Neighbourhood Services
RBC Legal Entity,01/12/2021,4619727,264405,MCCARTHY PROPERTIES READING LTD,Guaranteed Rent Scheme,880.53,Rents,Landlord,STANDARD,5872,KAAA-Directorate of Economic Growth and Neighbourhood Services
RBC Legal Entity,01/12/2021,4619732,264405,MCCARTHY PROPERTIES READING LTD,Guaranteed Rent Scheme,694.59,Rents,Landlord,STANDARD,5872,KAAA-Directorate of Economic Growth and Neighbourhood Services
RBC Legal Entity,01/12/2021,4619766,264405,MCCARTHY PROPERTIES READING LTD,Guaranteed Rent Scheme,694.59,Rents,Landlord,STANDARD,5872,KAAA-Directorate of Economic Growth and Neighbourhood Services
RBC Legal Entity,01/12/2021,4619779,264405,MCCARTHY PROPERTIES READING LTD,Guaranteed Rent Scheme,694.59,Rents,Landlord,STANDARD,5872,KAAA-Directorate of Economic Growth and Neighbourhood Services
RBC Legal Entity,01/12/2021,4619786,264405,MCCARTHY PROPERTIES READING LTD,Guaranteed Rent Scheme,880.53,Rents,Landlord,STANDARD,5872,KAAA-Directorate of Economic Growth and Neighbourhood Services
RBC Legal Entity,01/12/2021,4619818,264405,MCCARTHY PROPERTIES READING LTD,Guaranteed Rent Scheme,1006.72,Rents,Landlord,STANDARD,5872,KAAA-Directorate of Economic Growth and Neighbourhood Services
RBC Legal Entity,01/12/2021,4619119,264406,MARTIN COSTELLOE,Guaranteed Rent Scheme,694.59,Rents,Landlord,STANDARD,5872,KAAA-Directorate of Economic Growth and Neighbourhood Services
RBC Legal Entity,01/12/2021,4619230,264406,MARTIN COSTELLOE,Guaranteed Rent Scheme,865.8,Rents,Landlord,STANDARD,5872,KAAA-Directorate of Economic Growth and Neighbourhood Services
RBC Legal Entity,01/12/2021,4619235,264406,MARTIN COSTELLOE,Guaranteed Rent Scheme,694.59,Rents,Landlord,STANDARD,5872,KAAA-Directorate of Economic Growth and Neighbourhood Services
RBC Legal Entity,01/12/2021,4619242,264406,MARTIN COSTELLOE,Guaranteed Rent Scheme,694.59,Rents,Landlord,STANDARD,5872,KAAA-Directorate of Economic Growth and Neighbourhood Services
RBC Legal Entity,01/12/2021,4619247,264406,MARTIN COSTELLOE,Guaranteed Rent Scheme,694.59,Rents,Landlord,STANDARD,5872,KAAA-Directorate of Economic Growth and Neighbourhood Services
RBC Legal Entity,01/12/2021,4619279,264406,MARTIN COSTELLOE,Guaranteed Rent Scheme,880.53,Rents,Landlord,STANDARD,5872,KAAA-Directorate of Economic Growth and Neighbourhood Services
RBC Legal Entity,01/12/2021,4619358,264406,MARTIN COSTELLOE,Guaranteed Rent Scheme,880.53,Rents,Landlord,STANDARD,5872,KAAA-Directorate of Economic Growth and Neighbourhood Services
RBC Legal Entity,01/12/2021,4619411,264406,MARTIN COSTELLOE,Guaranteed Rent Scheme,694.59,Rents,Landlord,STANDARD,5872,KAAA-Directorate of Economic Growth and Neighbourhood Services
RBC Legal Entity,01/12/2021,4619527,264406,MARTIN COSTELLOE,Guaranteed Rent Scheme,865.8,Rents,Landlord,STANDARD,5872,KAAA-Directorate of Economic Growth and Neighbourhood Services
RBC Legal Entity,01/12/2021,4619558,264406,MARTIN COSTELLOE,Guaranteed Rent Scheme,682.98,Rents,Landlord,STANDARD,5872,KAAA-Directorate of Economic Growth and Neighbourhood Services
RBC Legal Entity,01/12/2021,4619576,264406,MARTIN COSTELLOE,Guaranteed Rent Scheme,1006.72,Rents,Landlord,STANDARD,5872,KAAA-Directorate of Economic Growth and Neighbourhood Services
RBC Legal Entity,01/12/2021,4619669,264406,MARTIN COSTELLOE,Guaranteed Rent Scheme,880.53,Rents,Landlord,STANDARD,5872,KAAA-Directorate of Economic Growth and Neighbourhood Services
RBC Legal Entity,01/12/2021,4619711,264406,MARTIN COSTELLOE,Guaranteed Rent Scheme,880.53,Rents,Landlord,STANDARD,5872,KAAA-Directorate of Economic Growth and Neighbourhood Services
RBC Legal Entity,01/12/2021,4619774,264406,MARTIN COSTELLOE,Guaranteed Rent Scheme,1006.72,Rents,Landlord,STANDARD,5872,KAAA-Directorate of Economic Growth and Neighbourhood Services
RBC Legal Entity,01/12/2021,4619863,264406,MARTIN COSTELLOE,Guaranteed Rent Scheme,694.59,Rents,Landlord,STANDARD,5872,KAAA-Directorate of Economic Growth and Neighbourhood Services
RBC Legal Entity,01/12/2021,4619881,264406,MARTIN COSTELLOE,Guaranteed Rent Scheme,694.59,Rents,Landlord,STANDARD,5872,KAAA-Directorate of Economic Growth and Neighbourhood Services
RBC Legal Entity,01/12/2021,4619143,264407,BARKAT ALI,Guaranteed Rent Scheme,694.59,Rents,Landlord,STANDARD,5872,KAAA-Directorate of Economic Growth and Neighbourhood Services
RBC Legal Entity,01/12/2021,4619263,264408,HUNTERS READING,Guaranteed Rent Scheme,694.59,Rents,Landlord,STANDARD,5872,KAAA-Directorate of Economic Growth and Neighbourhood Services
RBC Legal Entity,01/12/2021,4619317,264408,HUNTERS READING,Guaranteed Rent Scheme,880.53,Rents,Landlord,STANDARD,5872,KAAA-Directorate of Economic Growth and Neighbourhood Services
RBC Legal Entity,01/12/2021,4619518,264408,HUNTERS READING,Guaranteed Rent Scheme,865.8,Rents,Landlord,STANDARD,5872,KAAA-Directorate of Economic Growth and Neighbourhood Services
RBC Legal Entity,01/12/2021,4619206,264409,EDWARD KEITH JERROME,Guaranteed Rent Scheme,1388.74,Rents,SUPPLIER,STANDARD,5872,KAAA-Directorate of Economic Growth and Neighbourhood Services
RBC Legal Entity,01/12/2021,4619209,264411,DOUGLAS PUFFETT,Guaranteed Rent Scheme,865.8,Rents,SUPPLIER,STANDARD,5872,KAAA-Directorate of Economic Growth and Neighbourhood Services
RBC Legal Entity,01/12/2021,4619205,264412,NEIL COOKE,Guaranteed Rent Scheme,880.53,Rents,SUPPLIER,STANDARD,5872,KAAA-Directorate of Economic Growth and Neighbourhood Services
RBC Legal Entity,01/12/2021,4619788,264413,SIMON MCNIFFE,Guaranteed Rent Scheme,880.53,Rents,Direct Payments,STANDARD,5872,KAAA-Directorate of Economic Growth and Neighbourhood Services
RBC Legal Entity,01/12/2021,4619220,264414,ASHOK RODA,Guaranteed Rent Scheme,961.09,Rents,SUPPLIER,STANDARD,5872,KAAA-Directorate of Economic Growth and Neighbourhood Services
RBC Legal Entity,01/12/2021,4619217,264415,SALIM & NIMMI AHMED,Guaranteed Rent Scheme,1006.72,Rents,SUPPLIER,STANDARD,5872,KAAA-Directorate of Economic Growth and Neighbourhood Services
RBC Legal Entity,01/12/2021,4619225,264417,DIOCESAN TRUSTEES (OXFORD) LTD,Guaranteed Rent Scheme,880.53,Rents,SUPPLIER,STANDARD,5872,KAAA-Directorate of Economic Growth and Neighbourhood Services
RBC Legal Entity,01/12/2021,4619226,264418,JOHN & ROSEMARIE BOOTH,Guaranteed Rent Scheme,989.91,Rents,SUPPLIER,STANDARD,5872,KAAA-Directorate of Economic Growth and Neighbourhood Services
RBC Legal Entity,01/12/2021,4619484,264419,SMART MOVE ESTATE AGENTS UK LTD,Guaranteed Rent Scheme,694.59,Rents,SUPPLIER,STANDARD,5872,KAAA-Directorate of Economic Growth and Neighbourhood Services
RBC Legal Entity,01/12/2021,4619224,264420,NICOLA FIELDEN,Guaranteed Rent Scheme,880.53,Rents,SUPPLIER,STANDARD,5872,KAAA-Directorate of Economic Growth and Neighbourhood Services
RBC Legal Entity,01/12/2021,4619825,264421,JUAN D'COSTA,Guaranteed Rent Scheme,880.53,Rents,SUPPLIER,STANDARD,5872,KAAA-Directorate of Economic Growth and Neighbourhood Services
RBC Legal Entity,01/12/2021,4619282,264422,JEMP LLP,Guaranteed Rent Scheme,694.59,Rents,Landlord,STANDARD,5872,KAAA-Directorate of Economic Growth and Neighbourhood Services
RBC Legal Entity,01/12/2021,4619795,264423,THAMES VALLEY MOTS,Guaranteed Rent Scheme,880.53,Rents,Third Party Supplier,STANDARD,5872,KAAA-Directorate of Economic Growth and Neighbourhood Services
RBC Legal Entity,01/12/2021,4619791,264424,WASEEM ZAKIR,Guaranteed Rent Scheme,1006.72,Rents,Landlord,STANDARD,5872,KAAA-Directorate of Economic Growth and Neighbourhood Services
RBC Legal Entity,01/12/2021,4619838,264426,MRS V C MORRIS AND MRS P J MORRIS,Guaranteed Rent Scheme,880.53,Rents,Landlord,STANDARD,5872,KAAA-Directorate of Economic Growth and Neighbourhood Services
RBC Legal Entity,01/12/2021,4619871,264427,JON HUNDY,Guaranteed Rent Scheme,880.53,Rents,Landlord,STANDARD,5872,KAAA-Directorate of Economic Growth and Neighbourhood Services
RBC Legal Entity,01/12/2021,4619817,264428,MARK COOMBES,Guaranteed Rent Scheme,694.59,Rents,Landlord,STANDARD,5872,KAAA-Directorate of Economic Growth and Neighbourhood Services
RBC Legal Entity,01/12/2021,4619831,264428,MARK COOMBES,Guaranteed Rent Scheme,694.59,Rents,Landlord,STANDARD,5872,KAAA-Directorate of Economic Growth and Neighbourhood Services
RBC Legal Entity,01/12/2021,4619835,264428,MARK COOMBES,Guaranteed Rent Scheme,694.59,Rents,Landlord,STANDARD,5872,KAAA-Directorate of Economic Growth and Neighbourhood Services
RBC Legal Entity,01/12/2021,4619839,264428,MARK COOMBES,Guaranteed Rent Scheme,694.59,Rents,Landlord,STANDARD,5872,KAAA-Directorate of Economic Growth and Neighbourhood Services
RBC Legal Entity,01/12/2021,4619826,264429,ANDY MEIGHEN,Guaranteed Rent Scheme,694.59,Rents,Landlord,STANDARD,5872,KAAA-Directorate of Economic Growth and Neighbourhood Services
RBC Legal Entity,01/12/2021,4619882,264429,ANDY MEIGHEN,Guaranteed Rent Scheme,503.79,Rents,Landlord,STANDARD,5872,KAAA-Directorate of Economic Growth and Neighbourhood Services
RBC Legal Entity,01/12/2021,4619883,264429,ANDY MEIGHEN,Guaranteed Rent Scheme,694.59,Rents,Landlord,STANDARD,5872,KAAA-Directorate of Economic Growth and Neighbourhood Services
RBC Legal Entity,01/12/2021,4619852,264430,JENNIFER STAYTE,Guaranteed Rent Scheme,880.53,Rents,Direct Payments,STANDARD,5872,KAAA-Directorate of Economic Growth and Neighbourhood Services
RBC Legal Entity,01/12/2021,4619844,264431,JIN YAN HE,Guaranteed Rent Scheme,880.53,Rents,Direct Payments,STANDARD,5872,KAAA-Directorate of Economic Growth and Neighbourhood Services
RBC Legal Entity,01/12/2021,4619845,264432,BRADLEY HAMBRIDGE,Guaranteed Rent Scheme,880.53,Rents,Direct Payments,STANDARD,5872,KAAA-Directorate of Economic Growth and Neighbourhood Services
RBC Legal Entity,01/12/2021,4610804,264433,WORLDCC UK LTD,Procurement Services,3500,Subscriptions,Third Party Supplier,STANDARD,2402,LAAA-Directorate of Resources
RBC Legal Entity,01/12/2021,4619846,264434,NIDA EBRAHIM,Guaranteed Rent Scheme,880.53,Rents,Direct Payments,STANDARD,5872,KAAA-Directorate of Economic Growth and Neighbourhood Services
RBC Legal Entity,01/12/2021,4619343,264435,ROB WATSON,Guaranteed Rent Scheme,1006.72,Rents,SUPPLIER,STANDARD,5872,KAAA-Directorate of Economic Growth and Neighbourhood Services
RBC Legal Entity,01/12/2021,4619569,264436,CENTRUM PROPERTY MANAGEMENT LTD,Guaranteed Rent Scheme,694.59,Rents,SUPPLIER,STANDARD,5872,KAAA-Directorate of Economic Growth and Neighbourhood Services
RBC Legal Entity,01/12/2021,4619490,264437,SHAZIA FAZAL,Guaranteed Rent Scheme,682.98,Rents,SUPPLIER,STANDARD,5872,KAAA-Directorate of Economic Growth and Neighbourhood Services
RBC Legal Entity,01/12/2021,4619535,264437,SHAZIA FAZAL,Guaranteed Rent Scheme,682.98,Rents,SUPPLIER,STANDARD,5872,KAAA-Directorate of Economic Growth and Neighbourhood Services
RBC Legal Entity,01/12/2021,4619665,264437,SHAZIA FAZAL,Guaranteed Rent Scheme,1388.74,Rents,SUPPLIER,STANDARD,5872,KAAA-Directorate of Economic Growth and Neighbourhood Services
RBC Legal Entity,01/12/2021,4619864,264437,SHAZIA FAZAL,Guaranteed Rent Scheme,880.53,Rents,SUPPLIER,STANDARD,5872,KAAA-Directorate of Economic Growth and Neighbourhood Services
RBC Legal Entity,01/12/2021,4619288,264438,MIKE AND JACQUELINE MOSELEY,Guaranteed Rent Scheme,880.53,Rents,SUPPLIER,STANDARD,5872,KAAA-Directorate of Economic Growth and Neighbourhood Services
RBC Legal Entity,01/12/2021,4619390,264438,MIKE AND JACQUELINE MOSELEY,Guaranteed Rent Scheme,880.53,Rents,SUPPLIER,STANDARD,5872,KAAA-Directorate of Economic Growth and Neighbourhood Services
RBC Legal Entity,01/12/2021,4619243,264439,MR A SIMMONS,Guaranteed Rent Scheme,1006.72,Rents,SUPPLIER,STANDARD,5872,KAAA-Directorate of Economic Growth and Neighbourhood Services
RBC Legal Entity,01/12/2021,4619280,264439,MR A SIMMONS,Guaranteed Rent Scheme,1006.72,Rents,SUPPLIER,STANDARD,5872,KAAA-Directorate of Economic Growth and Neighbourhood Services
RBC Legal Entity,01/12/2021,4619257,264440,MR SALES AND LETTINGS LTD,Guaranteed Rent Scheme,880.53,Rents,Landlord,STANDARD,5872,KAAA-Directorate of Economic Growth and Neighbourhood Services
RBC Legal Entity,01/12/2021,4619566,264440,MR SALES AND LETTINGS LTD,Guaranteed Rent Scheme,880.53,Rents,Landlord,STANDARD,5872,KAAA-Directorate of Economic Growth and Neighbourhood Services
RBC Legal Entity,01/12/2021,4619123,264441,MS E HUTCHINSON,Guaranteed Rent Scheme,989.91,Rents,SUPPLIER,STANDARD,5872,KAAA-Directorate of Economic Growth and Neighbourhood Services
RBC Legal Entity,01/12/2021,4619326,264443,AARON MAYCOCK,Guaranteed Rent Scheme,694.59,Rents,SUPPLIER,STANDARD,5872,KAAA-Directorate of Economic Growth and Neighbourhood Services
RBC Legal Entity,01/12/2021,4619327,264443,AARON MAYCOCK,Guaranteed Rent Scheme,694.59,Rents,SUPPLIER,STANDARD,5872,KAAA-Directorate of Economic Growth and Neighbourhood Services
RBC Legal Entity,01/12/2021,4619588,264443,AARON MAYCOCK,Guaranteed Rent Scheme,880.53,Rents,SUPPLIER,STANDARD,5872,KAAA-Directorate of Economic Growth and Neighbourhood Services
RBC Legal Entity,01/12/2021,4619138,264444,PRODATA SYSTEMS LTD,Guaranteed Rent Scheme,682.98,Rents,Landlord,STANDARD,5872,KAAA-Directorate of Economic Growth and Neighbourhood Services
RBC Legal Entity,01/12/2021,4619573,264444,PRODATA SYSTEMS LTD,Guaranteed Rent Scheme,694.59,Rents,Landlord,STANDARD,5872,KAAA-Directorate of Economic Growth and Neighbourhood Services
RBC Legal Entity,01/12/2021,4619642,264444,PRODATA SYSTEMS LTD,Guaranteed Rent Scheme,880.53,Rents,Landlord,STANDARD,5872,KAAA-Directorate of Economic Growth and Neighbourhood Services
RBC Legal Entity,01/12/2021,4619647,264444,PRODATA SYSTEMS LTD,Guaranteed Rent Scheme,694.59,Rents,Landlord,STANDARD,5872,KAAA-Directorate of Economic Growth and Neighbourhood Services
RBC Legal Entity,01/12/2021,4619681,264444,PRODATA SYSTEMS LTD,Guaranteed Rent Scheme,694.59,Rents,Landlord,STANDARD,5872,KAAA-Directorate of Economic Growth and Neighbourhood Services
RBC Legal Entity,01/12/2021,4619689,264444,PRODATA SYSTEMS LTD,Guaranteed Rent Scheme,694.59,Rents,Landlord,STANDARD,5872,KAAA-Directorate of Economic Growth and Neighbourhood Services
RBC Legal Entity,01/12/2021,4619724,264444,PRODATA SYSTEMS LTD,Guaranteed Rent Scheme,694.59,Rents,Landlord,STANDARD,5872,KAAA-Directorate of Economic Growth and Neighbourhood Services
RBC Legal Entity,01/12/2021,4619736,264444,PRODATA SYSTEMS LTD,Guaranteed Rent Scheme,694.59,Rents,Landlord,STANDARD,5872,KAAA-Directorate of Economic Growth and Neighbourhood Services
RBC Legal Entity,01/12/2021,4619876,264444,PRODATA SYSTEMS LTD,Guaranteed Rent Scheme,694.59,Rents,Landlord,STANDARD,5872,KAAA-Directorate of Economic Growth and Neighbourhood Services
RBC Legal Entity,01/12/2021,4619169,264445,PAUL HUTCHMAN,Guaranteed Rent Scheme,694.59,Rents,Landlord,STANDARD,5872,KAAA-Directorate of Economic Growth and Neighbourhood Services
RBC Legal Entity,01/12/2021,4619542,264445,PAUL HUTCHMAN,Guaranteed Rent Scheme,694.59,Rents,Landlord,STANDARD,5872,KAAA-Directorate of Economic Growth and Neighbourhood Services
RBC Legal Entity,01/12/2021,4619115,264446,AIDAN COSTELLOE,Guaranteed Rent Scheme,694.59,Rents,SUPPLIER,STANDARD,5872,KAAA-Directorate of Economic Growth and Neighbourhood Services
RBC Legal Entity,01/12/2021,4619214,264446,AIDAN COSTELLOE,Guaranteed Rent Scheme,880.53,Rents,SUPPLIER,STANDARD,5872,KAAA-Directorate of Economic Growth and Neighbourhood Services
RBC Legal Entity,01/12/2021,4619325,264446,AIDAN COSTELLOE,Guaranteed Rent Scheme,880.53,Rents,SUPPLIER,STANDARD,5872,KAAA-Directorate of Economic Growth and Neighbourhood Services
RBC Legal Entity,01/12/2021,4619747,264446,AIDAN COSTELLOE,Guaranteed Rent Scheme,880.53,Rents,SUPPLIER,STANDARD,5872,KAAA-Directorate of Economic Growth and Neighbourhood Services
RBC Legal Entity,01/12/2021,4619843,264446,AIDAN COSTELLOE,Guaranteed Rent Scheme,694.59,Rents,SUPPLIER,STANDARD,5872,KAAA-Directorate of Economic Growth and Neighbourhood Services
RBC Legal Entity,01/12/2021,4619268,264447,SANSOME & GEORGE (BERKSHIRE) LIMITED,Guaranteed Rent Scheme,840.58,Rents,Landlord,STANDARD,5872,KAAA-Directorate of Economic Growth and Neighbourhood Services
RBC Legal Entity,01/12/2021,4619296,264447,SANSOME & GEORGE (BERKSHIRE) LIMITED,Guaranteed Rent Scheme,880.53,Rents,Landlord,STANDARD,5872,KAAA-Directorate of Economic Growth and Neighbourhood Services
RBC Legal Entity,01/12/2021,4619306,264447,SANSOME & GEORGE (BERKSHIRE) LIMITED,Guaranteed Rent Scheme,865.8,Rents,Landlord,STANDARD,5872,KAAA-Directorate of Economic Growth and Neighbourhood Services
RBC Legal Entity,01/12/2021,4619582,264447,SANSOME & GEORGE (BERKSHIRE) LIMITED,Guaranteed Rent Scheme,880.53,Rents,Landlord,STANDARD,5872,KAAA-Directorate of Economic Growth and Neighbourhood Services
RBC Legal Entity,01/12/2021,4619633,264447,SANSOME & GEORGE (BERKSHIRE) LIMITED,Guaranteed Rent Scheme,880.53,Rents,Landlord,STANDARD,5872,KAAA-Directorate of Economic Growth and Neighbourhood Services
RBC Legal Entity,01/12/2021,4619660,264447,SANSOME & GEORGE (BERKSHIRE) LIMITED,Guaranteed Rent Scheme,880.53,Rents,Landlord,STANDARD,5872,KAAA-Directorate of Economic Growth and Neighbourhood Services
RBC Legal Entity,01/12/2021,4619675,264447,SANSOME & GEORGE (BERKSHIRE) LIMITED,Guaranteed Rent Scheme,694.59,Rents,Landlord,STANDARD,5872,KAAA-Directorate of Economic Growth and Neighbourhood Services
RBC Legal Entity,01/12/2021,4619755,264447,SANSOME & GEORGE (BERKSHIRE) LIMITED,Guaranteed Rent Scheme,694.59,Rents,Landlord,STANDARD,5872,KAAA-Directorate of Economic Growth and Neighbourhood Services
RBC Legal Entity,01/12/2021,4619014,264448,REED,ASC Short Term Team,3.6,Agency Staff,Third Party Supplier,STANDARD,5722,JAAA-Directorate of Social Care and Health Services
RBC Legal Entity,01/12/2021,4619014,264448,REED,Mental Health Team,4.5,Agency Staff,Third Party Supplier,STANDARD,5253,JAAA-Directorate of Social Care and Health Services
RBC Legal Entity,01/12/2021,4619014,264448,REED,BFFC Agency Staff (Rechargeable),4.5,Agency Staff,Third Party Supplier,STANDARD,2008,LAAA-Directorate of Resources
RBC Legal Entity,01/12/2021,4619014,264448,REED,BFFC Agency Staff (Rechargeable),4.7,Agency Staff,Third Party Supplier,STANDARD,2008,LAAA-Directorate of Resources
RBC Legal Entity,01/12/2021,4619014,264448,REED,ASC Short Term Team,10.35,Agency Staff,Third Party Supplier,STANDARD,5722,JAAA-Directorate of Social Care and Health Services
RBC Legal Entity,01/12/2021,4619014,264448,REED,BFFC Agency Staff (Rechargeable),14.4,Agency Staff,Third Party Supplier,STANDARD,2008,LAAA-Directorate of Resources
RBC Legal Entity,01/12/2021,4619014,264448,REED,BFFC Agency Staff (Rechargeable),17.1,Agency Staff,Third Party Supplier,STANDARD,2008,LAAA-Directorate of Resources
RBC Legal Entity,01/12/2021,4619014,264448,REED,ASC Short Term Team,17.99,Agency Staff,Third Party Supplier,STANDARD,5722,JAAA-Directorate of Social Care and Health Services
RBC Legal Entity,01/12/2021,4619014,264448,REED,Mental Health Team,22.5,Agency Staff,Third Party Supplier,STANDARD,5253,JAAA-Directorate of Social Care and Health Services
RBC Legal Entity,01/12/2021,4619014,264448,REED,BFFC Agency Staff (Rechargeable),26.1,Agency Staff,Third Party Supplier,STANDARD,2008,LAAA-Directorate of Resources
RBC Legal Entity,01/12/2021,4619014,264448,REED,ASC Short Term Team,26.64,Agency Staff,Third Party Supplier,STANDARD,5722,JAAA-Directorate of Social Care and Health Services
RBC Legal Entity,01/12/2021,4619014,264448,REED,BFFC Agency Staff (Rechargeable),28.8,Agency Staff,Third Party Supplier,STANDARD,2008,LAAA-Directorate of Resources
RBC Legal Entity,01/12/2021,4619014,264448,REED,BFFC Agency Staff (Rechargeable),31.72,Agency Staff,Third Party Supplier,STANDARD,2008,LAAA-Directorate of Resources
RBC Legal Entity,01/12/2021,4619014,264448,REED,ASC Short Term Team,32.4,Agency Staff,Third Party Supplier,STANDARD,5722,JAAA-Directorate of Social Care and Health Services
RBC Legal Entity,01/12/2021,4619014,264448,REED,BFFC Agency Staff (Rechargeable),40.05,Agency Staff,Third Party Supplier,STANDARD,2008,LAAA-Directorate of Resources
RBC Legal Entity,01/12/2021,4619014,264448,REED,BFFC Agency Staff (Rechargeable),41.85,Agency Staff,Third Party Supplier,STANDARD,2008,LAAA-Directorate of Resources
RBC Legal Entity,01/12/2021,4619014,264448,REED,BFFC Agency Staff (Rechargeable),62.55,Agency Staff,Third Party Supplier,STANDARD,2008,LAAA-Directorate of Resources
RBC Legal Entity,01/12/2021,4619014,264448,REED,BFFC Agency Staff (Rechargeable),78.3,Agency Staff,Third Party Supplier,STANDARD,2008,LAAA-Directorate of Resources
RBC Legal Entity,01/12/2021,4619014,264448,REED,BFFC Agency Staff (Rechargeable),95.4,Agency Staff,Third Party Supplier,STANDARD,2008,LAAA-Directorate of Resources
RBC Legal Entity,01/12/2021,4619014,264448,REED,BFFC Agency Staff (Rechargeable),139.5,Agency Staff,Third Party Supplier,STANDARD,2008,LAAA-Directorate of Resources
RBC Legal Entity,01/12/2021,4619014,264448,REED,Lateral Flow Testing,156.3,Agency Staff,Third Party Supplier,STANDARD,2701,LAAA-Directorate of Resources
RBC Legal Entity,01/12/2021,4619014,264448,REED,BFFC Agency Staff (Rechargeable),161.45,Agency Staff,Third Party Supplier,STANDARD,2008,LAAA-Directorate of Resources
RBC Legal Entity,01/12/2021,4619014,264448,REED,BFFC Agency Staff (Rechargeable),190.8,Agency Staff,Third Party Supplier,STANDARD,2008,LAAA-Directorate of Resources
RBC Legal Entity,01/12/2021,4619014,264448,REED,BFFC Agency Staff (Rechargeable),193.5,Agency Staff,Third Party Supplier,STANDARD,2008,LAAA-Directorate of Resources
RBC Legal Entity,01/12/2021,4619014,264448,REED,Street Cleansing,212.75,Agency Staff,Third Party Supplier,STANDARD,4566,KAAA-Directorate of Economic Growth and Neighbourhood Services
RBC Legal Entity,01/12/2021,4619014,264448,REED,Customer Services - Reception,223.29,Agency Staff,Third Party Supplier,STANDARD,2595,LAAA-Directorate of Resources
RBC Legal Entity,01/12/2021,4619014,264448,REED,BFFC Agency Staff (Rechargeable),250.2,Agency Staff,Third Party Supplier,STANDARD,2008,LAAA-Directorate of Resources
RBC Legal Entity,01/12/2021,4619014,264448,REED,Street Cleansing,315.11,Agency Staff,Third Party Supplier,STANDARD,4566,KAAA-Directorate of Economic Growth and Neighbourhood Services
RBC Legal Entity,01/12/2021,4619014,264448,REED,Lateral Flow Testing,321.16,Agency Staff,Third Party Supplier,STANDARD,2701,LAAA-Directorate of Resources
RBC Legal Entity,01/12/2021,4619014,264448,REED,Customer Services - Reception,359,Agency Staff,Third Party Supplier,STANDARD,2595,LAAA-Directorate of Resources
RBC Legal Entity,01/12/2021,4619014,264448,REED,Street Cleansing,425.49,Agency Staff,Third Party Supplier,STANDARD,4566,KAAA-Directorate of Economic Growth and Neighbourhood Services
RBC Legal Entity,01/12/2021,4619014,264448,REED,Accountancy,489.96,Agency Staff,Third Party Supplier,STANDARD,2200,LAAA-Directorate of Resources
RBC Legal Entity,01/12/2021,4619014,264448,REED,Directorate Support,500.29,Agency Staff,Third Party Supplier,STANDARD,2036,LAAA-Directorate of Resources
RBC Legal Entity,01/12/2021,4619014,264448,REED,Street Cleansing,525.2,Agency Staff,Third Party Supplier,STANDARD,4566,KAAA-Directorate of Economic Growth and Neighbourhood Services
RBC Legal Entity,01/12/2021,4619014,264448,REED,Lateral Flow Testing,527.95,Agency Staff,Third Party Supplier,STANDARD,2701,LAAA-Directorate of Resources
RBC Legal Entity,01/12/2021,4619014,264448,REED,Lateral Flow Testing,535.27,Agency Staff,Third Party Supplier,STANDARD,2701,LAAA-Directorate of Resources
RBC Legal Entity,01/12/2021,4619014,264448,REED,Customer Services - Reception,539.06,Agency Staff,Third Party Supplier,STANDARD,2595,LAAA-Directorate of Resources
RBC Legal Entity,01/12/2021,4619014,264448,REED,Refuse Collection,544.28,Agency Staff,Third Party Supplier,STANDARD,4561,KAAA-Directorate of Economic Growth and Neighbourhood Services
RBC Legal Entity,01/12/2021,4619014,264448,REED,Street Cleansing,554.06,Agency Staff,Third Party Supplier,STANDARD,4566,KAAA-Directorate of Economic Growth and Neighbourhood Services
RBC Legal Entity,01/12/2021,4619014,264448,REED,Procurement Services,557.39,Agency Staff,Third Party Supplier,STANDARD,2402,LAAA-Directorate of Resources
RBC Legal Entity,01/12/2021,4619014,264448,REED,Refuse Collection,583.72,Agency Staff,Third Party Supplier,STANDARD,4561,KAAA-Directorate of Economic Growth and Neighbourhood Services
RBC Legal Entity,01/12/2021,4619014,264448,REED,Refuse Collection,583.72,Agency Staff,Third Party Supplier,STANDARD,4561,KAAA-Directorate of Economic Growth and Neighbourhood Services
RBC Legal Entity,01/12/2021,4619014,264448,REED,Refuse Collection,592.3,Agency Staff,Third Party Supplier,STANDARD,4561,KAAA-Directorate of Economic Growth and Neighbourhood Services
RBC Legal Entity,01/12/2021,4619014,264448,REED,Refuse Collection,592.3,Agency Staff,Third Party Supplier,STANDARD,4561,KAAA-Directorate of Economic Growth and Neighbourhood Services
RBC Legal Entity,01/12/2021,4619014,264448,REED,Refuse Collection,592.3,Agency Staff,Third Party Supplier,STANDARD,4561,KAAA-Directorate of Economic Growth and Neighbourhood Services
RBC Legal Entity,01/12/2021,4619014,264448,REED,Lateral Flow Testing,597.23,Agency Staff,Third Party Supplier,STANDARD,2701,LAAA-Directorate of Resources
RBC Legal Entity,01/12/2021,4619014,264448,REED,Buildings Payroll,614.55,Agency Staff,Third Party Supplier,STANDARD,3390,KAAA-Directorate of Economic Growth and Neighbourhood Services
RBC Legal Entity,01/12/2021,4619014,264448,REED,Refuse Collection,615.25,Agency Staff,Third Party Supplier,STANDARD,4561,KAAA-Directorate of Economic Growth and Neighbourhood Services
RBC Legal Entity,01/12/2021,4619014,264448,REED,Refuse Collection,631.04,Agency Staff,Third Party Supplier,STANDARD,4561,KAAA-Directorate of Economic Growth and Neighbourhood Services
RBC Legal Entity,01/12/2021,4619014,264448,REED,Refuse Collection,694.14,Agency Staff,Third Party Supplier,STANDARD,4561,KAAA-Directorate of Economic Growth and Neighbourhood Services
RBC Legal Entity,01/12/2021,4619014,264448,REED,Lateral Flow Testing,695.86,Agency Staff,Third Party Supplier,STANDARD,2701,LAAA-Directorate of Resources
RBC Legal Entity,01/12/2021,4619014,264448,REED,BFFC Agency Staff (Rechargeable),797.63,Agency Staff,Third Party Supplier,STANDARD,2008,LAAA-Directorate of Resources
RBC Legal Entity,01/12/2021,4619014,264448,REED,BFFC Agency Staff (Rechargeable),797.65,Agency Staff,Third Party Supplier,STANDARD,2008,LAAA-Directorate of Resources
RBC Legal Entity,01/12/2021,4619014,264448,REED,Directorate Support,812.98,Agency Staff,Third Party Supplier,STANDARD,2036,LAAA-Directorate of Resources
RBC Legal Entity,01/12/2021,4619014,264448,REED,BFFC Agency Staff (Rechargeable),816.2,Agency Staff,Third Party Supplier,STANDARD,2008,LAAA-Directorate of Resources
RBC Legal Entity,01/12/2021,4619014,264448,REED,BFFC Agency Staff (Rechargeable),816.2,Agency Staff,Third Party Supplier,STANDARD,2008,LAAA-Directorate of Resources
RBC Legal Entity,01/12/2021,4619014,264448,REED,Transformation,861.6,Agency Staff,Third Party Supplier,STANDARD,5289,JAAA-Directorate of Social Care and Health Services
RBC Legal Entity,01/12/2021,4619014,264448,REED,Test and Trace,862.3,Agency Staff,Third Party Supplier,STANDARD,2068,JAAA-Directorate of Social Care and Health Services
RBC Legal Entity,01/12/2021,4619014,264448,REED,Lateral Flow Testing,865.37,Agency Staff,Third Party Supplier,STANDARD,2701,LAAA-Directorate of Resources
RBC Legal Entity,01/12/2021,4619014,264448,REED,Lateral Flow Testing,865.37,Agency Staff,Third Party Supplier,STANDARD,2701,LAAA-Directorate of Resources
RBC Legal Entity,01/12/2021,4619014,264448,REED,Lateral Flow Testing,877.78,Agency Staff,Third Party Supplier,STANDARD,2701,LAAA-Directorate of Resources
RBC Legal Entity,01/12/2021,4619014,264448,REED,BFFC Agency Staff (Rechargeable),942.75,Agency Staff,Third Party Supplier,STANDARD,2008,LAAA-Directorate of Resources
RBC Legal Entity,01/12/2021,4619014,264448,REED,Directorate Support,985.85,Agency Staff,Third Party Supplier,STANDARD,2036,LAAA-Directorate of Resources
RBC Legal Entity,01/12/2021,4619014,264448,REED,ASC Short Term Team,1017.3,Agency Staff,Third Party Supplier,STANDARD,5722,JAAA-Directorate of Social Care and Health Services
RBC Legal Entity,01/12/2021,4619014,264448,REED,Exchequer Services,1058.78,Agency Staff,Third Party Supplier,STANDARD,2210,LAAA-Directorate of Resources
RBC Legal Entity,01/12/2021,4619014,264448,REED,ASC Short Term Team,1067.45,Agency Staff,Third Party Supplier,STANDARD,5722,JAAA-Directorate of Social Care and Health Services
RBC Legal Entity,01/12/2021,4619014,264448,REED,ASC Short Term Team,1137,Agency Staff,Third Party Supplier,STANDARD,5722,JAAA-Directorate of Social Care and Health Services
RBC Legal Entity,01/12/2021,4619014,264448,REED,Joint Legal Team,1161.1,Agency Staff,Third Party Supplier,STANDARD,2405,LAAA-Directorate of Resources
RBC Legal Entity,01/12/2021,4619014,264448,REED,ASC Locality Team,1179.46,Agency Staff,Third Party Supplier,STANDARD,5721,JAAA-Directorate of Social Care and Health Services
RBC Legal Entity,01/12/2021,4619014,264448,REED,BFFC Agency Staff (Rechargeable),1184.8,Agency Staff,Third Party Supplier,STANDARD,2008,LAAA-Directorate of Resources
RBC Legal Entity,01/12/2021,4619014,264448,REED,Legal Services,1185.13,Agency Staff,Third Party Supplier,STANDARD,2400,LAAA-Directorate of Resources
RBC Legal Entity,01/12/2021,4619014,264448,REED,ASC Short Term Team,1236.8,Agency Staff,Third Party Supplier,STANDARD,5722,JAAA-Directorate of Social Care and Health Services
RBC Legal Entity,01/12/2021,4619014,264448,REED,Lateral Flow Testing,1243.2,Agency Staff,Third Party Supplier,STANDARD,2701,LAAA-Directorate of Resources
RBC Legal Entity,01/12/2021,4619014,264448,REED,ASC Locality Team,1256.5,Agency Staff,Third Party Supplier,STANDARD,5721,JAAA-Directorate of Social Care and Health Services
RBC Legal Entity,01/12/2021,4619014,264448,REED,ASC Locality Team,1298.08,Agency Staff,Third Party Supplier,STANDARD,5721,JAAA-Directorate of Social Care and Health Services
RBC Legal Entity,01/12/2021,4619014,264448,REED,ASC Short Term Team,1313.5,Agency Staff,Third Party Supplier,STANDARD,5722,JAAA-Directorate of Social Care and Health Services
RBC Legal Entity,01/12/2021,4619014,264448,REED,Safeguarding Adults,1328.3,Agency Staff,Third Party Supplier,STANDARD,5158,JAAA-Directorate of Social Care and Health Services
RBC Legal Entity,01/12/2021,4619014,264448,REED,ASC Short Term Team,1328.3,Agency Staff,Third Party Supplier,STANDARD,5722,JAAA-Directorate of Social Care and Health Services
RBC Legal Entity,01/12/2021,4619014,264448,REED,ASC Short Term Team,1328.3,Agency Staff,Third Party Supplier,STANDARD,5722,JAAA-Directorate of Social Care and Health Services
RBC Legal Entity,01/12/2021,4619014,264448,REED,ASC Locality Team,1328.3,Agency Staff,Third Party Supplier,STANDARD,5721,JAAA-Directorate of Social Care and Health Services
RBC Legal Entity,01/12/2021,4619014,264448,REED,ASC Locality Team,1328.3,Agency Staff,Third Party Supplier,STANDARD,5721,JAAA-Directorate of Social Care and Health Services
RBC Legal Entity,01/12/2021,4619014,264448,REED,Safeguarding Adults,1332,Agency Staff,Third Party Supplier,STANDARD,5158,JAAA-Directorate of Social Care and Health Services
RBC Legal Entity,01/12/2021,4619014,264448,REED,Legal Services,1346.95,Agency Staff,Third Party Supplier,STANDARD,2400,LAAA-Directorate of Resources
RBC Legal Entity,01/12/2021,4619014,264448,REED,ASC Short Term Team,1364.4,Agency Staff,Third Party Supplier,STANDARD,5722,JAAA-Directorate of Social Care and Health Services
RBC Legal Entity,01/12/2021,4619014,264448,REED,ASC Locality Team,1365.3,Agency Staff,Third Party Supplier,STANDARD,5721,JAAA-Directorate of Social Care and Health Services
RBC Legal Entity,01/12/2021,4619014,264448,REED,Safeguarding Adults,1402.3,Agency Staff,Third Party Supplier,STANDARD,5158,JAAA-Directorate of Social Care and Health Services
RBC Legal Entity,01/12/2021,4619014,264448,REED,ASC Short Term Team,1402.3,Agency Staff,Third Party Supplier,STANDARD,5722,JAAA-Directorate of Social Care and Health Services
RBC Legal Entity,01/12/2021,4619014,264448,REED,ASC Locality Team,1424.6,Agency Staff,Third Party Supplier,STANDARD,5721,JAAA-Directorate of Social Care and Health Services
RBC Legal Entity,01/12/2021,4619014,264448,REED,ASC Short Term Team,1430.05,Agency Staff,Third Party Supplier,STANDARD,5722,JAAA-Directorate of Social Care and Health Services
RBC Legal Entity,01/12/2021,4619014,264448,REED,Mental Health Team,1439.3,Agency Staff,Third Party Supplier,STANDARD,5253,JAAA-Directorate of Social Care and Health Services
RBC Legal Entity,01/12/2021,4619014,264448,REED,ASC Locality Team,1439.3,Agency Staff,Third Party Supplier,STANDARD,5721,JAAA-Directorate of Social Care and Health Services
RBC Legal Entity,01/12/2021,4619014,264448,REED,ASC Locality Team,1439.3,Agency Staff,Third Party Supplier,STANDARD,5721,JAAA-Directorate of Social Care and Health Services
RBC Legal Entity,01/12/2021,4619014,264448,REED,Mental Health Team,1448.55,Agency Staff,Third Party Supplier,STANDARD,5253,JAAA-Directorate of Social Care and Health Services
RBC Legal Entity,01/12/2021,4619014,264448,REED,Accountancy,1465.5,Agency Staff,Third Party Supplier,STANDARD,2200,LAAA-Directorate of Resources
RBC Legal Entity,01/12/2021,4619014,264448,REED,BFFC Agency Staff (Rechargeable),1513.3,Agency Staff,Third Party Supplier,STANDARD,2008,LAAA-Directorate of Resources
RBC Legal Entity,01/12/2021,4619014,264448,REED,BFFC Agency Staff (Rechargeable),1550.3,Agency Staff,Third Party Supplier,STANDARD,2008,LAAA-Directorate of Resources
RBC Legal Entity,01/12/2021,4619014,264448,REED,BFFC Agency Staff (Rechargeable),1550.3,Agency Staff,Third Party Supplier,STANDARD,2008,LAAA-Directorate of Resources
RBC Legal Entity,01/12/2021,4619014,264448,REED,BFFC Agency Staff (Rechargeable),1550.3,Agency Staff,Third Party Supplier,STANDARD,2008,LAAA-Directorate of Resources
RBC Legal Entity,01/12/2021,4619014,264448,REED,BFFC Agency Staff (Rechargeable),1550.3,Agency Staff,Third Party Supplier,STANDARD,2008,LAAA-Directorate of Resources
RBC Legal Entity,01/12/2021,4619014,264448,REED,BFFC Agency Staff (Rechargeable),1550.3,Agency Staff,Third Party Supplier,STANDARD,2008,LAAA-Directorate of Resources
RBC Legal Entity,01/12/2021,4619014,264448,REED,BFFC Agency Staff (Rechargeable),1550.3,Agency Staff,Third Party Supplier,STANDARD,2008,LAAA-Directorate of Resources
RBC Legal Entity,01/12/2021,4619014,264448,REED,BFFC Agency Staff (Rechargeable),1550.3,Agency Staff,Third Party Supplier,STANDARD,2008,LAAA-Directorate of Resources
RBC Legal Entity,01/12/2021,4619014,264448,REED,BFFC Agency Staff (Rechargeable),1550.3,Agency Staff,Third Party Supplier,STANDARD,2008,LAAA-Directorate of Resources
RBC Legal Entity,01/12/2021,4619014,264448,REED,BFFC Agency Staff (Rechargeable),1550.3,Agency Staff,Third Party Supplier,STANDARD,2008,LAAA-Directorate of Resources
RBC Legal Entity,01/12/2021,4619014,264448,REED,BFFC Agency Staff (Rechargeable),1559.55,Agency Staff,Third Party Supplier,STANDARD,2008,LAAA-Directorate of Resources
RBC Legal Entity,01/12/2021,4619014,264448,REED,BFFC Agency Staff (Rechargeable),1559.55,Agency Staff,Third Party Supplier,STANDARD,2008,LAAA-Directorate of Resources
RBC Legal Entity,01/12/2021,4619014,264448,REED,BFFC Agency Staff (Rechargeable),1559.55,Agency Staff,Third Party Supplier,STANDARD,2008,LAAA-Directorate of Resources
RBC Legal Entity,01/12/2021,4619014,264448,REED,ASC Locality Team,1580.4,Agency Staff,Third Party Supplier,STANDARD,5721,JAAA-Directorate of Social Care and Health Services
RBC Legal Entity,01/12/2021,4619014,264448,REED,BFFC Agency Staff (Rechargeable),1624.3,Agency Staff,Third Party Supplier,STANDARD,2008,LAAA-Directorate of Resources
RBC Legal Entity,01/12/2021,4619014,264448,REED,BFFC Agency Staff (Rechargeable),1624.3,Agency Staff,Third Party Supplier,STANDARD,2008,LAAA-Directorate of Resources
RBC Legal Entity,01/12/2021,4619014,264448,REED,BFFC Agency Staff (Rechargeable),1624.3,Agency Staff,Third Party Supplier,STANDARD,2008,LAAA-Directorate of Resources
RBC Legal Entity,01/12/2021,4619014,264448,REED,BFFC Agency Staff (Rechargeable),1624.3,Agency Staff,Third Party Supplier,STANDARD,2008,LAAA-Directorate of Resources
RBC Legal Entity,01/12/2021,4619014,264448,REED,BFFC Agency Staff (Rechargeable),1624.3,Agency Staff,Third Party Supplier,STANDARD,2008,LAAA-Directorate of Resources
RBC Legal Entity,01/12/2021,4619014,264448,REED,BFFC Agency Staff (Rechargeable),1624.3,Agency Staff,Third Party Supplier,STANDARD,2008,LAAA-Directorate of Resources
RBC Legal Entity,01/12/2021,4619014,264448,REED,BFFC Agency Staff (Rechargeable),1624.3,Agency Staff,Third Party Supplier,STANDARD,2008,LAAA-Directorate of Resources
RBC Legal Entity,01/12/2021,4619014,264448,REED,BFFC Agency Staff (Rechargeable),1624.3,Agency Staff,Third Party Supplier,STANDARD,2008,LAAA-Directorate of Resources
RBC Legal Entity,01/12/2021,4619014,264448,REED,BFFC Agency Staff (Rechargeable),1624.3,Agency Staff,Third Party Supplier,STANDARD,2008,LAAA-Directorate of Resources
RBC Legal Entity,01/12/2021,4619014,264448,REED,BFFC Agency Staff (Rechargeable),1633.55,Agency Staff,Third Party Supplier,STANDARD,2008,LAAA-Directorate of Resources
RBC Legal Entity,01/12/2021,4619014,264448,REED,BFFC Agency Staff (Rechargeable),1633.55,Agency Staff,Third Party Supplier,STANDARD,2008,LAAA-Directorate of Resources
RBC Legal Entity,01/12/2021,4619014,264448,REED,Accountancy,1656,Agency Staff,Third Party Supplier,STANDARD,2200,LAAA-Directorate of Resources
RBC Legal Entity,01/12/2021,4619014,264448,REED,BFFC Agency Staff (Rechargeable),1672.9,Agency Staff,Third Party Supplier,STANDARD,2008,LAAA-Directorate of Resources
RBC Legal Entity,01/12/2021,4619014,264448,REED,BFFC Agency Staff (Rechargeable),1672.9,Agency Staff,Third Party Supplier,STANDARD,2008,LAAA-Directorate of Resources
RBC Legal Entity,01/12/2021,4619014,264448,REED,ASC Short Term Team,1792.32,Agency Staff,Third Party Supplier,STANDARD,5722,JAAA-Directorate of Social Care and Health Services
RBC Legal Entity,01/12/2021,4619014,264448,REED,Valuation,1819.5,Agency Staff,Third Party Supplier,STANDARD,2100,KAAA-Directorate of Economic Growth and Neighbourhood Services
RBC Legal Entity,01/12/2021,4619014,264448,REED,Joint Legal Team,1846.3,Agency Staff,Third Party Supplier,STANDARD,2405,LAAA-Directorate of Resources
RBC Legal Entity,01/12/2021,4619014,264448,REED,Joint Legal Team,2031.3,Agency Staff,Third Party Supplier,STANDARD,2405,LAAA-Directorate of Resources
RBC Legal Entity,01/12/2021,4619014,264448,REED,BFFC Agency Staff (Rechargeable),2067.6,Agency Staff,Third Party Supplier,STANDARD,2008,LAAA-Directorate of Resources
RBC Legal Entity,01/12/2021,4619014,264448,REED,BFFC Agency Staff (Rechargeable),2126.64,Agency Staff,Third Party Supplier,STANDARD,2008,LAAA-Directorate of Resources
RBC Legal Entity,01/12/2021,4619014,264448,REED,Legal Services,2148.2,Agency Staff,Third Party Supplier,STANDARD,2400,LAAA-Directorate of Resources
RBC Legal Entity,01/12/2021,4619014,264448,REED,ASC Senior Management Team,2176,Agency Staff,Third Party Supplier,STANDARD,5700,JAAA-Directorate of Social Care and Health Services
RBC Legal Entity,01/12/2021,4619014,264448,REED,Joint Legal Team,2196,Agency Staff,Third Party Supplier,STANDARD,2405,LAAA-Directorate of Resources
RBC Legal Entity,01/12/2021,4619014,264448,REED,Joint Legal Team,2245.95,Agency Staff,Third Party Supplier,STANDARD,2405,LAAA-Directorate of Resources
RBC Legal Entity,01/12/2021,4619014,264448,REED,BFFC Agency Staff (Rechargeable),2276,Agency Staff,Third Party Supplier,STANDARD,2008,LAAA-Directorate of Resources
RBC Legal Entity,01/12/2021,4619014,264448,REED,Accountancy,2426,Agency Staff,Third Party Supplier,STANDARD,2200,LAAA-Directorate of Resources
RBC Legal Entity,01/12/2021,4619014,264448,REED,IT Management,2426,Agency Staff,Third Party Supplier,STANDARD,2300,EAAA-Chief Executive
RBC Legal Entity,01/12/2021,4619014,264448,REED,IT Management,2478.5,Agency Staff,Third Party Supplier,STANDARD,2300,EAAA-Chief Executive
RBC Legal Entity,01/12/2021,4619014,264448,REED,Test and Trace,2478.5,Agency Staff,Third Party Supplier,STANDARD,2068,JAAA-Directorate of Social Care and Health Services
RBC Legal Entity,01/12/2021,4619014,264448,REED,Legal Services,2621.48,Agency Staff,Third Party Supplier,STANDARD,2400,LAAA-Directorate of Resources
RBC Legal Entity,01/12/2021,4619014,264448,REED,Accountancy,2643.5,Agency Staff,Third Party Supplier,STANDARD,2200,LAAA-Directorate of Resources
RBC Legal Entity,01/12/2021,4619014,264448,REED,Accountancy,2801,Agency Staff,Third Party Supplier,STANDARD,2200,LAAA-Directorate of Resources
RBC Legal Entity,01/12/2021,4619014,264448,REED,ASC Senior Management Team,2926,Agency Staff,Third Party Supplier,STANDARD,5700,JAAA-Directorate of Social Care and Health Services
RBC Legal Entity,01/12/2021,4619014,264448,REED,Accountancy,3356,Agency Staff,Third Party Supplier,STANDARD,2200,LAAA-Directorate of Resources
RBC Legal Entity,01/12/2021,4619014,264448,REED,Finance systems Re-procurement,3356,Staff/Consultancy,Third Party Supplier,STANDARD,8637,ZZZC-Capital
RBC Legal Entity,01/12/2021,4619014,264448,REED,BFFC Agency Staff (Rechargeable),3544.4,Agency Staff,Third Party Supplier,STANDARD,2008,LAAA-Directorate of Resources
RBC Legal Entity,01/12/2021,4619017,264448,REED,Refuse Collection,-92.85,Agency Staff,Third Party Supplier,CREDIT,4561,KAAA-Directorate of Economic Growth and Neighbourhood Services
RBC Legal Entity,01/12/2021,4619017,264448,REED,ASC Short Term Team,2.25,Agency Staff,Third Party Supplier,STANDARD,5722,JAAA-Directorate of Social Care and Health Services
RBC Legal Entity,01/12/2021,4619017,264448,REED,BFFC Agency Staff (Rechargeable),4.5,Agency Staff,Third Party Supplier,STANDARD,2008,LAAA-Directorate of Resources
RBC Legal Entity,01/12/2021,4619017,264448,REED,BFFC Agency Staff (Rechargeable),4.5,Agency Staff,Third Party Supplier,STANDARD,2008,LAAA-Directorate of Resources
RBC Legal Entity,01/12/2021,4619017,264448,REED,ASC Short Term Team,5.4,Agency Staff,Third Party Supplier,STANDARD,5722,JAAA-Directorate of Social Care and Health Services
RBC Legal Entity,01/12/2021,4619017,264448,REED,ASC Locality Team,9,Agency Staff,Third Party Supplier,STANDARD,5721,JAAA-Directorate of Social Care and Health Services
RBC Legal Entity,01/12/2021,4619017,264448,REED,BFFC Agency Staff (Rechargeable),12.15,Agency Staff,Third Party Supplier,STANDARD,2008,LAAA-Directorate of Resources
RBC Legal Entity,01/12/2021,4619017,264448,REED,BFFC Agency Staff (Rechargeable),14.4,Agency Staff,Third Party Supplier,STANDARD,2008,LAAA-Directorate of Resources
RBC Legal Entity,01/12/2021,4619017,264448,REED,BFFC Agency Staff (Rechargeable),15.3,Agency Staff,Third Party Supplier,STANDARD,2008,LAAA-Directorate of Resources
RBC Legal Entity,01/12/2021,4619017,264448,REED,BFFC Agency Staff (Rechargeable),20.25,Agency Staff,Third Party Supplier,STANDARD,2008,LAAA-Directorate of Resources
RBC Legal Entity,01/12/2021,4619017,264448,REED,BFFC Agency Staff (Rechargeable),28.35,Agency Staff,Third Party Supplier,STANDARD,2008,LAAA-Directorate of Resources
RBC Legal Entity,01/12/2021,4619017,264448,REED,BFFC Agency Staff (Rechargeable),28.35,Agency Staff,Third Party Supplier,STANDARD,2008,LAAA-Directorate of Resources
RBC Legal Entity,01/12/2021,4619017,264448,REED,Mental Health Team,33.75,Agency Staff,Third Party Supplier,STANDARD,5253,JAAA-Directorate of Social Care and Health Services
RBC Legal Entity,01/12/2021,4619017,264448,REED,BFFC Agency Staff (Rechargeable),40.05,Agency Staff,Third Party Supplier,STANDARD,2008,LAAA-Directorate of Resources
RBC Legal Entity,01/12/2021,4619017,264448,REED,BFFC Agency Staff (Rechargeable),43.65,Agency Staff,Third Party Supplier,STANDARD,2008,LAAA-Directorate of Resources
RBC Legal Entity,01/12/2021,4619017,264448,REED,Transformation,48.6,Agency Staff,Third Party Supplier,STANDARD,5289,JAAA-Directorate of Social Care and Health Services
RBC Legal Entity,01/12/2021,4619017,264448,REED,BFFC Agency Staff (Rechargeable),53.41,Agency Staff,Third Party Supplier,STANDARD,2008,LAAA-Directorate of Resources
RBC Legal Entity,01/12/2021,4619017,264448,REED,BFFC Agency Staff (Rechargeable),71.1,Agency Staff,Third Party Supplier,STANDARD,2008,LAAA-Directorate of Resources
RBC Legal Entity,01/12/2021,4619017,264448,REED,BFFC Agency Staff (Rechargeable),102.15,Agency Staff,Third Party Supplier,STANDARD,2008,LAAA-Directorate of Resources
RBC Legal Entity,01/12/2021,4619017,264448,REED,Refuse Collection,118.39,Agency Staff,Third Party Supplier,STANDARD,4561,KAAA-Directorate of Economic Growth and Neighbourhood Services
RBC Legal Entity,01/12/2021,4619017,264448,REED,BFFC Agency Staff (Rechargeable),120.15,Agency Staff,Third Party Supplier,STANDARD,2008,LAAA-Directorate of Resources
RBC Legal Entity,01/12/2021,4619017,264448,REED,Lateral Flow Testing,121.61,Agency Staff,Third Party Supplier,STANDARD,2701,LAAA-Directorate of Resources
RBC Legal Entity,01/12/2021,4619017,264448,REED,Customer Services - Reception,223.29,Agency Staff,Third Party Supplier,STANDARD,2595,LAAA-Directorate of Resources
RBC Legal Entity,01/12/2021,4619017,264448,REED,BFFC Agency Staff (Rechargeable),233.57,Agency Staff,Third Party Supplier,STANDARD,2008,LAAA-Directorate of Resources
RBC Legal Entity,01/12/2021,4619017,264448,REED,Customer Services - Reception,249.73,Agency Staff,Third Party Supplier,STANDARD,2595,LAAA-Directorate of Resources
RBC Legal Entity,01/12/2021,4619017,264448,REED,BFFC Agency Staff (Rechargeable),267.3,Agency Staff,Third Party Supplier,STANDARD,2008,LAAA-Directorate of Resources
RBC Legal Entity,01/12/2021,4619017,264448,REED,BFFC Agency Staff (Rechargeable),271.35,Agency Staff,Third Party Supplier,STANDARD,2008,LAAA-Directorate of Resources
RBC Legal Entity,01/12/2021,4619017,264448,REED,Lateral Flow Testing,422.37,Agency Staff,Third Party Supplier,STANDARD,2701,LAAA-Directorate of Resources
RBC Legal Entity,01/12/2021,4619017,264448,REED,Street Cleansing,425.49,Agency Staff,Third Party Supplier,STANDARD,4566,KAAA-Directorate of Economic Growth and Neighbourhood Services
RBC Legal Entity,01/12/2021,4619017,264448,REED,Lateral Flow Testing,428.22,Agency Staff,Third Party Supplier,STANDARD,2701,LAAA-Directorate of Resources
RBC Legal Entity,01/12/2021,4619017,264448,REED,Lateral Flow Testing,481.76,Agency Staff,Third Party Supplier,STANDARD,2701,LAAA-Directorate of Resources
RBC Legal Entity,01/12/2021,4619017,264448,REED,Accountancy,489.96,Agency Staff,Third Party Supplier,STANDARD,2200,LAAA-Directorate of Resources
RBC Legal Entity,01/12/2021,4619017,264448,REED,Directorate Support,500.29,Agency Staff,Third Party Supplier,STANDARD,2036,LAAA-Directorate of Resources
RBC Legal Entity,01/12/2021,4619017,264448,REED,Street Cleansing,525.2,Agency Staff,Third Party Supplier,STANDARD,4566,KAAA-Directorate of Economic Growth and Neighbourhood Services
RBC Legal Entity,01/12/2021,4619017,264448,REED,Street Cleansing,525.2,Agency Staff,Third Party Supplier,STANDARD,4566,KAAA-Directorate of Economic Growth and Neighbourhood Services
RBC Legal Entity,01/12/2021,4619017,264448,REED,Street Cleansing,531.86,Agency Staff,Third Party Supplier,STANDARD,4566,KAAA-Directorate of Economic Growth and Neighbourhood Services
RBC Legal Entity,01/12/2021,4619017,264448,REED,Lateral Flow Testing,535.27,Agency Staff,Third Party Supplier,STANDARD,2701,LAAA-Directorate of Resources
RBC Legal Entity,01/12/2021,4619017,264448,REED,Lateral Flow Testing,549.53,Agency Staff,Third Party Supplier,STANDARD,2701,LAAA-Directorate of Resources
RBC Legal Entity,01/12/2021,4619017,264448,REED,Street Cleansing,554.06,Agency Staff,Third Party Supplier,STANDARD,4566,KAAA-Directorate of Economic Growth and Neighbourhood Services
RBC Legal Entity,01/12/2021,4619017,264448,REED,Street Cleansing,554.06,Agency Staff,Third Party Supplier,STANDARD,4566,KAAA-Directorate of Economic Growth and Neighbourhood Services
RBC Legal Entity,01/12/2021,4619017,264448,REED,Procurement Services,557.39,Agency Staff,Third Party Supplier,STANDARD,2402,LAAA-Directorate of Resources
RBC Legal Entity,01/12/2021,4619017,264448,REED,Refuse Collection,583.72,Agency Staff,Third Party Supplier,STANDARD,4561,KAAA-Directorate of Economic Growth and Neighbourhood Services
RBC Legal Entity,01/12/2021,4619017,264448,REED,Refuse Collection,583.72,Agency Staff,Third Party Supplier,STANDARD,4561,KAAA-Directorate of Economic Growth and Neighbourhood Services
RBC Legal Entity,01/12/2021,4619017,264448,REED,Refuse Collection,583.72,Agency Staff,Third Party Supplier,STANDARD,4561,KAAA-Directorate of Economic Growth and Neighbourhood Services
RBC Legal Entity,01/12/2021,4619017,264448,REED,Refuse Collection,584.09,Agency Staff,Third Party Supplier,STANDARD,4561,KAAA-Directorate of Economic Growth and Neighbourhood Services
RBC Legal Entity,01/12/2021,4619017,264448,REED,Refuse Collection,592.3,Agency Staff,Third Party Supplier,STANDARD,4561,KAAA-Directorate of Economic Growth and Neighbourhood Services
RBC Legal Entity,01/12/2021,4619017,264448,REED,Refuse Collection,592.3,Agency Staff,Third Party Supplier,STANDARD,4561,KAAA-Directorate of Economic Growth and Neighbourhood Services
RBC Legal Entity,01/12/2021,4619017,264448,REED,Refuse Collection,592.3,Agency Staff,Third Party Supplier,STANDARD,4561,KAAA-Directorate of Economic Growth and Neighbourhood Services
RBC Legal Entity,01/12/2021,4619017,264448,REED,Refuse Collection,593.63,Agency Staff,Third Party Supplier,STANDARD,4561,KAAA-Directorate of Economic Growth and Neighbourhood Services
RBC Legal Entity,01/12/2021,4619017,264448,REED,Customer Services - Reception,610.92,Agency Staff,Third Party Supplier,STANDARD,2595,LAAA-Directorate of Resources
RBC Legal Entity,01/12/2021,4619017,264448,REED,Buildings Payroll,626.11,Agency Staff,Third Party Supplier,STANDARD,3390,KAAA-Directorate of Economic Growth and Neighbourhood Services
RBC Legal Entity,01/12/2021,4619017,264448,REED,Street Cleansing,664.86,Agency Staff,Third Party Supplier,STANDARD,4566,KAAA-Directorate of Economic Growth and Neighbourhood Services
RBC Legal Entity,01/12/2021,4619017,264448,REED,Street Cleansing,664.86,Agency Staff,Third Party Supplier,STANDARD,4566,KAAA-Directorate of Economic Growth and Neighbourhood Services
RBC Legal Entity,01/12/2021,4619017,264448,REED,Grounds Maintenance,720.91,Agency Staff,Third Party Supplier,STANDARD,1306,KAAA-Directorate of Economic Growth and Neighbourhood Services
RBC Legal Entity,01/12/2021,4619017,264448,REED,Grounds Maintenance,738.93,Agency Staff,Third Party Supplier,STANDARD,1306,KAAA-Directorate of Economic Growth and Neighbourhood Services
RBC Legal Entity,01/12/2021,4619017,264448,REED,Lateral Flow Testing,743.49,Agency Staff,Third Party Supplier,STANDARD,2701,LAAA-Directorate of Resources
RBC Legal Entity,01/12/2021,4619017,264448,REED,BFFC Agency Staff (Rechargeable),797.63,Agency Staff,Third Party Supplier,STANDARD,2008,LAAA-Directorate of Resources
RBC Legal Entity,01/12/2021,4619017,264448,REED,Directorate Support,802.55,Agency Staff,Third Party Supplier,STANDARD,2036,LAAA-Directorate of Resources
RBC Legal Entity,01/12/2021,4619017,264448,REED,Test and Trace,808.42,Agency Staff,Third Party Supplier,STANDARD,2068,JAAA-Directorate of Social Care and Health Services
RBC Legal Entity,01/12/2021,4619017,264448,REED,Transformation,861.6,Agency Staff,Third Party Supplier,STANDARD,5289,JAAA-Directorate of Social Care and Health Services
RBC Legal Entity,01/12/2021,4619017,264448,REED,Lateral Flow Testing,865.37,Agency Staff,Third Party Supplier,STANDARD,2701,LAAA-Directorate of Resources
RBC Legal Entity,01/12/2021,4619017,264448,REED,Lateral Flow Testing,865.37,Agency Staff,Third Party Supplier,STANDARD,2701,LAAA-Directorate of Resources
RBC Legal Entity,01/12/2021,4619017,264448,REED,Lateral Flow Testing,877.78,Agency Staff,Third Party Supplier,STANDARD,2701,LAAA-Directorate of Resources
RBC Legal Entity,01/12/2021,4619017,264448,REED,ASC Short Term Team,900,Agency Staff,Third Party Supplier,STANDARD,5722,JAAA-Directorate of Social Care and Health Services
RBC Legal Entity,01/12/2021,4619017,264448,REED,ASC Short Term Team,900,Agency Staff,Third Party Supplier,STANDARD,5722,JAAA-Directorate of Social Care and Health Services
RBC Legal Entity,01/12/2021,4619017,264448,REED,Safeguarding Adults,915.45,Agency Staff,Third Party Supplier,STANDARD,5158,JAAA-Directorate of Social Care and Health Services
RBC Legal Entity,01/12/2021,4619017,264448,REED,BFFC Agency Staff (Rechargeable),942.75,Agency Staff,Third Party Supplier,STANDARD,2008,LAAA-Directorate of Resources
RBC Legal Entity,01/12/2021,4619017,264448,REED,Directorate Support,958.47,Agency Staff,Third Party Supplier,STANDARD,2036,LAAA-Directorate of Resources
RBC Legal Entity,01/12/2021,4619017,264448,REED,Accountancy,970.4,Agency Staff,Third Party Supplier,STANDARD,2200,LAAA-Directorate of Resources
RBC Legal Entity,01/12/2021,4619017,264448,REED,Exchequer Services,1034.02,Agency Staff,Third Party Supplier,STANDARD,2210,LAAA-Directorate of Resources
RBC Legal Entity,01/12/2021,4619017,264448,REED,ASC Short Term Team,1067.45,Agency Staff,Third Party Supplier,STANDARD,5722,JAAA-Directorate of Social Care and Health Services
RBC Legal Entity,01/12/2021,4619017,264448,REED,ASC Locality Team,1070.68,Agency Staff,Third Party Supplier,STANDARD,5721,JAAA-Directorate of Social Care and Health Services
RBC Legal Entity,01/12/2021,4619017,264448,REED,Legal Services,1074.4,Agency Staff,Third Party Supplier,STANDARD,2400,LAAA-Directorate of Resources
RBC Legal Entity,01/12/2021,4619017,264448,REED,Safeguarding Adults,1080,Agency Staff,Third Party Supplier,STANDARD,5158,JAAA-Directorate of Social Care and Health Services
RBC Legal Entity,01/12/2021,4619017,264448,REED,Joint Legal Team,1098.35,Agency Staff,Third Party Supplier,STANDARD,2405,LAAA-Directorate of Resources
RBC Legal Entity,01/12/2021,4619017,264448,REED,ASC Short Term Team,1137,Agency Staff,Third Party Supplier,STANDARD,5722,JAAA-Directorate of Social Care and Health Services
RBC Legal Entity,01/12/2021,4619017,264448,REED,ASC Short Term Team,1159.5,Agency Staff,Third Party Supplier,STANDARD,5722,JAAA-Directorate of Social Care and Health Services
RBC Legal Entity,01/12/2021,4619017,264448,REED,Mental Health Team,1164.71,Agency Staff,Third Party Supplier,STANDARD,5253,JAAA-Directorate of Social Care and Health Services
RBC Legal Entity,01/12/2021,4619017,264448,REED,ASC Locality Team,1179.46,Agency Staff,Third Party Supplier,STANDARD,5721,JAAA-Directorate of Social Care and Health Services
RBC Legal Entity,01/12/2021,4619017,264448,REED,BFFC Agency Staff (Rechargeable),1184.8,Agency Staff,Third Party Supplier,STANDARD,2008,LAAA-Directorate of Resources
RBC Legal Entity,01/12/2021,4619017,264448,REED,Legal Services,1197.6,Agency Staff,Third Party Supplier,STANDARD,2400,LAAA-Directorate of Resources
RBC Legal Entity,01/12/2021,4619017,264448,REED,ASC Short Term Team,1236.8,Agency Staff,Third Party Supplier,STANDARD,5722,JAAA-Directorate of Social Care and Health Services
RBC Legal Entity,01/12/2021,4619017,264448,REED,Lateral Flow Testing,1243.2,Agency Staff,Third Party Supplier,STANDARD,2701,LAAA-Directorate of Resources
RBC Legal Entity,01/12/2021,4619017,264448,REED,ASC Short Term Team,1313.5,Agency Staff,Third Party Supplier,STANDARD,5722,JAAA-Directorate of Social Care and Health Services
RBC Legal Entity,01/12/2021,4619017,264448,REED,BFFC Agency Staff (Rechargeable),1317,Agency Staff,Third Party Supplier,STANDARD,2008,LAAA-Directorate of Resources
RBC Legal Entity,01/12/2021,4619017,264448,REED,BFFC Agency Staff (Rechargeable),1317,Agency Staff,Third Party Supplier,STANDARD,2008,LAAA-Directorate of Resources
RBC Legal Entity,01/12/2021,4619017,264448,REED,ASC Short Term Team,1328.3,Agency Staff,Third Party Supplier,STANDARD,5722,JAAA-Directorate of Social Care and Health Services
RBC Legal Entity,01/12/2021,4619017,264448,REED,ASC Short Term Team,1328.3,Agency Staff,Third Party Supplier,STANDARD,5722,JAAA-Directorate of Social Care and Health Services
RBC Legal Entity,01/12/2021,4619017,264448,REED,ASC Locality Team,1328.3,Agency Staff,Third Party Supplier,STANDARD,5721,JAAA-Directorate of Social Care and Health Services
RBC Legal Entity,01/12/2021,4619017,264448,REED,ASC Locality Team,1328.3,Agency Staff,Third Party Supplier,STANDARD,5721,JAAA-Directorate of Social Care and Health Services
RBC Legal Entity,01/12/2021,4619017,264448,REED,ASC Locality Team,1328.3,Agency Staff,Third Party Supplier,STANDARD,5721,JAAA-Directorate of Social Care and Health Services
RBC Legal Entity,01/12/2021,4619017,264448,REED,ASC Locality Team,1328.3,Agency Staff,Third Party Supplier,STANDARD,5721,JAAA-Directorate of Social Care and Health Services
RBC Legal Entity,01/12/2021,4619017,264448,REED,Legal Services,1335.36,Agency Staff,Third Party Supplier,STANDARD,2400,LAAA-Directorate of Resources
RBC Legal Entity,01/12/2021,4619017,264448,REED,ASC Short Term Team,1364.4,Agency Staff,Third Party Supplier,STANDARD,5722,JAAA-Directorate of Social Care and Health Services
RBC Legal Entity,01/12/2021,4619017,264448,REED,ASC Locality Team,1365.3,Agency Staff,Third Party Supplier,STANDARD,5721,JAAA-Directorate of Social Care and Health Services
RBC Legal Entity,01/12/2021,4619017,264448,REED,Safeguarding Adults,1402.3,Agency Staff,Third Party Supplier,STANDARD,5158,JAAA-Directorate of Social Care and Health Services
RBC Legal Entity,01/12/2021,4619017,264448,REED,ASC Short Term Team,1402.3,Agency Staff,Third Party Supplier,STANDARD,5722,JAAA-Directorate of Social Care and Health Services
RBC Legal Entity,01/12/2021,4619017,264448,REED,Mental Health Team,1439.3,Agency Staff,Third Party Supplier,STANDARD,5253,JAAA-Directorate of Social Care and Health Services
RBC Legal Entity,01/12/2021,4619017,264448,REED,ASC Locality Team,1439.3,Agency Staff,Third Party Supplier,STANDARD,5721,JAAA-Directorate of Social Care and Health Services
RBC Legal Entity,01/12/2021,4619017,264448,REED,ASC Locality Team,1439.3,Agency Staff,Third Party Supplier,STANDARD,5721,JAAA-Directorate of Social Care and Health Services
RBC Legal Entity,01/12/2021,4619017,264448,REED,Accountancy,1465.5,Agency Staff,Third Party Supplier,STANDARD,2200,LAAA-Directorate of Resources
RBC Legal Entity,01/12/2021,4619017,264448,REED,BFFC Agency Staff (Rechargeable),1513.3,Agency Staff,Third Party Supplier,STANDARD,2008,LAAA-Directorate of Resources
RBC Legal Entity,01/12/2021,4619017,264448,REED,BFFC Agency Staff (Rechargeable),1550.3,Agency Staff,Third Party Supplier,STANDARD,2008,LAAA-Directorate of Resources
RBC Legal Entity,01/12/2021,4619017,264448,REED,BFFC Agency Staff (Rechargeable),1550.3,Agency Staff,Third Party Supplier,STANDARD,2008,LAAA-Directorate of Resources
RBC Legal Entity,01/12/2021,4619017,264448,REED,BFFC Agency Staff (Rechargeable),1550.3,Agency Staff,Third Party Supplier,STANDARD,2008,LAAA-Directorate of Resources
RBC Legal Entity,01/12/2021,4619017,264448,REED,BFFC Agency Staff (Rechargeable),1550.3,Agency Staff,Third Party Supplier,STANDARD,2008,LAAA-Directorate of Resources
RBC Legal Entity,01/12/2021,4619017,264448,REED,BFFC Agency Staff (Rechargeable),1550.3,Agency Staff,Third Party Supplier,STANDARD,2008,LAAA-Directorate of Resources
RBC Legal Entity,01/12/2021,4619017,264448,REED,BFFC Agency Staff (Rechargeable),1550.3,Agency Staff,Third Party Supplier,STANDARD,2008,LAAA-Directorate of Resources
RBC Legal Entity,01/12/2021,4619017,264448,REED,BFFC Agency Staff (Rechargeable),1550.3,Agency Staff,Third Party Supplier,STANDARD,2008,LAAA-Directorate of Resources
RBC Legal Entity,01/12/2021,4619017,264448,REED,BFFC Agency Staff (Rechargeable),1550.3,Agency Staff,Third Party Supplier,STANDARD,2008,LAAA-Directorate of Resources
RBC Legal Entity,01/12/2021,4619017,264448,REED,BFFC Agency Staff (Rechargeable),1550.3,Agency Staff,Third Party Supplier,STANDARD,2008,LAAA-Directorate of Resources
RBC Legal Entity,01/12/2021,4619017,264448,REED,BFFC Agency Staff (Rechargeable),1559.55,Agency Staff,Third Party Supplier,STANDARD,2008,LAAA-Directorate of Resources
RBC Legal Entity,01/12/2021,4619017,264448,REED,BFFC Agency Staff (Rechargeable),1559.55,Agency Staff,Third Party Supplier,STANDARD,2008,LAAA-Directorate of Resources
RBC Legal Entity,01/12/2021,4619017,264448,REED,ASC Locality Team,1580.4,Agency Staff,Third Party Supplier,STANDARD,5721,JAAA-Directorate of Social Care and Health Services
RBC Legal Entity,01/12/2021,4619017,264448,REED,ASC Short Term Team,1601.16,Agency Staff,Third Party Supplier,STANDARD,5722,JAAA-Directorate of Social Care and Health Services
RBC Legal Entity,01/12/2021,4619017,264448,REED,ASC Locality Team,1624.3,Agency Staff,Third Party Supplier,STANDARD,5721,JAAA-Directorate of Social Care and Health Services
RBC Legal Entity,01/12/2021,4619017,264448,REED,BFFC Agency Staff (Rechargeable),1624.3,Agency Staff,Third Party Supplier,STANDARD,2008,LAAA-Directorate of Resources
RBC Legal Entity,01/12/2021,4619017,264448,REED,BFFC Agency Staff (Rechargeable),1624.3,Agency Staff,Third Party Supplier,STANDARD,2008,LAAA-Directorate of Resources
RBC Legal Entity,01/12/2021,4619017,264448,REED,BFFC Agency Staff (Rechargeable),1624.3,Agency Staff,Third Party Supplier,STANDARD,2008,LAAA-Directorate of Resources
RBC Legal Entity,01/12/2021,4619017,264448,REED,BFFC Agency Staff (Rechargeable),1624.3,Agency Staff,Third Party Supplier,STANDARD,2008,LAAA-Directorate of Resources
RBC Legal Entity,01/12/2021,4619017,264448,REED,BFFC Agency Staff (Rechargeable),1624.3,Agency Staff,Third Party Supplier,STANDARD,2008,LAAA-Directorate of Resources
RBC Legal Entity,01/12/2021,4619017,264448,REED,BFFC Agency Staff (Rechargeable),1624.3,Agency Staff,Third Party Supplier,STANDARD,2008,LAAA-Directorate of Resources
RBC Legal Entity,01/12/2021,4619017,264448,REED,BFFC Agency Staff (Rechargeable),1624.3,Agency Staff,Third Party Supplier,STANDARD,2008,LAAA-Directorate of Resources
RBC Legal Entity,01/12/2021,4619017,264448,REED,BFFC Agency Staff (Rechargeable),1624.3,Agency Staff,Third Party Supplier,STANDARD,2008,LAAA-Directorate of Resources
RBC Legal Entity,01/12/2021,4619017,264448,REED,BFFC Agency Staff (Rechargeable),1624.3,Agency Staff,Third Party Supplier,STANDARD,2008,LAAA-Directorate of Resources
RBC Legal Entity,01/12/2021,4619017,264448,REED,BFFC Agency Staff (Rechargeable),1633.55,Agency Staff,Third Party Supplier,STANDARD,2008,LAAA-Directorate of Resources
RBC Legal Entity,01/12/2021,4619017,264448,REED,BFFC Agency Staff (Rechargeable),1633.55,Agency Staff,Third Party Supplier,STANDARD,2008,LAAA-Directorate of Resources
RBC Legal Entity,01/12/2021,4619017,264448,REED,Accountancy,1656,Agency Staff,Third Party Supplier,STANDARD,2200,LAAA-Directorate of Resources
RBC Legal Entity,01/12/2021,4619017,264448,REED,BFFC Agency Staff (Rechargeable),1672.9,Agency Staff,Third Party Supplier,STANDARD,2008,LAAA-Directorate of Resources
RBC Legal Entity,01/12/2021,4619017,264448,REED,BFFC Agency Staff (Rechargeable),1672.9,Agency Staff,Third Party Supplier,STANDARD,2008,LAAA-Directorate of Resources
RBC Legal Entity,01/12/2021,4619017,264448,REED,ASC Short Term Team,1695.51,Agency Staff,Third Party Supplier,STANDARD,5722,JAAA-Directorate of Social Care and Health Services
RBC Legal Entity,01/12/2021,4619017,264448,REED,Legal Services,1770.33,Agency Staff,Third Party Supplier,STANDARD,2400,LAAA-Directorate of Resources
RBC Legal Entity,01/12/2021,4619017,264448,REED,BFFC Agency Staff (Rechargeable),1777.34,Agency Staff,Third Party Supplier,STANDARD,2008,LAAA-Directorate of Resources
RBC Legal Entity,01/12/2021,4619017,264448,REED,Joint Legal Team,1846.3,Agency Staff,Third Party Supplier,STANDARD,2405,LAAA-Directorate of Resources
RBC Legal Entity,01/12/2021,4619017,264448,REED,Valuation,1940.8,Agency Staff,Third Party Supplier,STANDARD,2100,KAAA-Directorate of Economic Growth and Neighbourhood Services
RBC Legal Entity,01/12/2021,4619017,264448,REED,Joint Legal Team,2031.3,Agency Staff,Third Party Supplier,STANDARD,2405,LAAA-Directorate of Resources
RBC Legal Entity,01/12/2021,4619017,264448,REED,ASC Senior Management Team,2176,Agency Staff,Third Party Supplier,STANDARD,5700,JAAA-Directorate of Social Care and Health Services
RBC Legal Entity,01/12/2021,4619017,264448,REED,Joint Legal Team,2196,Agency Staff,Third Party Supplier,STANDARD,2405,LAAA-Directorate of Resources
RBC Legal Entity,01/12/2021,4619017,264448,REED,BFFC Agency Staff (Rechargeable),2276,Agency Staff,Third Party Supplier,STANDARD,2008,LAAA-Directorate of Resources
RBC Legal Entity,01/12/2021,4619017,264448,REED,Accountancy,2426,Agency Staff,Third Party Supplier,STANDARD,2200,LAAA-Directorate of Resources
RBC Legal Entity,01/12/2021,4619017,264448,REED,IT Management,2426,Agency Staff,Third Party Supplier,STANDARD,2300,EAAA-Chief Executive
RBC Legal Entity,01/12/2021,4619017,264448,REED,Valuation,2426,Agency Staff,Third Party Supplier,STANDARD,2100,KAAA-Directorate of Economic Growth and Neighbourhood Services
RBC Legal Entity,01/12/2021,4619017,264448,REED,Valuation,2426,Agency Staff,Third Party Supplier,STANDARD,2100,KAAA-Directorate of Economic Growth and Neighbourhood Services
RBC Legal Entity,01/12/2021,4619017,264448,REED,Valuation,2426,Agency Staff,Third Party Supplier,STANDARD,2100,KAAA-Directorate of Economic Growth and Neighbourhood Services
RBC Legal Entity,01/12/2021,4619017,264448,REED,IT Management,2478.5,Agency Staff,Third Party Supplier,STANDARD,2300,EAAA-Chief Executive
RBC Legal Entity,01/12/2021,4619017,264448,REED,Test and Trace,2478.5,Agency Staff,Third Party Supplier,STANDARD,2068,JAAA-Directorate of Social Care and Health Services
RBC Legal Entity,01/12/2021,4619017,264448,REED,Legal Services,2612.33,Agency Staff,Third Party Supplier,STANDARD,2400,LAAA-Directorate of Resources
RBC Legal Entity,01/12/2021,4619017,264448,REED,Accountancy,2643.5,Agency Staff,Third Party Supplier,STANDARD,2200,LAAA-Directorate of Resources
RBC Legal Entity,01/12/2021,4619017,264448,REED,Accountancy,2835.52,Agency Staff,Third Party Supplier,STANDARD,2200,LAAA-Directorate of Resources
RBC Legal Entity,01/12/2021,4619017,264448,REED,BFFC Agency Staff (Rechargeable),2835.52,Agency Staff,Third Party Supplier,STANDARD,2008,LAAA-Directorate of Resources
RBC Legal Entity,01/12/2021,4619017,264448,REED,BFFC Agency Staff (Rechargeable),2835.52,Agency Staff,Third Party Supplier,STANDARD,2008,LAAA-Directorate of Resources
RBC Legal Entity,01/12/2021,4619017,264448,REED,BFFC Agency Staff (Rechargeable),2835.52,Agency Staff,Third Party Supplier,STANDARD,2008,LAAA-Directorate of Resources
RBC Legal Entity,01/12/2021,4619017,264448,REED,BFFC Agency Staff (Rechargeable),2835.52,Agency Staff,Third Party Supplier,STANDARD,2008,LAAA-Directorate of Resources
RBC Legal Entity,01/12/2021,4619017,264448,REED,ASC Senior Management Team,2926,Agency Staff,Third Party Supplier,STANDARD,5700,JAAA-Directorate of Social Care and Health Services
RBC Legal Entity,01/12/2021,4619017,264448,REED,Accountancy,3088.35,Agency Staff,Third Party Supplier,STANDARD,2200,LAAA-Directorate of Resources
RBC Legal Entity,01/12/2021,4619017,264448,REED,Accountancy,3161.06,Agency Staff,Third Party Supplier,STANDARD,2200,LAAA-Directorate of Resources
RBC Legal Entity,01/12/2021,4619017,264448,REED,Accountancy,3161.06,Agency Staff,Third Party Supplier,STANDARD,2200,LAAA-Directorate of Resources
RBC Legal Entity,01/12/2021,4619017,264448,REED,Accountancy,3161.06,Agency Staff,Third Party Supplier,STANDARD,2200,LAAA-Directorate of Resources
RBC Legal Entity,01/12/2021,4619017,264448,REED,Accountancy,3356,Agency Staff,Third Party Supplier,STANDARD,2200,LAAA-Directorate of Resources
RBC Legal Entity,01/12/2021,4619017,264448,REED,Finance systems Re-procurement,3356,Staff/Consultancy,Third Party Supplier,STANDARD,8637,ZZZC-Capital
RBC Legal Entity,01/12/2021,4619017,264448,REED,BFFC Agency Staff (Rechargeable),3446,Agency Staff,Third Party Supplier,STANDARD,2008,LAAA-Directorate of Resources
RBC Legal Entity,01/12/2021,4619017,264448,REED,BFFC Agency Staff (Rechargeable),3461.2,Agency Staff,Third Party Supplier,STANDARD,2008,LAAA-Directorate of Resources
RBC Legal Entity,01/12/2021,4619017,264448,REED,BFFC Agency Staff (Rechargeable),3461.2,Agency Staff,Third Party Supplier,STANDARD,2008,LAAA-Directorate of Resources
RBC Legal Entity,01/12/2021,4619017,264448,REED,BFFC Agency Staff (Rechargeable),3461.2,Agency Staff,Third Party Supplier,STANDARD,2008,LAAA-Directorate of Resources
RBC Legal Entity,01/12/2021,4619017,264448,REED,BFFC Agency Staff (Rechargeable),3461.2,Agency Staff,Third Party Supplier,STANDARD,2008,LAAA-Directorate of Resources
RBC Legal Entity,01/12/2021,4619017,264448,REED,Accountancy,3544.4,Agency Staff,Third Party Supplier,STANDARD,2200,LAAA-Directorate of Resources
RBC Legal Entity,01/12/2021,4619017,264448,REED,Accountancy,3544.4,Agency Staff,Third Party Supplier,STANDARD,2200,LAAA-Directorate of Resources
RBC Legal Entity,01/12/2021,4619017,264448,REED,Accountancy,3544.4,Agency Staff,Third Party Supplier,STANDARD,2200,LAAA-Directorate of Resources
RBC Legal Entity,01/12/2021,4619017,264448,REED,Accountancy,3544.4,Agency Staff,Third Party Supplier,STANDARD,2200,LAAA-Directorate of Resources
RBC Legal Entity,01/12/2021,4619017,264448,REED,Public Health Team Costs,3724.8,Agency Staff,Third Party Supplier,STANDARD,2065,JAAA-Directorate of Social Care and Health Services
RBC Legal Entity,01/12/2021,4619017,264448,REED,Public Health Team Costs,3724.8,Agency Staff,Third Party Supplier,STANDARD,2065,JAAA-Directorate of Social Care and Health Services
RBC Legal Entity,01/12/2021,4619017,264448,REED,Public Health Team Costs,3724.8,Agency Staff,Third Party Supplier,STANDARD,2065,JAAA-Directorate of Social Care and Health Services
RBC Legal Entity,01/12/2021,4619017,264448,REED,Public Health Team Costs,3724.8,Agency Staff,Third Party Supplier,STANDARD,2065,JAAA-Directorate of Social Care and Health Services
RBC Legal Entity,01/12/2021,4619236,264449,JIM TOWNSEND & COMPANY,Guaranteed Rent Scheme,694.59,Rents,SUPPLIER,STANDARD,5872,KAAA-Directorate of Economic Growth and Neighbourhood Services
RBC Legal Entity,01/12/2021,4619249,264449,JIM TOWNSEND & COMPANY,Guaranteed Rent Scheme,1006.72,Rents,SUPPLIER,STANDARD,5872,KAAA-Directorate of Economic Growth and Neighbourhood Services
RBC Legal Entity,01/12/2021,4619273,264449,JIM TOWNSEND & COMPANY,Guaranteed Rent Scheme,1006.72,Rents,SUPPLIER,STANDARD,5872,KAAA-Directorate of Economic Growth and Neighbourhood Services
RBC Legal Entity,01/12/2021,4619303,264449,JIM TOWNSEND & COMPANY,Guaranteed Rent Scheme,694.59,Rents,SUPPLIER,STANDARD,5872,KAAA-Directorate of Economic Growth and Neighbourhood Services
RBC Legal Entity,01/12/2021,4619328,264449,JIM TOWNSEND & COMPANY,Guaranteed Rent Scheme,1006.72,Rents,SUPPLIER,STANDARD,5872,KAAA-Directorate of Economic Growth and Neighbourhood Services
RBC Legal Entity,01/12/2021,4619391,264449,JIM TOWNSEND & COMPANY,Guaranteed Rent Scheme,1006.72,Rents,SUPPLIER,STANDARD,5872,KAAA-Directorate of Economic Growth and Neighbourhood Services
RBC Legal Entity,01/12/2021,4619399,264449,JIM TOWNSEND & COMPANY,Guaranteed Rent Scheme,880.53,Rents,SUPPLIER,STANDARD,5872,KAAA-Directorate of Economic Growth and Neighbourhood Services
RBC Legal Entity,01/12/2021,4619511,264449,JIM TOWNSEND & COMPANY,Guaranteed Rent Scheme,1006.72,Rents,SUPPLIER,STANDARD,5872,KAAA-Directorate of Economic Growth and Neighbourhood Services
RBC Legal Entity,01/12/2021,4619520,264449,JIM TOWNSEND & COMPANY,Guaranteed Rent Scheme,694.59,Rents,SUPPLIER,STANDARD,5872,KAAA-Directorate of Economic Growth and Neighbourhood Services
RBC Legal Entity,01/12/2021,4619611,264449,JIM TOWNSEND & COMPANY,Guaranteed Rent Scheme,1006.72,Rents,SUPPLIER,STANDARD,5872,KAAA-Directorate of Economic Growth and Neighbourhood Services
RBC Legal Entity,01/12/2021,4619621,264449,JIM TOWNSEND & COMPANY,Guaranteed Rent Scheme,880.53,Rents,SUPPLIER,STANDARD,5872,KAAA-Directorate of Economic Growth and Neighbourhood Services
RBC Legal Entity,01/12/2021,4619233,264450,GERRY SKERRITT,Guaranteed Rent Scheme,663.08,Rents,SUPPLIER,STANDARD,5872,KAAA-Directorate of Economic Growth and Neighbourhood Services
RBC Legal Entity,01/12/2021,4619244,264451,FRANK MCDONAGH,Guaranteed Rent Scheme,694.59,Rents,SUPPLIER,STANDARD,5872,KAAA-Directorate of Economic Growth and Neighbourhood Services
RBC Legal Entity,01/12/2021,4619796,264451,FRANK MCDONAGH,Guaranteed Rent Scheme,880.53,Rents,SUPPLIER,STANDARD,5872,KAAA-Directorate of Economic Growth and Neighbourhood Services
RBC Legal Entity,01/12/2021,4619239,264452,LUKE RICHARDS,Guaranteed Rent Scheme,1006.72,Rents,SUPPLIER,STANDARD,5872,KAAA-Directorate of Economic Growth and Neighbourhood Services
RBC Legal Entity,01/12/2021,4619349,264453,P J CHANCE,Guaranteed Rent Scheme,880.53,Rents,Landlord,STANDARD,5872,KAAA-Directorate of Economic Growth and Neighbourhood Services
RBC Legal Entity,01/12/2021,4619468,264453,P J CHANCE,Guaranteed Rent Scheme,682.98,Rents,Landlord,STANDARD,5872,KAAA-Directorate of Economic Growth and Neighbourhood Services
RBC Legal Entity,01/12/2021,4619823,264453,P J CHANCE,Guaranteed Rent Scheme,694.59,Rents,Landlord,STANDARD,5872,KAAA-Directorate of Economic Growth and Neighbourhood Services
RBC Legal Entity,01/12/2021,4619248,264454,EDWARD PAUL,Guaranteed Rent Scheme,1006.72,Rents,SUPPLIER,STANDARD,5872,KAAA-Directorate of Economic Growth and Neighbourhood Services
RBC Legal Entity,01/12/2021,4619351,264455,ACUITY ASSETS LIMITED,Guaranteed Rent Scheme,880.53,Rents,SUPPLIER,STANDARD,5872,KAAA-Directorate of Economic Growth and Neighbourhood Services
RBC Legal Entity,01/12/2021,4610994,264456,MARIE MARAIS,Transformation,5529.55,Agency Staff,SUPPLIER,STANDARD,5289,JAAA-Directorate of Social Care and Health Services
RBC Legal Entity,01/12/2021,4619441,264458,JOHN AND CAROLINE CHARLES,Guaranteed Rent Scheme,865.8,Rents,Landlord,STANDARD,5872,KAAA-Directorate of Economic Growth and Neighbourhood Services
RBC Legal Entity,01/12/2021,4619408,264459,KAREN JONES,Guaranteed Rent Scheme,880.53,Rents,SUPPLIER,STANDARD,5872,KAAA-Directorate of Economic Growth and Neighbourhood Services
RBC Legal Entity,01/12/2021,4619254,264460,CELIA HALL,Guaranteed Rent Scheme,1006.72,Rents,SUPPLIER,STANDARD,5872,KAAA-Directorate of Economic Growth and Neighbourhood Services
RBC Legal Entity,01/12/2021,4619847,264461,THE PURPLE PROPERTY ENTERPRISE LLP,Guaranteed Rent Scheme,694.59,Rents,Landlord,STANDARD,5872,KAAA-Directorate of Economic Growth and Neighbourhood Services
RBC Legal Entity,01/12/2021,4619862,264462,HEATHER GINETTE MILLER SIMPSON,Guaranteed Rent Scheme,694.59,Rents,Direct Payments,STANDARD,5872,KAAA-Directorate of Economic Growth and Neighbourhood Services
RBC Legal Entity,01/12/2021,4619868,264464,TANYA KYNASTON,Guaranteed Rent Scheme,880.53,Rents,Direct Payments,STANDARD,5872,KAAA-Directorate of Economic Growth and Neighbourhood Services
RBC Legal Entity,01/12/2021,4613300,264465,NEXT STEP SERVICES (SW) LTD,Bed and Breakfast,1290,Rents,Third Party Supplier,STANDARD,5871,KAAA-Directorate of Economic Growth and Neighbourhood Services
RBC Legal Entity,01/12/2021,4611012,264466,ESRI (UK) LTD,Berkshire West Public Health Hub,1195,Software Support,Third Party Supplier,STANDARD,2002,JAAA-Directorate of Social Care and Health Services
RBC Legal Entity,01/12/2021,4619884,264467,RYAN SEWELL,Guaranteed Rent Scheme,551.54,Rents,Direct Payments,STANDARD,5872,KAAA-Directorate of Economic Growth and Neighbourhood Services
RBC Legal Entity,01/12/2021,4619885,264467,RYAN SEWELL,Guaranteed Rent Scheme,880.53,Rents,Direct Payments,STANDARD,5872,KAAA-Directorate of Economic Growth and Neighbourhood Services
RBC Legal Entity,01/12/2021,4619071,264469,COMPASS SAFEGUARDING,Safeguarding Adults,3000,Professional Fees,INDIVIDUAL,STANDARD,5158,JAAA-Directorate of Social Care and Health Services
RBC Legal Entity,01/12/2021,4619245,264470,MR D GRIFFITHS,Guaranteed Rent Scheme,880.53,Rents,SUPPLIER,STANDARD,5872,KAAA-Directorate of Economic Growth and Neighbourhood Services
RBC Legal Entity,01/12/2021,4619312,264470,MR D GRIFFITHS,Guaranteed Rent Scheme,694.59,Rents,SUPPLIER,STANDARD,5872,KAAA-Directorate of Economic Growth and Neighbourhood Services
RBC Legal Entity,01/12/2021,4619474,264470,MR D GRIFFITHS,Guaranteed Rent Scheme,880.53,Rents,SUPPLIER,STANDARD,5872,KAAA-Directorate of Economic Growth and Neighbourhood Services
RBC Legal Entity,01/12/2021,4619323,264471,JANE MALEY,Guaranteed Rent Scheme,880.53,Rents,SUPPLIER,STANDARD,5872,KAAA-Directorate of Economic Growth and Neighbourhood Services
RBC Legal Entity,01/12/2021,4619129,264472,CHEERENT LTD T/A VANDERPUMP & WELLBELOVE,Guaranteed Rent Scheme,694.59,Rents,Landlord,STANDARD,5872,KAAA-Directorate of Economic Growth and Neighbourhood Services
RBC Legal Entity,01/12/2021,4619139,264472,CHEERENT LTD T/A VANDERPUMP & WELLBELOVE,Guaranteed Rent Scheme,694.59,Rents,Landlord,STANDARD,5872,KAAA-Directorate of Economic Growth and Neighbourhood Services
RBC Legal Entity,01/12/2021,4619187,264472,CHEERENT LTD T/A VANDERPUMP & WELLBELOVE,Guaranteed Rent Scheme,694.59,Rents,Landlord,STANDARD,5872,KAAA-Directorate of Economic Growth and Neighbourhood Services
RBC Legal Entity,01/12/2021,4619188,264472,CHEERENT LTD T/A VANDERPUMP & WELLBELOVE,Guaranteed Rent Scheme,694.59,Rents,Landlord,STANDARD,5872,KAAA-Directorate of Economic Growth and Neighbourhood Services
RBC Legal Entity,01/12/2021,4619192,264472,CHEERENT LTD T/A VANDERPUMP & WELLBELOVE,Guaranteed Rent Scheme,694.59,Rents,Landlord,STANDARD,5872,KAAA-Directorate of Economic Growth and Neighbourhood Services
RBC Legal Entity,01/12/2021,4619195,264472,CHEERENT LTD T/A VANDERPUMP & WELLBELOVE,Guaranteed Rent Scheme,694.59,Rents,Landlord,STANDARD,5872,KAAA-Directorate of Economic Growth and Neighbourhood Services
RBC Legal Entity,01/12/2021,4619201,264472,CHEERENT LTD T/A VANDERPUMP & WELLBELOVE,Guaranteed Rent Scheme,694.59,Rents,Landlord,STANDARD,5872,KAAA-Directorate of Economic Growth and Neighbourhood Services
RBC Legal Entity,01/12/2021,4619207,264472,CHEERENT LTD T/A VANDERPUMP & WELLBELOVE,Guaranteed Rent Scheme,1006.72,Rents,Landlord,STANDARD,5872,KAAA-Directorate of Economic Growth and Neighbourhood Services
RBC Legal Entity,01/12/2021,4619213,264472,CHEERENT LTD T/A VANDERPUMP & WELLBELOVE,Guaranteed Rent Scheme,1006.72,Rents,Landlord,STANDARD,5872,KAAA-Directorate of Economic Growth and Neighbourhood Services
RBC Legal Entity,01/12/2021,4619221,264472,CHEERENT LTD T/A VANDERPUMP & WELLBELOVE,Guaranteed Rent Scheme,880.53,Rents,Landlord,STANDARD,5872,KAAA-Directorate of Economic Growth and Neighbourhood Services
RBC Legal Entity,01/12/2021,4619222,264472,CHEERENT LTD T/A VANDERPUMP & WELLBELOVE,Guaranteed Rent Scheme,694.59,Rents,Landlord,STANDARD,5872,KAAA-Directorate of Economic Growth and Neighbourhood Services
RBC Legal Entity,01/12/2021,4619223,264472,CHEERENT LTD T/A VANDERPUMP & WELLBELOVE,Guaranteed Rent Scheme,961.09,Rents,Landlord,STANDARD,5872,KAAA-Directorate of Economic Growth and Neighbourhood Services
RBC Legal Entity,01/12/2021,4619278,264472,CHEERENT LTD T/A VANDERPUMP & WELLBELOVE,Guaranteed Rent Scheme,880.53,Rents,Landlord,STANDARD,5872,KAAA-Directorate of Economic Growth and Neighbourhood Services
RBC Legal Entity,01/12/2021,4619290,264472,CHEERENT LTD T/A VANDERPUMP & WELLBELOVE,Guaranteed Rent Scheme,694.59,Rents,Landlord,STANDARD,5872,KAAA-Directorate of Economic Growth and Neighbourhood Services
RBC Legal Entity,01/12/2021,4619301,264472,CHEERENT LTD T/A VANDERPUMP & WELLBELOVE,Guaranteed Rent Scheme,694.59,Rents,Landlord,STANDARD,5872,KAAA-Directorate of Economic Growth and Neighbourhood Services
RBC Legal Entity,01/12/2021,4619305,264472,CHEERENT LTD T/A VANDERPUMP & WELLBELOVE,Guaranteed Rent Scheme,880.53,Rents,Landlord,STANDARD,5872,KAAA-Directorate of Economic Growth and Neighbourhood Services
RBC Legal Entity,01/12/2021,4619353,264472,CHEERENT LTD T/A VANDERPUMP & WELLBELOVE,Guaranteed Rent Scheme,694.59,Rents,Landlord,STANDARD,5872,KAAA-Directorate of Economic Growth and Neighbourhood Services
RBC Legal Entity,01/12/2021,4619359,264472,CHEERENT LTD T/A VANDERPUMP & WELLBELOVE,Guaranteed Rent Scheme,880.53,Rents,Landlord,STANDARD,5872,KAAA-Directorate of Economic Growth and Neighbourhood Services
RBC Legal Entity,01/12/2021,4619400,264472,CHEERENT LTD T/A VANDERPUMP & WELLBELOVE,Guaranteed Rent Scheme,1006.72,Rents,Landlord,STANDARD,5872,KAAA-Directorate of Economic Growth and Neighbourhood Services
RBC Legal Entity,01/12/2021,4619405,264472,CHEERENT LTD T/A VANDERPUMP & WELLBELOVE,Guaranteed Rent Scheme,880.53,Rents,Landlord,STANDARD,5872,KAAA-Directorate of Economic Growth and Neighbourhood Services
RBC Legal Entity,01/12/2021,4619406,264472,CHEERENT LTD T/A VANDERPUMP & WELLBELOVE,Guaranteed Rent Scheme,694.59,Rents,Landlord,STANDARD,5872,KAAA-Directorate of Economic Growth and Neighbourhood Services
RBC Legal Entity,01/12/2021,4619415,264472,CHEERENT LTD T/A VANDERPUMP & WELLBELOVE,Guaranteed Rent Scheme,694.59,Rents,Landlord,STANDARD,5872,KAAA-Directorate of Economic Growth and Neighbourhood Services
RBC Legal Entity,01/12/2021,4619435,264472,CHEERENT LTD T/A VANDERPUMP & WELLBELOVE,Guaranteed Rent Scheme,694.59,Rents,Landlord,STANDARD,5872,KAAA-Directorate of Economic Growth and Neighbourhood Services
RBC Legal Entity,01/12/2021,4619461,264472,CHEERENT LTD T/A VANDERPUMP & WELLBELOVE,Guaranteed Rent Scheme,880.53,Rents,Landlord,STANDARD,5872,KAAA-Directorate of Economic Growth and Neighbourhood Services
RBC Legal Entity,01/12/2021,4619463,264472,CHEERENT LTD T/A VANDERPUMP & WELLBELOVE,Guaranteed Rent Scheme,880.53,Rents,Landlord,STANDARD,5872,KAAA-Directorate of Economic Growth and Neighbourhood Services
RBC Legal Entity,01/12/2021,4619480,264472,CHEERENT LTD T/A VANDERPUMP & WELLBELOVE,Guaranteed Rent Scheme,694.59,Rents,Landlord,STANDARD,5872,KAAA-Directorate of Economic Growth and Neighbourhood Services
RBC Legal Entity,01/12/2021,4619503,264472,CHEERENT LTD T/A VANDERPUMP & WELLBELOVE,Guaranteed Rent Scheme,989.91,Rents,Landlord,STANDARD,5872,KAAA-Directorate of Economic Growth and Neighbourhood Services
RBC Legal Entity,01/12/2021,4619515,264472,CHEERENT LTD T/A VANDERPUMP & WELLBELOVE,Guaranteed Rent Scheme,880.53,Rents,Landlord,STANDARD,5872,KAAA-Directorate of Economic Growth and Neighbourhood Services
RBC Legal Entity,01/12/2021,4619517,264472,CHEERENT LTD T/A VANDERPUMP & WELLBELOVE,Guaranteed Rent Scheme,880.53,Rents,Landlord,STANDARD,5872,KAAA-Directorate of Economic Growth and Neighbourhood Services
RBC Legal Entity,01/12/2021,4619525,264472,CHEERENT LTD T/A VANDERPUMP & WELLBELOVE,Guaranteed Rent Scheme,694.59,Rents,Landlord,STANDARD,5872,KAAA-Directorate of Economic Growth and Neighbourhood Services
RBC Legal Entity,01/12/2021,4619543,264472,CHEERENT LTD T/A VANDERPUMP & WELLBELOVE,Guaranteed Rent Scheme,880.53,Rents,Landlord,STANDARD,5872,KAAA-Directorate of Economic Growth and Neighbourhood Services
RBC Legal Entity,01/12/2021,4619568,264472,CHEERENT LTD T/A VANDERPUMP & WELLBELOVE,Guaranteed Rent Scheme,1006.72,Rents,Landlord,STANDARD,5872,KAAA-Directorate of Economic Growth and Neighbourhood Services
RBC Legal Entity,01/12/2021,4619570,264472,CHEERENT LTD T/A VANDERPUMP & WELLBELOVE,Guaranteed Rent Scheme,694.59,Rents,Landlord,STANDARD,5872,KAAA-Directorate of Economic Growth and Neighbourhood Services
RBC Legal Entity,01/12/2021,4619579,264472,CHEERENT LTD T/A VANDERPUMP & WELLBELOVE,Guaranteed Rent Scheme,694.59,Rents,Landlord,STANDARD,5872,KAAA-Directorate of Economic Growth and Neighbourhood Services
RBC Legal Entity,01/12/2021,4619587,264472,CHEERENT LTD T/A VANDERPUMP & WELLBELOVE,Guaranteed Rent Scheme,694.59,Rents,Landlord,STANDARD,5872,KAAA-Directorate of Economic Growth and Neighbourhood Services
RBC Legal Entity,01/12/2021,4619589,264472,CHEERENT LTD T/A VANDERPUMP & WELLBELOVE,Guaranteed Rent Scheme,880.53,Rents,Landlord,STANDARD,5872,KAAA-Directorate of Economic Growth and Neighbourhood Services
RBC Legal Entity,01/12/2021,4619593,264472,CHEERENT LTD T/A VANDERPUMP & WELLBELOVE,Guaranteed Rent Scheme,694.59,Rents,Landlord,STANDARD,5872,KAAA-Directorate of Economic Growth and Neighbourhood Services
RBC Legal Entity,01/12/2021,4619610,264472,CHEERENT LTD T/A VANDERPUMP & WELLBELOVE,Guaranteed Rent Scheme,694.59,Rents,Landlord,STANDARD,5872,KAAA-Directorate of Economic Growth and Neighbourhood Services
RBC Legal Entity,01/12/2021,4619650,264472,CHEERENT LTD T/A VANDERPUMP & WELLBELOVE,Guaranteed Rent Scheme,880.53,Rents,Landlord,STANDARD,5872,KAAA-Directorate of Economic Growth and Neighbourhood Services
RBC Legal Entity,01/12/2021,4619709,264472,CHEERENT LTD T/A VANDERPUMP & WELLBELOVE,Guaranteed Rent Scheme,880.53,Rents,Landlord,STANDARD,5872,KAAA-Directorate of Economic Growth and Neighbourhood Services
RBC Legal Entity,01/12/2021,4619718,264472,CHEERENT LTD T/A VANDERPUMP & WELLBELOVE,Guaranteed Rent Scheme,1006.72,Rents,Landlord,STANDARD,5872,KAAA-Directorate of Economic Growth and Neighbourhood Services
RBC Legal Entity,01/12/2021,4619720,264472,CHEERENT LTD T/A VANDERPUMP & WELLBELOVE,Guaranteed Rent Scheme,880.53,Rents,Landlord,STANDARD,5872,KAAA-Directorate of Economic Growth and Neighbourhood Services
RBC Legal Entity,01/12/2021,4619729,264472,CHEERENT LTD T/A VANDERPUMP & WELLBELOVE,Guaranteed Rent Scheme,880.53,Rents,Landlord,STANDARD,5872,KAAA-Directorate of Economic Growth and Neighbourhood Services
RBC Legal Entity,01/12/2021,4619734,264472,CHEERENT LTD T/A VANDERPUMP & WELLBELOVE,Guaranteed Rent Scheme,1006.72,Rents,Landlord,STANDARD,5872,KAAA-Directorate of Economic Growth and Neighbourhood Services
RBC Legal Entity,01/12/2021,4619735,264472,CHEERENT LTD T/A VANDERPUMP & WELLBELOVE,Guaranteed Rent Scheme,1388.74,Rents,Landlord,STANDARD,5872,KAAA-Directorate of Economic Growth and Neighbourhood Services
RBC Legal Entity,01/12/2021,4619745,264472,CHEERENT LTD T/A VANDERPUMP & WELLBELOVE,Guaranteed Rent Scheme,694.59,Rents,Landlord,STANDARD,5872,KAAA-Directorate of Economic Growth and Neighbourhood Services
RBC Legal Entity,01/12/2021,4619746,264472,CHEERENT LTD T/A VANDERPUMP & WELLBELOVE,Guaranteed Rent Scheme,841.83,Rents,Landlord,STANDARD,5872,KAAA-Directorate of Economic Growth and Neighbourhood Services
RBC Legal Entity,01/12/2021,4619750,264472,CHEERENT LTD T/A VANDERPUMP & WELLBELOVE,Guaranteed Rent Scheme,694.59,Rents,Landlord,STANDARD,5872,KAAA-Directorate of Economic Growth and Neighbourhood Services
RBC Legal Entity,01/12/2021,4619765,264472,CHEERENT LTD T/A VANDERPUMP & WELLBELOVE,Guaranteed Rent Scheme,694.59,Rents,Landlord,STANDARD,5872,KAAA-Directorate of Economic Growth and Neighbourhood Services
RBC Legal Entity,01/12/2021,4619776,264472,CHEERENT LTD T/A VANDERPUMP & WELLBELOVE,Guaranteed Rent Scheme,1006.72,Rents,Landlord,STANDARD,5872,KAAA-Directorate of Economic Growth and Neighbourhood Services
RBC Legal Entity,01/12/2021,4619778,264472,CHEERENT LTD T/A VANDERPUMP & WELLBELOVE,Guaranteed Rent Scheme,694.59,Rents,Landlord,STANDARD,5872,KAAA-Directorate of Economic Growth and Neighbourhood Services
RBC Legal Entity,01/12/2021,4619792,264472,CHEERENT LTD T/A VANDERPUMP & WELLBELOVE,Guaranteed Rent Scheme,880.53,Rents,Landlord,STANDARD,5872,KAAA-Directorate of Economic Growth and Neighbourhood Services
RBC Legal Entity,01/12/2021,4619806,264472,CHEERENT LTD T/A VANDERPUMP & WELLBELOVE,Guaranteed Rent Scheme,880.53,Rents,Landlord,STANDARD,5872,KAAA-Directorate of Economic Growth and Neighbourhood Services
RBC Legal Entity,01/12/2021,4619813,264472,CHEERENT LTD T/A VANDERPUMP & WELLBELOVE,Guaranteed Rent Scheme,694.59,Rents,Landlord,STANDARD,5872,KAAA-Directorate of Economic Growth and Neighbourhood Services
RBC Legal Entity,01/12/2021,4619819,264472,CHEERENT LTD T/A VANDERPUMP & WELLBELOVE,Guaranteed Rent Scheme,880.53,Rents,Landlord,STANDARD,5872,KAAA-Directorate of Economic Growth and Neighbourhood Services
RBC Legal Entity,01/12/2021,4619834,264472,CHEERENT LTD T/A VANDERPUMP & WELLBELOVE,Guaranteed Rent Scheme,1006.72,Rents,Landlord,STANDARD,5872,KAAA-Directorate of Economic Growth and Neighbourhood Services
RBC Legal Entity,01/12/2021,4619866,264472,CHEERENT LTD T/A VANDERPUMP & WELLBELOVE,Guaranteed Rent Scheme,694.59,Rents,Landlord,STANDARD,5872,KAAA-Directorate of Economic Growth and Neighbourhood Services
RBC Legal Entity,01/12/2021,4619872,264472,CHEERENT LTD T/A VANDERPUMP & WELLBELOVE,Guaranteed Rent Scheme,1006.72,Rents,Landlord,STANDARD,5872,KAAA-Directorate of Economic Growth and Neighbourhood Services
RBC Legal Entity,01/12/2021,4619498,264473,NIGEL ELKES & KARL FISCHER T/A ATTERBURYS,Guaranteed Rent Scheme,694.59,Rents,SUPPLIER,STANDARD,5872,KAAA-Directorate of Economic Growth and Neighbourhood Services
RBC Legal Entity,01/12/2021,4619538,264473,NIGEL ELKES & KARL FISCHER T/A ATTERBURYS,Guaranteed Rent Scheme,694.59,Rents,SUPPLIER,STANDARD,5872,KAAA-Directorate of Economic Growth and Neighbourhood Services
RBC Legal Entity,01/12/2021,4619612,264473,NIGEL ELKES & KARL FISCHER T/A ATTERBURYS,Guaranteed Rent Scheme,880.53,Rents,SUPPLIER,STANDARD,5872,KAAA-Directorate of Economic Growth and Neighbourhood Services
RBC Legal Entity,01/12/2021,4619117,264477,TRACY THACKER,Guaranteed Rent Scheme,880.53,Rents,SUPPLIER,STANDARD,5872,KAAA-Directorate of Economic Growth and Neighbourhood Services
RBC Legal Entity,01/12/2021,4619177,264477,TRACY THACKER,Guaranteed Rent Scheme,880.53,Rents,SUPPLIER,STANDARD,5872,KAAA-Directorate of Economic Growth and Neighbourhood Services
RBC Legal Entity,01/12/2021,4619241,264477,TRACY THACKER,Guaranteed Rent Scheme,880.53,Rents,SUPPLIER,STANDARD,5872,KAAA-Directorate of Economic Growth and Neighbourhood Services
RBC Legal Entity,01/12/2021,4619420,264477,TRACY THACKER,Guaranteed Rent Scheme,880.53,Rents,SUPPLIER,STANDARD,5872,KAAA-Directorate of Economic Growth and Neighbourhood Services
RBC Legal Entity,01/12/2021,4619219,264478,RNR PROPERTIES LTD,Guaranteed Rent Scheme,1388.74,Rents,SUPPLIER,STANDARD,5872,KAAA-Directorate of Economic Growth and Neighbourhood Services
RBC Legal Entity,01/12/2021,4619331,264478,RNR PROPERTIES LTD,Guaranteed Rent Scheme,694.59,Rents,SUPPLIER,STANDARD,5872,KAAA-Directorate of Economic Growth and Neighbourhood Services
RBC Legal Entity,01/12/2021,4619337,264478,RNR PROPERTIES LTD,Guaranteed Rent Scheme,1006.72,Rents,SUPPLIER,STANDARD,5872,KAAA-Directorate of Economic Growth and Neighbourhood Services
RBC Legal Entity,01/12/2021,4619348,264478,RNR PROPERTIES LTD,Guaranteed Rent Scheme,694.59,Rents,SUPPLIER,STANDARD,5872,KAAA-Directorate of Economic Growth and Neighbourhood Services
RBC Legal Entity,01/12/2021,4619386,264478,RNR PROPERTIES LTD,Guaranteed Rent Scheme,1006.72,Rents,SUPPLIER,STANDARD,5872,KAAA-Directorate of Economic Growth and Neighbourhood Services
RBC Legal Entity,01/12/2021,4619392,264478,RNR PROPERTIES LTD,Guaranteed Rent Scheme,1006.72,Rents,SUPPLIER,STANDARD,5872,KAAA-Directorate of Economic Growth and Neighbourhood Services
RBC Legal Entity,01/12/2021,4619443,264478,RNR PROPERTIES LTD,Guaranteed Rent Scheme,880.53,Rents,SUPPLIER,STANDARD,5872,KAAA-Directorate of Economic Growth and Neighbourhood Services
RBC Legal Entity,01/12/2021,4619449,264478,RNR PROPERTIES LTD,Guaranteed Rent Scheme,880.53,Rents,SUPPLIER,STANDARD,5872,KAAA-Directorate of Economic Growth and Neighbourhood Services
RBC Legal Entity,01/12/2021,4619455,264478,RNR PROPERTIES LTD,Guaranteed Rent Scheme,1006.72,Rents,SUPPLIER,STANDARD,5872,KAAA-Directorate of Economic Growth and Neighbourhood Services
RBC Legal Entity,01/12/2021,4619547,264478,RNR PROPERTIES LTD,Guaranteed Rent Scheme,1006.72,Rents,SUPPLIER,STANDARD,5872,KAAA-Directorate of Economic Growth and Neighbourhood Services
RBC Legal Entity,01/12/2021,4619551,264478,RNR PROPERTIES LTD,Guaranteed Rent Scheme,1006.72,Rents,SUPPLIER,STANDARD,5872,KAAA-Directorate of Economic Growth and Neighbourhood Services
RBC Legal Entity,01/12/2021,4619552,264478,RNR PROPERTIES LTD,Guaranteed Rent Scheme,880.53,Rents,SUPPLIER,STANDARD,5872,KAAA-Directorate of Economic Growth and Neighbourhood Services
RBC Legal Entity,01/12/2021,4619553,264478,RNR PROPERTIES LTD,Guaranteed Rent Scheme,880.53,Rents,SUPPLIER,STANDARD,5872,KAAA-Directorate of Economic Growth and Neighbourhood Services
RBC Legal Entity,01/12/2021,4619554,264478,RNR PROPERTIES LTD,Guaranteed Rent Scheme,1006.72,Rents,SUPPLIER,STANDARD,5872,KAAA-Directorate of Economic Growth and Neighbourhood Services
RBC Legal Entity,01/12/2021,4619571,264478,RNR PROPERTIES LTD,Guaranteed Rent Scheme,880.53,Rents,SUPPLIER,STANDARD,5872,KAAA-Directorate of Economic Growth and Neighbourhood Services
RBC Legal Entity,01/12/2021,4619595,264478,RNR PROPERTIES LTD,Guaranteed Rent Scheme,1006.72,Rents,SUPPLIER,STANDARD,5872,KAAA-Directorate of Economic Growth and Neighbourhood Services
RBC Legal Entity,01/12/2021,4619619,264478,RNR PROPERTIES LTD,Guaranteed Rent Scheme,880.53,Rents,SUPPLIER,STANDARD,5872,KAAA-Directorate of Economic Growth and Neighbourhood Services
RBC Legal Entity,01/12/2021,4619630,264478,RNR PROPERTIES LTD,Guaranteed Rent Scheme,1006.72,Rents,SUPPLIER,STANDARD,5872,KAAA-Directorate of Economic Growth and Neighbourhood Services
RBC Legal Entity,01/12/2021,4619811,264478,RNR PROPERTIES LTD,Guaranteed Rent Scheme,1006.72,Rents,SUPPLIER,STANDARD,5872,KAAA-Directorate of Economic Growth and Neighbourhood Services
RBC Legal Entity,01/12/2021,4619829,264478,RNR PROPERTIES LTD,Guaranteed Rent Scheme,1388.74,Rents,SUPPLIER,STANDARD,5872,KAAA-Directorate of Economic Growth and Neighbourhood Services
RBC Legal Entity,01/12/2021,4619157,264479,EAMONN KELLY,Guaranteed Rent Scheme,880.53,Rents,SUPPLIER,STANDARD,5872,KAAA-Directorate of Economic Growth and Neighbourhood Services
RBC Legal Entity,01/12/2021,4619189,264479,EAMONN KELLY,Guaranteed Rent Scheme,1365.52,Rents,SUPPLIER,STANDARD,5872,KAAA-Directorate of Economic Growth and Neighbourhood Services
RBC Legal Entity,01/12/2021,4619285,264479,EAMONN KELLY,Guaranteed Rent Scheme,694.59,Rents,SUPPLIER,STANDARD,5872,KAAA-Directorate of Economic Growth and Neighbourhood Services
RBC Legal Entity,01/12/2021,4619318,264479,EAMONN KELLY,Guaranteed Rent Scheme,880.53,Rents,SUPPLIER,STANDARD,5872,KAAA-Directorate of Economic Growth and Neighbourhood Services
RBC Legal Entity,01/12/2021,4619319,264479,EAMONN KELLY,Guaranteed Rent Scheme,694.59,Rents,SUPPLIER,STANDARD,5872,KAAA-Directorate of Economic Growth and Neighbourhood Services
RBC Legal Entity,01/12/2021,4619423,264479,EAMONN KELLY,Guaranteed Rent Scheme,694.59,Rents,SUPPLIER,STANDARD,5872,KAAA-Directorate of Economic Growth and Neighbourhood Services
RBC Legal Entity,01/12/2021,4619431,264479,EAMONN KELLY,Guaranteed Rent Scheme,694.59,Rents,SUPPLIER,STANDARD,5872,KAAA-Directorate of Economic Growth and Neighbourhood Services
RBC Legal Entity,01/12/2021,4619446,264479,EAMONN KELLY,Guaranteed Rent Scheme,1006.72,Rents,SUPPLIER,STANDARD,5872,KAAA-Directorate of Economic Growth and Neighbourhood Services
RBC Legal Entity,01/12/2021,4619471,264479,EAMONN KELLY,Guaranteed Rent Scheme,880.53,Rents,SUPPLIER,STANDARD,5872,KAAA-Directorate of Economic Growth and Neighbourhood Services
RBC Legal Entity,01/12/2021,4619572,264479,EAMONN KELLY,Guaranteed Rent Scheme,880.53,Rents,SUPPLIER,STANDARD,5872,KAAA-Directorate of Economic Growth and Neighbourhood Services
RBC Legal Entity,01/12/2021,4619705,264479,EAMONN KELLY,Guaranteed Rent Scheme,880.53,Rents,SUPPLIER,STANDARD,5872,KAAA-Directorate of Economic Growth and Neighbourhood Services
RBC Legal Entity,01/12/2021,4619769,264479,EAMONN KELLY,Guaranteed Rent Scheme,1006.72,Rents,SUPPLIER,STANDARD,5872,KAAA-Directorate of Economic Growth and Neighbourhood Services
RBC Legal Entity,01/12/2021,4619261,264480,TWUMASI OKYERE,Guaranteed Rent Scheme,1006.72,Rents,SUPPLIER,STANDARD,5872,KAAA-Directorate of Economic Growth and Neighbourhood Services
RBC Legal Entity,01/12/2021,4619715,264481,RITA LEE,Guaranteed Rent Scheme,694.59,Rents,SUPPLIER,STANDARD,5872,KAAA-Directorate of Economic Growth and Neighbourhood Services
RBC Legal Entity,01/12/2021,4619874,264482,INFO - SITE LTD,Guaranteed Rent Scheme,1388.74,Rents,SUPPLIER,STANDARD,5872,KAAA-Directorate of Economic Growth and Neighbourhood Services
RBC Legal Entity,01/12/2021,4619264,264483,REBECCA FRANKLAND,Guaranteed Rent Scheme,880.53,Rents,SUPPLIER,STANDARD,5872,KAAA-Directorate of Economic Growth and Neighbourhood Services
RBC Legal Entity,01/12/2021,4619255,264484,LAUNCHPAD READING,Guaranteed Rent Scheme,880.53,Rents,Third Party Supplier,STANDARD,5872,KAAA-Directorate of Economic Growth and Neighbourhood Services
RBC Legal Entity,01/12/2021,4619404,264484,LAUNCHPAD READING,Guaranteed Rent Scheme,694.59,Rents,Third Party Supplier,STANDARD,5872,KAAA-Directorate of Economic Growth and Neighbourhood Services
RBC Legal Entity,01/12/2021,4619421,264484,LAUNCHPAD READING,Guaranteed Rent Scheme,694.59,Rents,Third Party Supplier,STANDARD,5872,KAAA-Directorate of Economic Growth and Neighbourhood Services
RBC Legal Entity,01/12/2021,4619424,264484,LAUNCHPAD READING,Guaranteed Rent Scheme,694.59,Rents,Third Party Supplier,STANDARD,5872,KAAA-Directorate of Economic Growth and Neighbourhood Services
RBC Legal Entity,01/12/2021,4619481,264484,LAUNCHPAD READING,Guaranteed Rent Scheme,880.53,Rents,Third Party Supplier,STANDARD,5872,KAAA-Directorate of Economic Growth and Neighbourhood Services
RBC Legal Entity,01/12/2021,4619346,264485,KATE & DAVID REES,Guaranteed Rent Scheme,1006.72,Rents,SUPPLIER,STANDARD,5872,KAAA-Directorate of Economic Growth and Neighbourhood Services
RBC Legal Entity,01/12/2021,4619137,264486,HOMES FOR READING LIMITED,Guaranteed Rent Scheme,694.59,Rents,SUPPLIER,STANDARD,5872,KAAA-Directorate of Economic Growth and Neighbourhood Services
RBC Legal Entity,01/12/2021,4619199,264486,HOMES FOR READING LIMITED,Guaranteed Rent Scheme,694.59,Rents,SUPPLIER,STANDARD,5872,KAAA-Directorate of Economic Growth and Neighbourhood Services
RBC Legal Entity,01/12/2021,4619252,264486,HOMES FOR READING LIMITED,Guaranteed Rent Scheme,694.59,Rents,SUPPLIER,STANDARD,5872,KAAA-Directorate of Economic Growth and Neighbourhood Services
RBC Legal Entity,01/12/2021,4619265,264486,HOMES FOR READING LIMITED,Guaranteed Rent Scheme,1388.74,Rents,SUPPLIER,STANDARD,5872,KAAA-Directorate of Economic Growth and Neighbourhood Services
RBC Legal Entity,01/12/2021,4619304,264486,HOMES FOR READING LIMITED,Guaranteed Rent Scheme,1388.74,Rents,SUPPLIER,STANDARD,5872,KAAA-Directorate of Economic Growth and Neighbourhood Services
RBC Legal Entity,01/12/2021,4619330,264486,HOMES FOR READING LIMITED,Guaranteed Rent Scheme,1388.74,Rents,SUPPLIER,STANDARD,5872,KAAA-Directorate of Economic Growth and Neighbourhood Services
RBC Legal Entity,01/12/2021,4619340,264486,HOMES FOR READING LIMITED,Guaranteed Rent Scheme,880.53,Rents,SUPPLIER,STANDARD,5872,KAAA-Directorate of Economic Growth and Neighbourhood Services
RBC Legal Entity,01/12/2021,4619342,264486,HOMES FOR READING LIMITED,Guaranteed Rent Scheme,880.53,Rents,SUPPLIER,STANDARD,5872,KAAA-Directorate of Economic Growth and Neighbourhood Services
RBC Legal Entity,01/12/2021,4619347,264486,HOMES FOR READING LIMITED,Guaranteed Rent Scheme,1388.74,Rents,SUPPLIER,STANDARD,5872,KAAA-Directorate of Economic Growth and Neighbourhood Services
RBC Legal Entity,01/12/2021,4619373,264486,HOMES FOR READING LIMITED,Guaranteed Rent Scheme,1388.74,Rents,SUPPLIER,STANDARD,5872,KAAA-Directorate of Economic Growth and Neighbourhood Services
RBC Legal Entity,01/12/2021,4619378,264486,HOMES FOR READING LIMITED,Guaranteed Rent Scheme,694.59,Rents,SUPPLIER,STANDARD,5872,KAAA-Directorate of Economic Growth and Neighbourhood Services
RBC Legal Entity,01/12/2021,4619379,264486,HOMES FOR READING LIMITED,Guaranteed Rent Scheme,694.59,Rents,SUPPLIER,STANDARD,5872,KAAA-Directorate of Economic Growth and Neighbourhood Services
RBC Legal Entity,01/12/2021,4619380,264486,HOMES FOR READING LIMITED,Guaranteed Rent Scheme,694.59,Rents,SUPPLIER,STANDARD,5872,KAAA-Directorate of Economic Growth and Neighbourhood Services
RBC Legal Entity,01/12/2021,4619397,264486,HOMES FOR READING LIMITED,Guaranteed Rent Scheme,1388.74,Rents,SUPPLIER,STANDARD,5872,KAAA-Directorate of Economic Growth and Neighbourhood Services
RBC Legal Entity,01/12/2021,4619403,264486,HOMES FOR READING LIMITED,Guaranteed Rent Scheme,1388.74,Rents,SUPPLIER,STANDARD,5872,KAAA-Directorate of Economic Growth and Neighbourhood Services
RBC Legal Entity,01/12/2021,4619456,264486,HOMES FOR READING LIMITED,Guaranteed Rent Scheme,682.98,Rents,SUPPLIER,STANDARD,5872,KAAA-Directorate of Economic Growth and Neighbourhood Services
RBC Legal Entity,01/12/2021,4619658,264486,HOMES FOR READING LIMITED,Guaranteed Rent Scheme,694.59,Rents,SUPPLIER,STANDARD,5872,KAAA-Directorate of Economic Growth and Neighbourhood Services
RBC Legal Entity,01/12/2021,4619667,264486,HOMES FOR READING LIMITED,Guaranteed Rent Scheme,1388.74,Rents,SUPPLIER,STANDARD,5872,KAAA-Directorate of Economic Growth and Neighbourhood Services
RBC Legal Entity,01/12/2021,4619672,264486,HOMES FOR READING LIMITED,Guaranteed Rent Scheme,694.59,Rents,SUPPLIER,STANDARD,5872,KAAA-Directorate of Economic Growth and Neighbourhood Services
RBC Legal Entity,01/12/2021,4619739,264486,HOMES FOR READING LIMITED,Guaranteed Rent Scheme,694.59,Rents,SUPPLIER,STANDARD,5872,KAAA-Directorate of Economic Growth and Neighbourhood Services
RBC Legal Entity,01/12/2021,4619754,264486,HOMES FOR READING LIMITED,Guaranteed Rent Scheme,694.59,Rents,SUPPLIER,STANDARD,5872,KAAA-Directorate of Economic Growth and Neighbourhood Services
RBC Legal Entity,01/12/2021,4619781,264486,HOMES FOR READING LIMITED,Guaranteed Rent Scheme,694.59,Rents,SUPPLIER,STANDARD,5872,KAAA-Directorate of Economic Growth and Neighbourhood Services
RBC Legal Entity,01/12/2021,4619827,264487,SAMIDHA MALHOTRA,Guaranteed Rent Scheme,1006.72,Rents,Landlord,STANDARD,5872,KAAA-Directorate of Economic Growth and Neighbourhood Services
RBC Legal Entity,01/12/2021,4619270,264488,YASMIN ARMAN,Guaranteed Rent Scheme,1006.72,Rents,SUPPLIER,STANDARD,5872,KAAA-Directorate of Economic Growth and Neighbourhood Services
RBC Legal Entity,01/12/2021,4611019,264489,NEC SOFTWARE SOLUTIONS UK LTD,IT Management,750,Software Support,Third Party Supplier,STANDARD,2300,EAAA-Chief Executive
RBC Legal Entity,01/12/2021,4619277,264490,MICHAEL HUNKA,Guaranteed Rent Scheme,880.53,Rents,SUPPLIER,STANDARD,5872,KAAA-Directorate of Economic Growth and Neighbourhood Services
RBC Legal Entity,01/12/2021,4619450,264490,MICHAEL HUNKA,Guaranteed Rent Scheme,1388.74,Rents,SUPPLIER,STANDARD,5872,KAAA-Directorate of Economic Growth and Neighbourhood Services
RBC Legal Entity,01/12/2021,4619537,264490,MICHAEL HUNKA,Guaranteed Rent Scheme,694.59,Rents,SUPPLIER,STANDARD,5872,KAAA-Directorate of Economic Growth and Neighbourhood Services
RBC Legal Entity,01/12/2021,4619873,264490,MICHAEL HUNKA,Guaranteed Rent Scheme,880.53,Rents,SUPPLIER,STANDARD,5872,KAAA-Directorate of Economic Growth and Neighbourhood Services
RBC Legal Entity,01/12/2021,4619253,264491,SEAN HEATH,Guaranteed Rent Scheme,694.59,Rents,Landlord,STANDARD,5872,KAAA-Directorate of Economic Growth and Neighbourhood Services
RBC Legal Entity,01/12/2021,4619422,264491,SEAN HEATH,Guaranteed Rent Scheme,880.53,Rents,Landlord,STANDARD,5872,KAAA-Directorate of Economic Growth and Neighbourhood Services
RBC Legal Entity,01/12/2021,4619367,264492,MR A J MARIANO,Guaranteed Rent Scheme,880.53,Rents,SUPPLIER,STANDARD,5872,KAAA-Directorate of Economic Growth and Neighbourhood Services
RBC Legal Entity,01/12/2021,4619311,264493,DUNCAN KLITGAARD,Guaranteed Rent Scheme,682.98,Rents,SUPPLIER,STANDARD,5872,KAAA-Directorate of Economic Growth and Neighbourhood Services
RBC Legal Entity,01/12/2021,4619536,264493,DUNCAN KLITGAARD,Guaranteed Rent Scheme,682.98,Rents,SUPPLIER,STANDARD,5872,KAAA-Directorate of Economic Growth and Neighbourhood Services
RBC Legal Entity,01/12/2021,4619154,264494,IBRAHIM JALLOH,Guaranteed Rent Scheme,1006.72,Rents,Shared Lives,STANDARD,5872,KAAA-Directorate of Economic Growth and Neighbourhood Services
RBC Legal Entity,01/12/2021,4619176,264495,HARISH RAICHURA,Guaranteed Rent Scheme,880.53,Rents,Landlord,STANDARD,5872,KAAA-Directorate of Economic Growth and Neighbourhood Services
RBC Legal Entity,01/12/2021,4619830,264495,HARISH RAICHURA,Guaranteed Rent Scheme,694.59,Rents,Landlord,STANDARD,5872,KAAA-Directorate of Economic Growth and Neighbourhood Services
RBC Legal Entity,01/12/2021,4619125,264497,CHRISTOPHER SCOTT,Guaranteed Rent Scheme,880.53,Rents,SUPPLIER,STANDARD,5872,KAAA-Directorate of Economic Growth and Neighbourhood Services
RBC Legal Entity,01/12/2021,4619144,264497,CHRISTOPHER SCOTT,Guaranteed Rent Scheme,880.53,Rents,SUPPLIER,STANDARD,5872,KAAA-Directorate of Economic Growth and Neighbourhood Services
RBC Legal Entity,01/12/2021,4610672,264498,JCDECAUX LTD,Test and Trace,5000,Publicity & Media Work,SUB-CONTRACTOR,STANDARD,2068,JAAA-Directorate of Social Care and Health Services
RBC Legal Entity,01/12/2021,4619262,264499,MOHAMMED ARSHAD,Guaranteed Rent Scheme,682.98,Rents,SUPPLIER,STANDARD,5872,KAAA-Directorate of Economic Growth and Neighbourhood Services
RBC Legal Entity,01/12/2021,4619666,264499,MOHAMMED ARSHAD,Guaranteed Rent Scheme,880.53,Rents,SUPPLIER,STANDARD,5872,KAAA-Directorate of Economic Growth and Neighbourhood Services
RBC Legal Entity,01/12/2021,4619229,264500,ADAMS ESTATES,Guaranteed Rent Scheme,840.58,Rents,SUPPLIER,STANDARD,5872,KAAA-Directorate of Economic Growth and Neighbourhood Services
RBC Legal Entity,01/12/2021,4619079,264501,NIGEL T NORTH LTD,JLT Disbursements,842.4,Misc. Legal Expenses,SUPPLIER,STANDARD,2407,LAAA-Directorate of Resources
RBC Legal Entity,01/12/2021,4619134,264502,PANDORA MAPLE T/A HANNINGTONS PARTNERSHIP,Guaranteed Rent Scheme,880.53,Rents,Landlord,STANDARD,5872,KAAA-Directorate of Economic Growth and Neighbourhood Services
RBC Legal Entity,01/12/2021,4619145,264502,PANDORA MAPLE T/A HANNINGTONS PARTNERSHIP,Guaranteed Rent Scheme,1388.74,Rents,Landlord,STANDARD,5872,KAAA-Directorate of Economic Growth and Neighbourhood Services
RBC Legal Entity,01/12/2021,4619267,264502,PANDORA MAPLE T/A HANNINGTONS PARTNERSHIP,Guaranteed Rent Scheme,694.59,Rents,Landlord,STANDARD,5872,KAAA-Directorate of Economic Growth and Neighbourhood Services
RBC Legal Entity,01/12/2021,4619321,264502,PANDORA MAPLE T/A HANNINGTONS PARTNERSHIP,Guaranteed Rent Scheme,694.59,Rents,Landlord,STANDARD,5872,KAAA-Directorate of Economic Growth and Neighbourhood Services
RBC Legal Entity,01/12/2021,4619396,264502,PANDORA MAPLE T/A HANNINGTONS PARTNERSHIP,Guaranteed Rent Scheme,880.53,Rents,Landlord,STANDARD,5872,KAAA-Directorate of Economic Growth and Neighbourhood Services
RBC Legal Entity,01/12/2021,4619462,264502,PANDORA MAPLE T/A HANNINGTONS PARTNERSHIP,Guaranteed Rent Scheme,880.53,Rents,Landlord,STANDARD,5872,KAAA-Directorate of Economic Growth and Neighbourhood Services
RBC Legal Entity,01/12/2021,4619691,264502,PANDORA MAPLE T/A HANNINGTONS PARTNERSHIP,Guaranteed Rent Scheme,694.59,Rents,Landlord,STANDARD,5872,KAAA-Directorate of Economic Growth and Neighbourhood Services
RBC Legal Entity,01/12/2021,4619237,264503,JANICE SIMMONS,Guaranteed Rent Scheme,880.53,Rents,SUPPLIER,STANDARD,5872,KAAA-Directorate of Economic Growth and Neighbourhood Services
RBC Legal Entity,01/12/2021,4619656,264503,JANICE SIMMONS,Guaranteed Rent Scheme,880.53,Rents,SUPPLIER,STANDARD,5872,KAAA-Directorate of Economic Growth and Neighbourhood Services
RBC Legal Entity,01/12/2021,4619783,264503,JANICE SIMMONS,Guaranteed Rent Scheme,880.53,Rents,SUPPLIER,STANDARD,5872,KAAA-Directorate of Economic Growth and Neighbourhood Services
RBC Legal Entity,01/12/2021,4619355,264504,ALDERKEY PROPERTIES,Guaranteed Rent Scheme,694.59,Rents,Third Party Supplier,STANDARD,5872,KAAA-Directorate of Economic Growth and Neighbourhood Services
RBC Legal Entity,01/12/2021,4619600,264504,ALDERKEY PROPERTIES,Guaranteed Rent Scheme,694.59,Rents,Third Party Supplier,STANDARD,5872,KAAA-Directorate of Economic Growth and Neighbourhood Services
RBC Legal Entity,01/12/2021,4619286,264506,CECILIA FRANCESCA COLES,Guaranteed Rent Scheme,880.53,Rents,SUPPLIER,STANDARD,5872,KAAA-Directorate of Economic Growth and Neighbourhood Services
RBC Legal Entity,01/12/2021,4619522,264506,CECILIA FRANCESCA COLES,Guaranteed Rent Scheme,880.53,Rents,SUPPLIER,STANDARD,5872,KAAA-Directorate of Economic Growth and Neighbourhood Services
RBC Legal Entity,01/12/2021,4619291,264507,COLIN JAMES,Guaranteed Rent Scheme,880.53,Rents,SUPPLIER,STANDARD,5872,KAAA-Directorate of Economic Growth and Neighbourhood Services
RBC Legal Entity,01/12/2021,4619298,264508,BROOKSTONES PROPERTY SERVICES,Guaranteed Rent Scheme,840.58,Rents,SUPPLIER,STANDARD,5872,KAAA-Directorate of Economic Growth and Neighbourhood Services
RBC Legal Entity,01/12/2021,4619352,264509,KAH HOOI LIM,Guaranteed Rent Scheme,694.59,Rents,Landlord,STANDARD,5872,KAAA-Directorate of Economic Growth and Neighbourhood Services
RBC Legal Entity,01/12/2021,4619365,264509,KAH HOOI LIM,Guaranteed Rent Scheme,880.53,Rents,Landlord,STANDARD,5872,KAAA-Directorate of Economic Growth and Neighbourhood Services
RBC Legal Entity,01/12/2021,4619479,264509,KAH HOOI LIM,Guaranteed Rent Scheme,880.53,Rents,Landlord,STANDARD,5872,KAAA-Directorate of Economic Growth and Neighbourhood Services
RBC Legal Entity,01/12/2021,4619698,264509,KAH HOOI LIM,Guaranteed Rent Scheme,880.53,Rents,Landlord,STANDARD,5872,KAAA-Directorate of Economic Growth and Neighbourhood Services
RBC Legal Entity,01/12/2021,4619816,264509,KAH HOOI LIM,Guaranteed Rent Scheme,694.59,Rents,Landlord,STANDARD,5872,KAAA-Directorate of Economic Growth and Neighbourhood Services
RBC Legal Entity,01/12/2021,4619532,264510,LISA CLAIRE BAKER,Guaranteed Rent Scheme,1006.72,Rents,SUPPLIER,STANDARD,5872,KAAA-Directorate of Economic Growth and Neighbourhood Services
RBC Legal Entity,01/12/2021,4619302,264511,ANDY HILL,Guaranteed Rent Scheme,880.53,Rents,Landlord,STANDARD,5872,KAAA-Directorate of Economic Growth and Neighbourhood Services
RBC Legal Entity,01/12/2021,4619120,264512,AMIT BRAICH,Guaranteed Rent Scheme,880.53,Rents,SUPPLIER,STANDARD,5872,KAAA-Directorate of Economic Growth and Neighbourhood Services
RBC Legal Entity,01/12/2021,4619307,264513,PHILIPPA COLLINGS,Guaranteed Rent Scheme,880.53,Rents,SUPPLIER,STANDARD,5872,KAAA-Directorate of Economic Growth and Neighbourhood Services
RBC Legal Entity,01/12/2021,4619309,264514,PHILIP DALE,Guaranteed Rent Scheme,1388.74,Rents,SUPPLIER,STANDARD,5872,KAAA-Directorate of Economic Growth and Neighbourhood Services
RBC Legal Entity,01/12/2021,4619122,264515,CAROLE TAYLOR,Guaranteed Rent Scheme,816.1,Rents,SUPPLIER,STANDARD,5872,KAAA-Directorate of Economic Growth and Neighbourhood Services
RBC Legal Entity,01/12/2021,4619193,264515,CAROLE TAYLOR,Guaranteed Rent Scheme,663.08,Rents,SUPPLIER,STANDARD,5872,KAAA-Directorate of Economic Growth and Neighbourhood Services
RBC Legal Entity,01/12/2021,4619204,264515,CAROLE TAYLOR,Guaranteed Rent Scheme,816.1,Rents,SUPPLIER,STANDARD,5872,KAAA-Directorate of Economic Growth and Neighbourhood Services
RBC Legal Entity,01/12/2021,4619332,264515,CAROLE TAYLOR,Guaranteed Rent Scheme,840.58,Rents,SUPPLIER,STANDARD,5872,KAAA-Directorate of Economic Growth and Neighbourhood Services
RBC Legal Entity,01/12/2021,4618018,264517,CROWN LODGE GUEST HOUSE,Single Homelessness Grants,445,Preventive+SupportiveServ,Third Party Supplier,STANDARD,5860,KAAA-Directorate of Economic Growth and Neighbourhood Services
RBC Legal Entity,01/12/2021,4619759,264518,ROB HEATH,Guaranteed Rent Scheme,1006.72,Rents,SUPPLIER,STANDARD,5872,KAAA-Directorate of Economic Growth and Neighbourhood Services
RBC Legal Entity,01/12/2021,4619988,264519,MEADEE FLOORING LTD,DLO Voids Trades,150,Subcontractors Labour,SUB-CONTRACTOR,STANDARD,4020,KAAA-Directorate of Economic Growth and Neighbourhood Services
RBC Legal Entity,01/12/2021,4619988,264519,MEADEE FLOORING LTD,DLO Voids Trades,1105,Subcontractors Labour,SUB-CONTRACTOR,STANDARD,4020,KAAA-Directorate of Economic Growth and Neighbourhood Services
RBC Legal Entity,01/12/2021,4619989,264519,MEADEE FLOORING LTD,DLO Voids Trades,160,Subcontractors Labour,SUB-CONTRACTOR,STANDARD,4020,KAAA-Directorate of Economic Growth and Neighbourhood Services
RBC Legal Entity,01/12/2021,4619989,264519,MEADEE FLOORING LTD,DLO Voids Trades,1145,Subcontractors Labour,SUB-CONTRACTOR,STANDARD,4020,KAAA-Directorate of Economic Growth and Neighbourhood Services
RBC Legal Entity,01/12/2021,4612530,264520,MR DAMIAN GARRIDO,JLT Disbursements,3500,Misc. Legal Expenses,SUPPLIER,STANDARD,2407,LAAA-Directorate of Resources
RBC Legal Entity,01/12/2021,4612530,264520,MR DAMIAN GARRIDO,JLT Disbursements,3500,Misc. Legal Expenses,SUPPLIER,STANDARD,2407,LAAA-Directorate of Resources
RBC Legal Entity,01/12/2021,4610811,264521,FCC RECYCLING (UK) LTD,Refuse Collection,10280.92,Tipping Charge,SUPPLIER,STANDARD,4561,KAAA-Directorate of Economic Growth and Neighbourhood Services
RBC Legal Entity,01/12/2021,4610821,264521,FCC RECYCLING (UK) LTD,Grounds Maintenance,678.87,Parks Tipping,SUPPLIER,STANDARD,1306,KAAA-Directorate of Economic Growth and Neighbourhood Services
RBC Legal Entity,01/12/2021,4610829,264521,FCC RECYCLING (UK) LTD,Grounds Maintenance,11567.48,Parks Tipping,SUPPLIER,STANDARD,1306,KAAA-Directorate of Economic Growth and Neighbourhood Services
RBC Legal Entity,01/12/2021,4619308,264522,MORGAN PERRET AND SARAH PERRET,Guaranteed Rent Scheme,865.8,Rents,SUPPLIER,STANDARD,5872,KAAA-Directorate of Economic Growth and Neighbourhood Services
RBC Legal Entity,01/12/2021,4619341,264523,RALPH CHANADA,Guaranteed Rent Scheme,694.59,Rents,SUPPLIER,STANDARD,5872,KAAA-Directorate of Economic Growth and Neighbourhood Services
RBC Legal Entity,01/12/2021,4619320,264524,HADRONTA LTD,Guaranteed Rent Scheme,1006.72,Rents,SUPPLIER,STANDARD,5872,KAAA-Directorate of Economic Growth and Neighbourhood Services
RBC Legal Entity,01/12/2021,4619324,264525,JULIE PROVINO,Guaranteed Rent Scheme,840.58,Rents,SUPPLIER,STANDARD,5872,KAAA-Directorate of Economic Growth and Neighbourhood Services
RBC Legal Entity,01/12/2021,4619334,264527,DANIEL THOMAS GRANT,Guaranteed Rent Scheme,840.58,Rents,SUPPLIER,STANDARD,5872,KAAA-Directorate of Economic Growth and Neighbourhood Services
RBC Legal Entity,01/12/2021,4619336,264529,BILLY LEUNG,Guaranteed Rent Scheme,961.09,Rents,SUPPLIER,STANDARD,5872,KAAA-Directorate of Economic Growth and Neighbourhood Services
RBC Legal Entity,01/12/2021,4619357,264530,SYEDA SAMEENA AHMED,Guaranteed Rent Scheme,1200,Rents,SUPPLIER,STANDARD,5872,KAAA-Directorate of Economic Growth and Neighbourhood Services
RBC Legal Entity,01/12/2021,4619609,264531,AMY AND RICHARD GATES,Guaranteed Rent Scheme,880.53,Rents,Third Party Supplier,STANDARD,5872,KAAA-Directorate of Economic Growth and Neighbourhood Services
RBC Legal Entity,01/12/2021,4619740,264532,AISHA MALIK,Guaranteed Rent Scheme,880.53,Rents,Landlord,STANDARD,5872,KAAA-Directorate of Economic Growth and Neighbourhood Services
RBC Legal Entity,01/12/2021,4619232,264533,MRS B DESAX & MR O ANTILLE,Guaranteed Rent Scheme,1006.72,Rents,SUPPLIER,STANDARD,5872,KAAA-Directorate of Economic Growth and Neighbourhood Services
RBC Legal Entity,01/12/2021,4619598,264535,MARTYN RUSSELL PROPERTY SERVICES LTD,Guaranteed Rent Scheme,694.59,Rents,SUPPLIER,STANDARD,5872,KAAA-Directorate of Economic Growth and Neighbourhood Services
RBC Legal Entity,01/12/2021,4619216,264536,ELIAS PARIKOS,Guaranteed Rent Scheme,694.59,Rents,SUPPLIER,STANDARD,5872,KAAA-Directorate of Economic Growth and Neighbourhood Services
RBC Legal Entity,01/12/2021,4619274,264537,MAYA RANI MALHOTRA,Guaranteed Rent Scheme,1388.74,Rents,SUPPLIER,STANDARD,5872,KAAA-Directorate of Economic Growth and Neighbourhood Services
RBC Legal Entity,01/12/2021,4619429,264537,MAYA RANI MALHOTRA,Guaranteed Rent Scheme,1388.74,Rents,SUPPLIER,STANDARD,5872,KAAA-Directorate of Economic Growth and Neighbourhood Services
RBC Legal Entity,01/12/2021,4619413,264538,MATTHEW BRAZIL,Guaranteed Rent Scheme,865.8,Rents,SUPPLIER,STANDARD,5872,KAAA-Directorate of Economic Growth and Neighbourhood Services
RBC Legal Entity,01/12/2021,4619499,264539,GILLS ESTATES,Guaranteed Rent Scheme,682.98,Rents,Third Party Supplier,STANDARD,5872,KAAA-Directorate of Economic Growth and Neighbourhood Services
RBC Legal Entity,01/12/2021,4619275,264540,PERKINS PROPERTIES ,Guaranteed Rent Scheme,1006.72,Rents,SUPPLIER,STANDARD,5872,KAAA-Directorate of Economic Growth and Neighbourhood Services
RBC Legal Entity,01/12/2021,4619335,264541,OYSTER PROPERTIES,Guaranteed Rent Scheme,865.8,Rents,SUPPLIER,STANDARD,5872,KAAA-Directorate of Economic Growth and Neighbourhood Services
RBC Legal Entity,01/12/2021,4619529,264541,OYSTER PROPERTIES,Guaranteed Rent Scheme,682.98,Rents,SUPPLIER,STANDARD,5872,KAAA-Directorate of Economic Growth and Neighbourhood Services
RBC Legal Entity,01/12/2021,4619231,264542,PATRICK GINNELLY,Guaranteed Rent Scheme,1006.72,Rents,SUPPLIER,STANDARD,5872,KAAA-Directorate of Economic Growth and Neighbourhood Services
RBC Legal Entity,01/12/2021,4619726,264543,ALAN BUNKER & ANNE WELSH,Guaranteed Rent Scheme,880.53,Rents,SUPPLIER,STANDARD,5872,KAAA-Directorate of Economic Growth and Neighbourhood Services
RBC Legal Entity,01/12/2021,4619354,264544,PETER COLLINS,Guaranteed Rent Scheme,880.53,Rents,SUPPLIER,STANDARD,5872,KAAA-Directorate of Economic Growth and Neighbourhood Services
RBC Legal Entity,01/12/2021,4619591,264544,PETER COLLINS,Guaranteed Rent Scheme,694.59,Rents,SUPPLIER,STANDARD,5872,KAAA-Directorate of Economic Growth and Neighbourhood Services
RBC Legal Entity,01/12/2021,4619356,264545,MARTIN DALTON,Guaranteed Rent Scheme,840.58,Rents,SUPPLIER,STANDARD,5872,KAAA-Directorate of Economic Growth and Neighbourhood Services
RBC Legal Entity,01/12/2021,4619363,264546,DEBORAH JEFFRIES,Guaranteed Rent Scheme,961.09,Rents,SUPPLIER,STANDARD,5872,KAAA-Directorate of Economic Growth and Neighbourhood Services
RBC Legal Entity,01/12/2021,4619366,264547,RAYMOND ALLAN WARD,Guaranteed Rent Scheme,663.08,Rents,SUPPLIER,STANDARD,5872,KAAA-Directorate of Economic Growth and Neighbourhood Services
RBC Legal Entity,01/12/2021,4619512,264548,MICK AND ALLISON BRADSHAW,Guaranteed Rent Scheme,694.59,Rents,SUPPLIER,STANDARD,5872,KAAA-Directorate of Economic Growth and Neighbourhood Services
RBC Legal Entity,01/12/2021,4619361,264549,SANJAY DESAI & INDIRA DESAI,Guaranteed Rent Scheme,1006.72,Rents,SUPPLIER,STANDARD,5872,KAAA-Directorate of Economic Growth and Neighbourhood Services
RBC Legal Entity,01/12/2021,4619371,264550,MID THAMES AREA QUAKERS,Guaranteed Rent Scheme,880.53,Rents,SUPPLIER,STANDARD,5872,KAAA-Directorate of Economic Growth and Neighbourhood Services
RBC Legal Entity,01/12/2021,4619385,264551,CHILLINGHAM LTD,Guaranteed Rent Scheme,961.09,Rents,Third Party Supplier,STANDARD,5872,KAAA-Directorate of Economic Growth and Neighbourhood Services
RBC Legal Entity,01/12/2021,4619374,264552,MICHELLE CRITTENDEN,Guaranteed Rent Scheme,663.08,Rents,SUPPLIER,STANDARD,5872,KAAA-Directorate of Economic Growth and Neighbourhood Services
RBC Legal Entity,01/12/2021,4619510,264552,MICHELLE CRITTENDEN,Guaranteed Rent Scheme,989.91,Rents,SUPPLIER,STANDARD,5872,KAAA-Directorate of Economic Growth and Neighbourhood Services
RBC Legal Entity,01/12/2021,4619533,264552,MICHELLE CRITTENDEN,Guaranteed Rent Scheme,682.98,Rents,SUPPLIER,STANDARD,5872,KAAA-Directorate of Economic Growth and Neighbourhood Services
RBC Legal Entity,01/12/2021,4619299,264553,NATHAN WARD,Guaranteed Rent Scheme,694.59,Rents,SUPPLIER,STANDARD,5872,KAAA-Directorate of Economic Growth and Neighbourhood Services
RBC Legal Entity,02/12/2021,4613966,264581,BIDVEST FOODSERVICE (BIDFOOD),Hexagon Catering,38.92,Purchases - Stock Provisions,SUPPLIER,STANDARD,1241,KAAA-Directorate of Economic Growth and Neighbourhood Services
RBC Legal Entity,02/12/2021,4613966,264581,BIDVEST FOODSERVICE (BIDFOOD),Hexagon Catering,1873.89,Purchases - Stock Provisions,SUPPLIER,STANDARD,1241,KAAA-Directorate of Economic Growth and Neighbourhood Services
RBC Legal Entity,02/12/2021,4611062,264583,MIDLAND SOFTWARE LIMITED,HR & Payroll,925,Software Licences,SUPPLIER,STANDARD,2600,LAAA-Directorate of Resources
RBC Legal Entity,02/12/2021,4613964,264588,READING REFUGEE SUPPORT GROUP,Syrian Refugee’s,1668.35,Professional Fees,SUPPLIER,STANDARD,2022,LAAA-Directorate of Resources
RBC Legal Entity,02/12/2021,4620118,264590,LIFTABILITY LIMITED,Private Sector Grants,2540,Grants (Paid out by RBC),Third Party Supplier,STANDARD,8500,ZZZC-Capital
RBC Legal Entity,02/12/2021,4620119,264590,LIFTABILITY LIMITED,Private Sector Grants,2463,Grants (Paid out by RBC),Third Party Supplier,STANDARD,8500,ZZZC-Capital
RBC Legal Entity,02/12/2021,4611046,264591,INSIGHT MEDIA INTERNET LTD,Reading Libraries,200,Equipment Purchase & Repair,Third Party Supplier,STANDARD,1400,KAAA-Directorate of Economic Growth and Neighbourhood Services
RBC Legal Entity,02/12/2021,4611046,264591,INSIGHT MEDIA INTERNET LTD,Reading Libraries,630,Equipment Purchase & Repair,Third Party Supplier,STANDARD,1400,KAAA-Directorate of Economic Growth and Neighbourhood Services
RBC Legal Entity,02/12/2021,4611046,264591,INSIGHT MEDIA INTERNET LTD,Reading Libraries,650,Equipment Purchase & Repair,Third Party Supplier,STANDARD,1400,KAAA-Directorate of Economic Growth and Neighbourhood Services
RBC Legal Entity,02/12/2021,4611046,264591,INSIGHT MEDIA INTERNET LTD,Reading Libraries,1050,Equipment Purchase & Repair,Third Party Supplier,STANDARD,1400,KAAA-Directorate of Economic Growth and Neighbourhood Services
RBC Legal Entity,02/12/2021,4611046,264591,INSIGHT MEDIA INTERNET LTD,Reading Libraries,2100,Equipment Purchase & Repair,Third Party Supplier,STANDARD,1400,KAAA-Directorate of Economic Growth and Neighbourhood Services
RBC Legal Entity,02/12/2021,4613037,264593,DSI BILLING SERVICES LTD,Council Tax & Business Rates,957.59,Postage Carriage Stamp Duty,SUPPLIER,STANDARD,2250,LAAA-Directorate of Resources
RBC Legal Entity,02/12/2021,4617939,264595,GREENWICH LEISURE LIMITED,Leisure Review,1590,External Fees  Misc.,Third Party Supplier,STANDARD,8016,ZZZC-Capital
RBC Legal Entity,02/12/2021,4617941,264595,GREENWICH LEISURE LIMITED,Leisure Review,2728,External Fees  Misc.,Third Party Supplier,STANDARD,8016,ZZZC-Capital
RBC Legal Entity,02/12/2021,4620025,264596,IMPACT RENOVATIONS LTD,Private Sector Grants,2293,Grants (Paid out by RBC),SUB-CONTRACTOR,STANDARD,8500,ZZZC-Capital
RBC Legal Entity,02/12/2021,4620025,264596,IMPACT RENOVATIONS LTD,Private Sector Grants,4639,Grants (Paid out by RBC),SUB-CONTRACTOR,STANDARD,8500,ZZZC-Capital
RBC Legal Entity,02/12/2021,4620046,264596,IMPACT RENOVATIONS LTD,Private Sector Grants,7209.36,Grants (Paid out by RBC),SUB-CONTRACTOR,STANDARD,8500,ZZZC-Capital
RBC Legal Entity,02/12/2021,4620047,264596,IMPACT RENOVATIONS LTD,Private Sector Grants,2356,Grants (Paid out by RBC),SUB-CONTRACTOR,STANDARD,8500,ZZZC-Capital
RBC Legal Entity,02/12/2021,4620047,264596,IMPACT RENOVATIONS LTD,Private Sector Grants,10445.47,Grants (Paid out by RBC),SUB-CONTRACTOR,STANDARD,8500,ZZZC-Capital
RBC Legal Entity,02/12/2021,4620048,264596,IMPACT RENOVATIONS LTD,Private Sector Grants,2282.4,Grants (Paid out by RBC),SUB-CONTRACTOR,STANDARD,8500,ZZZC-Capital
RBC Legal Entity,02/12/2021,4620049,264596,IMPACT RENOVATIONS LTD,Private Sector Grants,662.4,Grants (Paid out by RBC),SUB-CONTRACTOR,STANDARD,8500,ZZZC-Capital
RBC Legal Entity,02/12/2021,4620050,264596,IMPACT RENOVATIONS LTD,Private Sector Grants,556.58,Grants (Paid out by RBC),SUB-CONTRACTOR,STANDARD,8500,ZZZC-Capital
RBC Legal Entity,02/12/2021,4620050,264596,IMPACT RENOVATIONS LTD,Private Sector Grants,929.8,Grants (Paid out by RBC),SUB-CONTRACTOR,STANDARD,8500,ZZZC-Capital
RBC Legal Entity,02/12/2021,4620120,264596,IMPACT RENOVATIONS LTD,Private Sector Grants,5791.65,Grants (Paid out by RBC),SUB-CONTRACTOR,STANDARD,8500,ZZZC-Capital
RBC Legal Entity,02/12/2021,4616857,264597,OCEAN MEDIA GROUP LTD,Head of Housing,2514,Subscriptions,Third Party Supplier,STANDARD,5910,HAAA-Housing Revenue Account
RBC Legal Entity,02/12/2021,4611070,264602,IMPERIAL COLLEGE PROJECTS LTD,Coroner,685,Medical Fees,SUPPLIER,STANDARD,4605,KAAA-Directorate of Economic Growth and Neighbourhood Services
